{"text_format":"1","workbook":"xlsx","n_sheets":15,"sheets":[" Aanwezigheden Invullen","aanw_merksem","Aanw_Womm","Aanw_Kiel","Aanw_Wijn","RESULTAAT MERKSEM","RESULTAAT WOMMELGEM","RESULTAAT KIEL","RESULTAAT WIJNEGEM","GLOBAAL RESULTAAT","KLASSEMENT MERKSEM","KLASSEMENT WOMMELGEM","KLASSEMENT KIEL","KLASSEMENT WIJNEGEM","GLOBAAL KLASSEMENT"],"not_rendered":{"charts":0,"images":2,"macros":1,"external_links":0,"defined_names":7,"comments":0,"pivot_tables":0},"unopened":[],"bounds":{"document_bytes":16777216,"sheet_cells":100000,"rows_first":2000,"rows_last":500,"rows_between":2000,"halvings":0,"cell_chars":16384,"cell_head_chars":4096},"cells_cut":0,"cells_raw":0,"read":"whole","date_system":"1900"}

{"sheet":" Aanwezigheden Invullen","index":0,"n_rows":116,"n_cols":8,"rows_kept":116,"cut":false,"hidden":false,"merged":[[0,2,0,5],[1,0,1,5]]}
[null,"deelnemers","Inschrijvingen "]
["Enkel hier invullen of ze aanwezig zijn, 1 of 0."]
["Nr","Naam","Merksem","Wommelgem","Kiel","Wijnegem",null,"Globaal"]
[1,"JAN VAN BERCKELAER",1,1,1,1,null,{"$f":"SUM(C4:G4)","v":4}]
[2,"CLAIRE VERMEULEN",1,1,1,1,null,{"$f":"SUM(C5:G5)","v":4}]
[3,"MARC ARTS",0,0,0,0,null,{"$f":"SUM(C6:F6)","v":0}]
[4,"ERNEST BOMANS",0,0,0,0,null,0]
[5,"VERA LEYSEN",0,0,0,0,null,0]
[6,"WILLY HEMELS",1,0,1,0,null,2]
[7,"ALAIN SPIRON",1,0,1,1,null,3]
[8,"PAUL VAN OECKEL",0,0,1,1,null,2]
[9,"RITA NAGELS",0,0,1,1,null,2]
[10,"ROGER LENAERTS",1,1,1,1,null,4]
[11,"ROGER WOUTERS",1,0,1,1,null,3]
[12,"AN VAN DER GUCHT",0,0,1,1,null,2]
[13,"MARC DELVAUX",0,0,1,1,null,2]
[14,"FONS NICOLAY",1,1,1,1,null,4]
[15,"LILIANE LAURIJSSEN",1,1,1,1,null,4]
[16,"JEF LAUWERS",0,0,0,0,null,0]
[17,"PAULINE OLDE-BIJVANK",0,0,0,0,null,0]
[18,"GUY ELSLANDER",1,0,1,0,null,2]
[19,"LIES VERHAEGHE",1,0,0,0,null,1]
[20,"PATRICK VEKEMANS",1,1,1,1,null,4]
[21,"LILIANE MOSTIEN",1,1,1,1,null,4]
[22,"JEF CLONEN",0,0,0,0,null,0]
[23,"MARLEEN VAN DE WAETER",1,1,1,1,null,4]
[24,"MAGGIE MAHIEU",1,1,1,1,null,4]
[25,"GUY PEETERS",0,1,1,0,null,2]
[26,"LINDA MARES",1,1,1,1,null,4]
[27,"JULIA DE WINTER",1,0,1,1,null,3]
[28,"PAUL BOEYKENS",1,1,1,1,null,4]
[29,"RITA LAURIJSSEN",1,1,1,1,null,4]
[30,"MARCEL KESTENS",0,0,0,0,null,0]
[31,"PAUL VAN HOVE",0,0,0,0,null,0]
[32,"TONY WILLAERT",0,0,1,1,null,2]
[33,"RITA LEJON",0,0,1,1,null,2]
[34,"MARC VERMANT",1,1,1,0,null,3]
[35,"MYRIAM VERRYDT",1,1,1,0,null,3]
[36,"LUDO IELEGEMS",0,0,0,0,null,0]
[37,"ANNE-MARIE KLEINJAN",0,0,0,0,null,0]
[38,"GRIET VERWIMP",0,0,0,0,null,0]
[39,"LUC VAN DEN BROECK",1,1,0,0,null,2]
[40,"MONIQUE RUYMBEKE",1,1,0,0,null,2]
[41,"JOS JANSSENS",1,1,1,0,null,3]
[42,"MARIA RUTS",1,1,1,0,null,3]
[43,"PIERRE MEIR",1,1,1,1,null,4]
[44,"PATTY MEEUSEN",1,1,1,1,null,4]
[45,"TRISTAN WEYN",0,0,1,1,null,2]
[46,"CARINA LUYTEN",0,0,1,1,null,2]
[47,"ETIENNE BURM",1,0,1,0,null,2]
[48,"LIEVE GEZELS",1,0,1,0,null,2]
[49,"MARIA DE VRIENDT",0,0,0,0,null,0]
[50,"BOB OOMS",1,1,0,1,null,3]
[51,"ANNITA VAN LEUGENHAEGHE",1,1,0,1,null,3]
[52,"LUC VAN HAVER",1,0,1,1,null,3]
[53,"BEA VERHAEGEN",1,0,1,1,null,3]
[54,"RUDY VERACHTERT",1,0,0,0,null,1]
[55,"CORRY DE BIE",1,0,0,0,null,1]
[56,"NADINE BRACKE",1,0,0,1,null,2]
[57,"PATRICK VELDERS",1,0,0,1,null,2]
[58,"MARC DE REU",0,1,0,0,null,1]
[59,"VIOLETTE GLANZ",0,1,0,0,null,1]
[60,"ROGER VAN DURME",1,1,1,1,null,4]
[61,"JEAN TIJSMANS",1,1,1,1,null,4]
[62,"ETIENNE VAN ROBBROECK",1,1,1,1,null,4]
[63,"PAULA VAN LINDEN",1,1,1,1,null,4]
[64,"ERIK BOCKSTAL",0,0,0,0,null,0]
[65,"BRUNO HERREBOSCH",1,1,0,1,null,3]
[66,"MARC GOVAERS",1,0,0,1,null,{"$f":"SUM(C69:F69)","v":2}]
[67,"NICOLE BAYARD",1,0,0,0,null,1]
[68,"FRANK DE KINDER",0,1,1,1,null,3]
[69,"FRANS WOUTERS",0,1,1,0,null,2]
[70,"ANNE LOMBAERTS ",0,1,1,0,null,2]
[71,"FRIEDA HAESELDONCKX",0,0,1,0,null,1]
[72,"CHRIS DE RAEYMAEKER",0,0,1,0,null,1]
[73,"WIS VAN DINGENEN",0,0,0,0,null,0]
[74,"RENEE COPPENS",0,0,0,0,null,0]
[75,null,0,0,0,0,null,0]
[76,null,0,0,0,0,null,0]
[77,null,0,0,0,0,null,0]
[78,null,0,0,0,0,null,0]
[79,null,0,0,0,0,null,0]
[80,null,0,0,0,0,null,0]
[81,null,0,0,0,0,null,0]
[82,null,0,0,0,0,null,0]
[83,null,0,0,0,0,null,0]
[84,null,0,0,0,0,null,0]
[85,null,0,0,0,0,null,0]
[86,null,0,0,0,0,null,0]
[87,null,0,0,0,0,null,0]
[88,null,0,0,0,0,null,{"$f":"SUM(C91:F91)","v":0}]
[89,null,0,0,0,0,null,0]
[90,null,0,0,0,0,null,0]
[91,null,0,0,0,0,null,0]
[92,null,0,0,0,0,null,0]
[93,null,0,0,0,0,null,0]
[94,null,0,0,0,0,null,0]
[95,null,0,0,0,0,null,0]
[96,null,0,0,0,0,null,0]
[97,null,0,0,0,0,null,0]
[98,null,0,0,0,0,null,0]
[99,null,0,0,0,0,null,0]
[100,null,0,0,0,0,null,0]
[101,null,0,0,0,0,null,0]
[102,null,0,0,0,0,null,0]
[103,null,0,0,0,0,null,0]
[104,null,0,0,0,0,null,0]
[105,null,0,0,0,0,null,0]
[106,null,0,0,0,0,null,0]
[107,null,0,0,0,0,null,0]
[108,null,0,0,0,0,null,{"$f":"SUM(C111:F111)","v":0}]
[109,null,0,0,0,0,null,{"$f":"SUM(C112:F112)","v":0}]
[110,null,0,0,0,0,null,{"$f":"SUM(C113:F113)","v":0}]
[]
[]
[null,"Aantal ingeschreven",{"$f":"COUNTIF(C4:C113,1)","v":43},{"$f":"COUNTIF(D4:D113,1)","v":33},{"$f":"COUNTIF(E4:E113,1)","v":45},{"$f":"COUNTIF(F4:F113,1)","v":38}]

{"sheet":"aanw_merksem","index":1,"n_rows":61,"n_cols":21,"rows_kept":61,"cut":false,"hidden":false,"merged":[]}
["Volgnr","Aantal",null,null,"Reeks 1",null,null,null,null,null,"reeks 2",null,null,null,null,null,"Reeks 3"]
[1,1,null,"Baan 1",null,null,null,null,null,"Baan 1",null,null,null,null,null,"Baan 1"]
[2,2,null,null,null,null,null,null,null,null,null,null,null,null,null,null,null,null,null,null,"https://nl.extendoffice.com/product/kutools-for-excel/excel-random-number-generator.html#a1"]
[6,3," ","Baan 2",null,null,null,null,null,"Baan 2",null,null,null,null,null,"Baan 2"]
[7,4]
[10,5,null,"Baan 3",null,null,null,null,null,"Baan 3",null,null,null,null,null,"Baan 3"]
[11,6]
[14,7,null,"Baan 4",null,null,null,null,null,"Baan 4",null,null,null,null,null,"Baan 4"]
[15,8]
[18,9,null,"Baan 5",null,null,null,null,null,"Baan 5",null,null,null,null,null,"Baan 5"]
[19,10]
[20,11,null,"Baan 6",null,null,null,null,null,"Baan 6",null,null,null,null,null,"Baan 6"]
[21,12]
[23,13,null,"Baan 7",null,null,null,null,null,"Baan 7",null,null,null,null,null,"Baan 7"]
[24,14]
[26,15,null,"Baan 8",null,null,null,null,null,"Baan 8",null,null,null,null,null,"Baan 8"]
[27,16]
[28,17,null,"Baan 9",null,null,null,null,null,"Baan 9",null,null,null,null,null,"Baan 9"]
[29,18]
[34,19,null,"Baan 10",null,null,null,null,null,"Baan 10",null,null,null,null,null,"Baan 10"]
[35,20]
[39,21]
[40,22]
[41,23]
[42,24]
[43,25]
[44,26]
[47,27]
[48,28]
[50,29]
[51,30]
[52,31]
[53,32]
[54,33]
[55,34]
[56,35]
[57,36]
[60,37]
[61,38]
[62,39]
[63,40]
[65,41]
[66,42]
[67,43]
[null,44]
[null,45]
[null,46]
[null,47]
[null,48]
[null,49]
[null,50]
[null,51]
[null,52]
[null,53]
[null,54]
[null,55]
[null,56]
[null,57]
[null,58]
[null,59]
[null,60]

{"sheet":"Aanw_Womm","index":2,"n_rows":61,"n_cols":15,"rows_kept":61,"cut":false,"hidden":false,"merged":[]}
["Volgnr","Aantal",null,null,"Reeks 1",null,null,null,"reeks 2",null,null,null,"Reeks 3"]
[1,1,null,"Baan 1",1,28,51,"Baan 1",1,28,51,"Baan 1",1,28,51]
[2,2,null,null,2,29,58,null,2,29,58,null,2,29,58]
[10,3,null,"Baan 2",10,34,59,"Baan 2",10,34,59,"Baan 2",10,34,59]
[14,4,null,null,14,35,60,null,14,35,60,null,14,35,60]
[15,5,null,"Baan 3",15,39,61,"Baan 3",15,39,61,"Baan 3",15,39,61]
[20,6,null,null,20,40,62,null,20,40,62,null,20,40,62]
[21,7,null,"Baan 4",21,41,63,"Baan 4",21,41,63,"Baan 4",21,41,63]
[23,8,null,null,23,42,65,null,23,42,65,null,23,42,65]
[24,9,null,"Baan 5",24,43,68,"Baan 5",24,43,68,"Baan 5",24,43,68]
[25,10,null,null,25,44,69,null,25,44,69,null,25,44,69]
[26,11,null,"Baan 6",26,50,70,"Baan 6",26,50,70,"Baan 6",26,50,70]
[28,12]
[29,13,null,"Baan 7",null,null,null,"Baan 7",null,null,null,"Baan 7"]
[34,14]
[35,15,null,"Baan 8",null,null,null,"Baan 8",null,null,null,"Baan 8"]
[39,16]
[40,17,null,"Baan 9",null,null,null,"Baan 9"," ",null,null,"Baan 9"]
[41,18]
[42,19,null,"Baan 10",null,null,null,"Baan 10",null,null,null,"Baan 10"]
[43,20]
[44,21]
[50,22]
[51,23]
[58,24]
[59,25]
[60,26]
[61,27]
[62,28]
[63,29]
[65,30]
[68,31]
[69,32]
[70,33]
[null,34]
[null,35]
[null,36]
[null,37]
[null,38]
[null,39]
[null,40]
[null,41]
[null,42]
[null,43]
[null,44]
[null,45]
[null,46]
[null,47]
[null,48]
[null,49]
[null,50]
[null,51]
[null,52]
[null,53]
[null,54]
[null,55]
[null,56]
[null,57]
[null,58]
[null,59]
[null,60]

{"sheet":"Aanw_Kiel","index":3,"n_rows":61,"n_cols":15,"rows_kept":61,"cut":false,"hidden":false,"merged":[]}
["Volgnr","Aantal",null,null,"Reeks 1",null,null,null,"reeks 2",null,null,null,"Reeks 3"]
[1,1,null,"Baan 1",1,23,45,"Baan 1",1,44,68,"Baan 1",21,35,45]
[2,2,null,null,2,24,46,null,2,43,69,null,20,41,46]
[6,3,null,"Baan 2",6,25,47,"Baan 2",6,42,70,"Baan 2",18,42,47]
[7,4,null,null,7,26,48,null,7,41,71,null,15,43,48]
[8,5,null,"Baan 3",8,27,52,"Baan 3",8,35,72,"Baan 3",14,44,52]
[9,6,null,null,9,28,53,null,9,34,45,null,13,23,53]
[10,7,null,"Baan 4",10,29,60,"Baan 4",10,33,46,"Baan 4",12,24,60]
[11,8,null,null,11,32,61,null,11,32,47,null,11,25,61]
[12,9,null,"Baan 5",12,33,62,"Baan 5",12,29,48,"Baan 5",10,26,62]
[13,10,null,null,13,34,63,null,13,28,52,null,9,27,63]
[14,11,null,"Baan 6",14,35,68,"Baan 6",14,27,53,"Baan 6",8,28,68]
[15,12,null,null,15,41,69,null,15,26,60,null,7,29,69]
[18,13,null,"Baan 7",18,42,70,"Baan 7",18,25,61,"Baan 7",6,32,70]
[20,14,null,null,20,43,71,null,20,24,62,null,2,33,71]
[21,15,null,"Baan 8",21,44,72,"Baan 8",21,23,63,"Baan 8",1,34,72]
[23,16]
[24,17,null,"Baan 9",null,null,null,"Baan 9",null,null,null,"Baan 9"]
[25,18]
[26,19,null,"Baan 10",null,null,null,"Baan 10",null,null,null,"Baan 10"]
[27,20]
[28,21]
[29,22]
[32,23]
[33,24]
[34,25]
[35,26]
[41,27]
[42,28]
[43,29]
[44,30]
[45,31]
[46,32]
[47,33]
[48,34]
[52,35]
[53,36]
[60,37]
[61,38]
[62,39]
[63,40]
[68,41]
[69,42]
[70,43]
[71,44]
[72,45]
[null,46]
[null,47]
[null,48]
[null,49]
[null,50]
[null,51]
[null,52]
[null,53]
[null,54]
[null,55]
[null,56]
[null,57]
[null,58]
[null,59]
[null,60]

{"sheet":"Aanw_Wijn","index":4,"n_rows":61,"n_cols":15,"rows_kept":61,"cut":false,"hidden":false,"merged":[]}
["Volgnr","Aantal",null,null,"Reeks 1",null,null,null,"reeks 2",null,null,null,"Reeks 3"]
[1,1,null,"Baan 1",1,23,51,"Baan 1",1,23,66,"Baan 1",1,45,51]
[2,2,null,null,2,24,52,null,2,24,68,null,2,46,52]
[7,3,null,"Baan 2",7,26,53,"Baan 2",7,26,51,"Baan 2",7,50,53]
[8,4,null,null,8,27,56,null,8,27,52,null,8,23,56]
[9,5,null,"Baan 3",9,28,57,"Baan 3",9,28,53,"Baan 3",9,24,57]
[10,6,null,null,10,29,60,null,10,29,56,null,10,26,60]
[11,7,null,"Baan 4",11,32,61,"Baan 4",11,32,57,"Baan 4",11,27,61]
[12,8,null,null,12,33,62,null,12,33,60,null,12,28,62]
[13,9,null,"Baan 5",13,43,63,"Baan 5",13,43,61,"Baan 5",13,29,63]
[14,10,null,null,14,44,65,null,14,44,62,null,14,32,65]
[15,11,null,"Baan 6",15,45,66,"Baan 6",15,45,63,"Baan 6",15,33,66]
[20,12,null,null,20,46,68,null,20,46,65,null,20,43,68]
[21,13,null,"Baan 7",21,50,null,"Baan 7",21,50,null,"Baan 7",21,44]
[23,14]
[24,15,null,"Baan 8",null,null,null,"Baan 8",null,null,null,"Baan 8"]
[26,16]
[27,17,null,"Baan 9",null,null,null,"Baan 9",null,null,null,"Baan 9"]
[28,18]
[29,19,null,"Baan 10",null,null,null,"Baan 10",null,null,null,"Baan 10"]
[32,20]
[33,21]
[43,22]
[44,23]
[45,24]
[46,25]
[50,26]
[51,27]
[52,28]
[53,29]
[56,30]
[57,31]
[60,32]
[61,33]
[62,34]
[63,35]
[65,36]
[66,37]
[68,38]
[null,39]
[null,40]
[null,41]
[null,42]
[null,43]
[null,44]
[null,45]
[null,46]
[null,47]
[null,48]
[null,49]
[null,50]
[null,51]
[null,52]
[null,53]
[null,54]
[null,55]
[null,56]
[null,57]
[null,58]
[null,59]
[null,60]

{"sheet":"RESULTAAT MERKSEM","index":5,"n_rows":113,"n_cols":18,"rows_kept":113,"cut":false,"hidden":false,"merged":[[1,2,1,4],[1,5,1,7],[1,8,1,10]]}
[null,"deelnemers",null,null,"KBC PETANQUETORNOOI",null,null,null,null,null,null,"MERKSEM",null,null,null,null,"2019-04-29"]
[null,{"$f":"' Aanwezigheden Invullen'!C116","v":43},"1ste Ronde",null,null,"2de Ronde",null,null,"3de Ronde",null,null,"Gew",null,null,"Totaal",null,"RESULTAAT"]
["Nr","Naam","voor","tegen","Gew","voor","tegen","Gew","voor","tegen","Gew","Totaal","voor ","tegen","saldo","rang","Naam","Aanwezig"]
[1,{"$f":"' Aanwezigheden Invullen'!B4","v":"JAN VAN BERCKELAER"},13,9,{"$f":"IF((C4>D4),1,0)","v":1},13,11,{"$f":"IF((F4>G4),1,0)","v":1},13,7,{"$f":"IF((I4>J4),1,0)","v":1},{"$f":"SUM(E4,H4,K4)","v":3},{"$f":"SUM(C4,F4,I4)","v":39},{"$f":"SUM(D4,G4,J4)","v":27},{"$f":"SUM((M4-N4))","v":12},null,{"$f":"B4","v":"JAN VAN BERCKELAER"},{"$f":"' Aanwezigheden Invullen'!C4","v":1}]
[2,{"$f":"' Aanwezigheden Invullen'!B5","v":"CLAIRE VERMEULEN"},13,6,1,13,12,1,10,13,0,2,36,31,5,null,"CLAIRE VERMEULEN",{"$f":"' Aanwezigheden Invullen'!C5","v":1}]
[3,{"$f":"' Aanwezigheden Invullen'!B6","v":"MARC ARTS"},0,0,0,0,0,0,0,0,0,0,0,0,0,null,"MARC ARTS",{"$f":"' Aanwezigheden Invullen'!C6","v":0}]
[4,{"$f":"' Aanwezigheden Invullen'!B7","v":"ERNEST BOMANS"},0,0,0,0,0,0,0,0,0,0,0,0,0,null,"ERNEST BOMANS",{"$f":"' Aanwezigheden Invullen'!C7","v":0}]
[5,{"$f":"' Aanwezigheden Invullen'!B8","v":"VERA LEYSEN"},0,0,0,0,0,0,0,0,0,0,0,0,0,null,"VERA LEYSEN",{"$f":"' Aanwezigheden Invullen'!C8","v":0}]
[6,{"$f":"' Aanwezigheden Invullen'!B9","v":"WILLY HEMELS"},13,4,1,5,13,0,10,13,0,1,28,30,-2,null,"WILLY HEMELS",{"$f":"' Aanwezigheden Invullen'!C9","v":1}]
[7,{"$f":"' Aanwezigheden Invullen'!B10","v":"ALAIN SPIRON"},13,9,1,13,5,1,13,10,1,3,39,24,15,null,"ALAIN SPIRON",{"$f":"' Aanwezigheden Invullen'!C10","v":1}]
[8,{"$f":"' Aanwezigheden Invullen'!B11","v":"PAUL VAN OECKEL"},0,0,0,0,0,0,0,0,0,0,0,0,0,null,"PAUL VAN OECKEL",{"$f":"' Aanwezigheden Invullen'!C11","v":0}]
[9,{"$f":"' Aanwezigheden Invullen'!B12","v":"RITA NAGELS"},0,0,0,0,0,0,0,0,0,0,0,0,0,null,"RITA NAGELS",{"$f":"' Aanwezigheden Invullen'!C12","v":0}]
[10,{"$f":"' Aanwezigheden Invullen'!B13","v":"ROGER LENAERTS"},13,6,1,5,13,0,2,13,0,1,20,32,-12,null,"ROGER LENAERTS",{"$f":"' Aanwezigheden Invullen'!C13","v":1}]
[11,{"$f":"' Aanwezigheden Invullen'!B14","v":"ROGER WOUTERS"},13,5,1,13,11,1,13,10,1,3,39,26,13,null,"ROGER WOUTERS",{"$f":"' Aanwezigheden Invullen'!C14","v":1}]
[12,{"$f":"' Aanwezigheden Invullen'!B15","v":"AN VAN DER GUCHT"},0,0,0,0,0,0,0,0,0,0,0,0,0,null,"AN VAN DER GUCHT",{"$f":"' Aanwezigheden Invullen'!C15","v":0}]
[13,{"$f":"' Aanwezigheden Invullen'!B16","v":"MARC DELVAUX"},0,0,0,0,0,0,0,0,0,0,0,0,0,null,"MARC DELVAUX",{"$f":"' Aanwezigheden Invullen'!C16","v":0}]
[14,{"$f":"' Aanwezigheden Invullen'!B17","v":"FONS NICOLAY"},5,13,0,13,6,1,13,7,1,2,31,26,5,null,"FONS NICOLAY",{"$f":"' Aanwezigheden Invullen'!C17","v":1}]
[15,{"$f":"' Aanwezigheden Invullen'!B18","v":"LILIANE LAURIJSSEN"},13,6,1,11,13,0,7,13,0,1,31,32,-1,null,"LILIANE LAURIJSSEN",{"$f":"' Aanwezigheden Invullen'!C18","v":1}]
[16,{"$f":"' Aanwezigheden Invullen'!B19","v":"JEF LAUWERS"},0,0,0,0,0,0,0,0,0,0,0,0,0,null,"JEF LAUWERS",{"$f":"' Aanwezigheden Invullen'!C19","v":0}]
[17,{"$f":"' Aanwezigheden Invullen'!B20","v":"PAULINE OLDE-BIJVANK"},0,0,0,0,0,0,0,0,0,0,0,0,0,null,"PAULINE OLDE-BIJVANK",{"$f":"' Aanwezigheden Invullen'!C20","v":0}]
[18,{"$f":"' Aanwezigheden Invullen'!B21","v":"GUY ELSLANDER"},5,13,0,5,13,0,13,2,1,1,23,28,-5,null,"GUY ELSLANDER",{"$f":"' Aanwezigheden Invullen'!C21","v":1}]
[19,{"$f":"' Aanwezigheden Invullen'!B22","v":"LIES VERHAEGHE"},0,13,0,13,5,1,3,13,0,1,16,31,-15,null,"LIES VERHAEGHE",{"$f":"' Aanwezigheden Invullen'!C22","v":1}]
[20,{"$f":"' Aanwezigheden Invullen'!B23","v":"PATRICK VEKEMANS"},6,13,0,12,13,0,12,13,0,0,30,39,-9,null,"PATRICK VEKEMANS",{"$f":"' Aanwezigheden Invullen'!C23","v":1}]
[21,{"$f":"' Aanwezigheden Invullen'!B24","v":"LILIANE MOSTIEN"},13,2,1,11,13,0,7,13,0,1,31,28,3,null,"LILIANE MOSTIEN",{"$f":"' Aanwezigheden Invullen'!C24","v":1}]
[22,{"$f":"' Aanwezigheden Invullen'!B25","v":"JEF CLONEN"},0,0,0,0,0,0,0,0,0,0,0,0,0,null,"JEF CLONEN",{"$f":"' Aanwezigheden Invullen'!C25","v":0}]
[23,{"$f":"' Aanwezigheden Invullen'!B26","v":"MARLEEN VAN DE WAETER"},9,13,0,13,11,1,13,10,1,2,35,34,1,null,"MARLEEN VAN DE WAETER",{"$f":"' Aanwezigheden Invullen'!C26","v":1}]
[24,{"$f":"' Aanwezigheden Invullen'!B27","v":"MAGGIE MAHIEU"},6,13,0,5,13,0,13,2,1,1,24,28,-4,null,"MAGGIE MAHIEU",{"$f":"' Aanwezigheden Invullen'!C27","v":1}]
[25,{"$f":"' Aanwezigheden Invullen'!B28","v":"GUY PEETERS"},0,0,0,0,0,0,0,0,0,0,0,0,0,null,"GUY PEETERS",{"$f":"' Aanwezigheden Invullen'!C28","v":0}]
[26,{"$f":"' Aanwezigheden Invullen'!B29","v":"LINDA MARES"},13,0,1,5,13,0,10,13,0,1,28,26,2,null,"LINDA MARES",{"$f":"' Aanwezigheden Invullen'!C29","v":1}]
[27,{"$f":"' Aanwezigheden Invullen'!B30","v":"JULIA DE WINTER"},6,13,0,5,13,0,13,12,1,1,24,38,-14,null,"JULIA DE WINTER",{"$f":"' Aanwezigheden Invullen'!C30","v":1}]
[28,{"$f":"' Aanwezigheden Invullen'!B31","v":"PAUL BOEYKENS"},4,13,0,13,5,1,13,7,1,2,30,25,5,null,"PAUL BOEYKENS",{"$f":"' Aanwezigheden Invullen'!C31","v":1}]
[29,{"$f":"' Aanwezigheden Invullen'!B32","v":"RITA LAURIJSSEN"},4,13,0,13,11,1,13,10,1,2,30,34,-4,null,"RITA LAURIJSSEN",{"$f":"' Aanwezigheden Invullen'!C32","v":1}]
[30,{"$f":"' Aanwezigheden Invullen'!B33","v":"MARCEL KESTENS"},0,0,0,0,0,0,0,0,0,0,0,0,0,null,"MARCEL KESTENS",{"$f":"' Aanwezigheden Invullen'!C33","v":0}]
[31,{"$f":"' Aanwezigheden Invullen'!B34","v":"PAUL VAN HOVE"},0,0,0,0,0,0,0,0,0,0,0,0,0,null,"PAUL VAN HOVE",{"$f":"' Aanwezigheden Invullen'!C34","v":0}]
[32,{"$f":"' Aanwezigheden Invullen'!B35","v":"TONY WILLAERT"},0,0,0,0,0,0,0,0,0,0,0,0,0,null,"TONY WILLAERT",{"$f":"' Aanwezigheden Invullen'!C35","v":0}]
[33,{"$f":"' Aanwezigheden Invullen'!B36","v":"RITA LEJON"},0,0,{"$f":"IF((C36>D36),1,0)","v":0},0,0,{"$f":"IF((F36>G36),1,0)","v":0},0,0,{"$f":"IF((I36>J36),1,0)","v":0},{"$f":"SUM(E36,H36,K36)","v":0},{"$f":"SUM(C36,F36,I36)","v":0},{"$f":"SUM(D36,G36,J36)","v":0},{"$f":"SUM((M36-N36))","v":0},null,{"$f":"B36","v":"RITA LEJON"},{"$f":"' Aanwezigheden Invullen'!C36","v":0}]
[34,{"$f":"' Aanwezigheden Invullen'!B37","v":"MARC VERMANT"},13,2,1,12,13,0,3,13,0,1,28,28,0,null,"MARC VERMANT",{"$f":"' Aanwezigheden Invullen'!C37","v":1}]
[35,{"$f":"' Aanwezigheden Invullen'!B38","v":"MYRIAM VERRYDT"},13,2,1,13,5,1,3,13,0,2,29,20,9,null,"MYRIAM VERRYDT",{"$f":"' Aanwezigheden Invullen'!C38","v":1}]
[36,{"$f":"' Aanwezigheden Invullen'!B39","v":"LUDO IELEGEMS"},0,0,0,0,0,0,0,0,0,0,0,0,0,null,"LUDO IELEGEMS",{"$f":"' Aanwezigheden Invullen'!C39","v":0}]
[37,{"$f":"' Aanwezigheden Invullen'!B40","v":"ANNE-MARIE KLEINJAN"},0,0,0,0,0,0,0,0,0,0,0,0,0,null,"ANNE-MARIE KLEINJAN",{"$f":"' Aanwezigheden Invullen'!C40","v":0}]
[38,{"$f":"' Aanwezigheden Invullen'!B41","v":"GRIET VERWIMP"},0,0,0,0,0,0,0,0,0,0,0,0,0,null,"GRIET VERWIMP",{"$f":"' Aanwezigheden Invullen'!C41","v":0}]
[39,{"$f":"' Aanwezigheden Invullen'!B42","v":"LUC VAN DEN BROECK"},13,5,1,5,13,0,13,3,1,2,31,21,10,null,"LUC VAN DEN BROECK",{"$f":"' Aanwezigheden Invullen'!C42","v":1}]
[40,{"$f":"' Aanwezigheden Invullen'!B43","v":"MONIQUE RUYMBEKE"},9,13,0,5,13,0,2,13,0,0,16,39,-23,null,"MONIQUE RUYMBEKE",{"$f":"' Aanwezigheden Invullen'!C43","v":1}]
[41,{"$f":"' Aanwezigheden Invullen'!B44","v":"JOS JANSSENS"},13,5,1,13,5,1,13,3,1,3,39,13,26,null,"JOS JANSSENS",{"$f":"' Aanwezigheden Invullen'!C44","v":1}]
[42,{"$f":"' Aanwezigheden Invullen'!B45","v":"MARIA RUTS"},10,13,0,13,5,1,13,12,1,2,36,30,6,null,"MARIA RUTS",{"$f":"' Aanwezigheden Invullen'!C45","v":1}]
[43,{"$f":"' Aanwezigheden Invullen'!B46","v":"PIERRE MEIR"},13,0,1,13,6,1,13,3,1,3,39,9,30,null,"PIERRE MEIR",{"$f":"' Aanwezigheden Invullen'!C46","v":1}]
[44,{"$f":"' Aanwezigheden Invullen'!B47","v":"PATTY MEEUSEN"},6,13,0,13,5,1,13,2,1,2,32,20,12,null,"PATTY MEEUSEN",{"$f":"' Aanwezigheden Invullen'!C47","v":1}]
[45,{"$f":"' Aanwezigheden Invullen'!B48","v":"TRISTAN WEYN"},0,0,0,0,0,0,0,0,0,0,0,0,0,null,"TRISTAN WEYN",{"$f":"' Aanwezigheden Invullen'!C48","v":0}]
[46,{"$f":"' Aanwezigheden Invullen'!B49","v":"CARINA LUYTEN"},0,0,0,0,0,0,0,0,0,0,0,0,0,null,"CARINA LUYTEN",{"$f":"' Aanwezigheden Invullen'!C49","v":0}]
[47,{"$f":"' Aanwezigheden Invullen'!B50","v":"ETIENNE BURM"},13,6,1,6,13,0,13,2,1,2,32,21,11,null,"ETIENNE BURM",{"$f":"' Aanwezigheden Invullen'!C50","v":1}]
[48,{"$f":"' Aanwezigheden Invullen'!B51","v":"LIEVE GEZELS"},9,13,0,13,11,1,2,13,0,1,24,37,-13,null,"LIEVE GEZELS",{"$f":"' Aanwezigheden Invullen'!C51","v":1}]
[49,{"$f":"' Aanwezigheden Invullen'!B52","v":"MARIA DE VRIENDT"},0,0,0,0,0,0,0,0,0,0,0,0,0,null,"MARIA DE VRIENDT",{"$f":"' Aanwezigheden Invullen'!C52","v":0}]
[50,{"$f":"' Aanwezigheden Invullen'!B53","v":"BOB OOMS"},10,13,0,11,13,0,13,12,1,1,34,38,-4,null,"BOB OOMS",{"$f":"' Aanwezigheden Invullen'!C53","v":1}]
[51,{"$f":"' Aanwezigheden Invullen'!B54","v":"ANNITA VAN LEUGENHAEGHE"},0,13,0,6,13,0,12,13,0,0,18,39,-21,null,"ANNITA VAN LEUGENHAEGHE",{"$f":"' Aanwezigheden Invullen'!C54","v":1}]
[52,{"$f":"' Aanwezigheden Invullen'!B55","v":"LUC VAN HAVER"},2,13,0,11,13,0,13,2,1,1,26,28,-2,null,"LUC VAN HAVER",{"$f":"' Aanwezigheden Invullen'!C55","v":1}]
[53,{"$f":"' Aanwezigheden Invullen'!B56","v":"BEA VERHAEGEN"},13,4,1,6,13,0,13,12,1,2,32,29,3,null,"BEA VERHAEGEN",{"$f":"' Aanwezigheden Invullen'!C56","v":1}]
[54,{"$f":"' Aanwezigheden Invullen'!B57","v":"RUDY VERACHTERT"},10,13,0,13,12,1,12,13,0,1,35,38,-3,null,"RUDY VERACHTERT",{"$f":"' Aanwezigheden Invullen'!C57","v":1}]
[55,{"$f":"' Aanwezigheden Invullen'!B58","v":"CORRY DE BIE"},5,13,0,13,11,1,2,13,0,1,20,37,-17,null,"CORRY DE BIE",{"$f":"' Aanwezigheden Invullen'!C58","v":1}]
[56,{"$f":"' Aanwezigheden Invullen'!B59","v":"NADINE BRACKE"},13,9,1,5,13,0,2,13,0,1,20,35,-15,null,"NADINE BRACKE",{"$f":"' Aanwezigheden Invullen'!C59","v":1}]
[57,{"$f":"' Aanwezigheden Invullen'!B60","v":"PATRICK VELDERS"},13,6,1,13,6,1,2,13,0,2,28,25,3,null,"PATRICK VELDERS",{"$f":"' Aanwezigheden Invullen'!C60","v":1}]
[58,{"$f":"' Aanwezigheden Invullen'!B61","v":"MARC DE REU"},0,0,0,0,0,0,0,0,0,0,0,0,0,null,"MARC DE REU",{"$f":"' Aanwezigheden Invullen'!C61","v":0}]
[59,{"$f":"' Aanwezigheden Invullen'!B62","v":"VIOLETTE GLANZ"},0,0,0,0,0,0,0,0,0,0,0,0,0,null,"VIOLETTE GLANZ",{"$f":"' Aanwezigheden Invullen'!C62","v":0}]
[60,{"$f":"' Aanwezigheden Invullen'!B63","v":"ROGER VAN DURME"},2,13,0,6,13,0,13,10,1,1,21,36,-15,null,"ROGER VAN DURME",{"$f":"' Aanwezigheden Invullen'!C63","v":1}]
[61,{"$f":"' Aanwezigheden Invullen'!B64","v":"JEAN TIJSMANS"},13,10,1,13,5,1,10,13,0,2,36,28,8,null,"JEAN TIJSMANS",{"$f":"' Aanwezigheden Invullen'!C64","v":1}]
[62,{"$f":"' Aanwezigheden Invullen'!B65","v":"ETIENNE VAN ROBBROECK"},13,6,1,13,6,1,10,13,0,2,36,25,11,null,"ETIENNE VAN ROBBROECK",{"$f":"' Aanwezigheden Invullen'!C65","v":1}]
[63,{"$f":"' Aanwezigheden Invullen'!B66","v":"PAULA VAN LINDEN"},2,13,0,13,6,1,10,13,0,1,25,32,-7,null,"PAULA VAN LINDEN",{"$f":"' Aanwezigheden Invullen'!C66","v":1}]
[64,{"$f":"' Aanwezigheden Invullen'!B67","v":"ERIK BOCKSTAL"},0,0,0,0,0,0,0,0,0,0,0,0,0,null,"ERIK BOCKSTAL",{"$f":"' Aanwezigheden Invullen'!C67","v":0}]
[65,{"$f":"' Aanwezigheden Invullen'!B68","v":"BRUNO HERREBOSCH"},13,10,{"$f":"IF((C68>D68),1,0)","v":1},13,12,{"$f":"IF((F68>G68),1,0)","v":1},12,13,{"$f":"IF((I68>J68),1,0)","v":0},{"$f":"SUM(E68,H68,K68)","v":2},{"$f":"SUM(C68,F68,I68)","v":38},{"$f":"SUM(D68,G68,J68)","v":35},{"$f":"SUM((M68-N68))","v":3},null,{"$f":"B68","v":"BRUNO HERREBOSCH"},{"$f":"' Aanwezigheden Invullen'!C68","v":1}]
[66,{"$f":"' Aanwezigheden Invullen'!B69","v":"MARC GOVAERS"},13,4,1,13,5,1,13,10,1,3,39,19,20,null,"MARC GOVAERS",{"$f":"' Aanwezigheden Invullen'!C69","v":1}]
[67,{"$f":"' Aanwezigheden Invullen'!B70","v":"NICOLE BAYARD"},6,13,0,12,13,0,7,13,0,0,25,39,-14,null,"NICOLE BAYARD",{"$f":"' Aanwezigheden Invullen'!C70","v":1}]
[68,{"$f":"' Aanwezigheden Invullen'!B71","v":"FRANK DE KINDER"},null,null,0,null,null,0,null,null,0,0,0,0,0,null,"FRANK DE KINDER",{"$f":"' Aanwezigheden Invullen'!C71","v":0}]
[69,{"$f":"' Aanwezigheden Invullen'!B72","v":"FRANS WOUTERS"},null,null,0,null,null,0,null,null,0,0,0,0,0,null,"FRANS WOUTERS",{"$f":"' Aanwezigheden Invullen'!C72","v":0}]
[70,{"$f":"' Aanwezigheden Invullen'!B73","v":"ANNE LOMBAERTS "},null,null,0,null,null,0,null,null,0,0,0,0,0,null,"ANNE LOMBAERTS ",{"$f":"' Aanwezigheden Invullen'!C73","v":0}]
[71,{"$f":"' Aanwezigheden Invullen'!B74","v":"FRIEDA HAESELDONCKX"},null,null,0,null,null,0,null,null,0,0,0,0,0,null,"FRIEDA HAESELDONCKX",{"$f":"' Aanwezigheden Invullen'!C74","v":0}]
[72,{"$f":"' Aanwezigheden Invullen'!B75","v":"CHRIS DE RAEYMAEKER"},null,null,0,null,null,0,null,null,0,0,0,0,0,null,"CHRIS DE RAEYMAEKER",{"$f":"' Aanwezigheden Invullen'!C75","v":0}]
[73,{"$f":"' Aanwezigheden Invullen'!B76","v":"WIS VAN DINGENEN"},null,null,0,null,null,0,null,null,0,0,0,0,0,null,"WIS VAN DINGENEN",{"$f":"' Aanwezigheden Invullen'!C76","v":0}]
[74,{"$f":"' Aanwezigheden Invullen'!B77","v":"RENEE COPPENS"},null,null,0,null,null,0,null,null,0,0,0,0,0,null,"RENEE COPPENS",{"$f":"' Aanwezigheden Invullen'!C77","v":0}]
[75,{"$f":"' Aanwezigheden Invullen'!B78","v":0},null,null,0,null,null,0,null,null,0,0,0,0,0,null,0,{"$f":"' Aanwezigheden Invullen'!C78","v":0}]
[76,{"$f":"' Aanwezigheden Invullen'!B79","v":0},null,null,0,null,null,0,null,null,0,0,0,0,0,null,0,{"$f":"' Aanwezigheden Invullen'!C79","v":0}]
[77,{"$f":"' Aanwezigheden Invullen'!B80","v":0},null,null,0,null,null,0,null,null,0,0,0,0,0,null,0,{"$f":"' Aanwezigheden Invullen'!C80","v":0}]
[78,{"$f":"' Aanwezigheden Invullen'!B81","v":0},null,null,0,null,null,0,null,null,0,0,0,0,0,null,0,{"$f":"' Aanwezigheden Invullen'!C81","v":0}]
[79,{"$f":"' Aanwezigheden Invullen'!B82","v":0},null,null,0,null,null,0,null,null,0,0,0,0,0,null,0,{"$f":"' Aanwezigheden Invullen'!C82","v":0}]
[80,{"$f":"' Aanwezigheden Invullen'!B83","v":0},null,null,0,null,null,0,null,null,0,0,0,0,0,null,0,{"$f":"' Aanwezigheden Invullen'!C83","v":0}]
[81,{"$f":"' Aanwezigheden Invullen'!B84","v":0},null,null,0,null,null,0,null,null,0,0,0,0,0,null,0,{"$f":"' Aanwezigheden Invullen'!C84","v":0}]
[82,{"$f":"' Aanwezigheden Invullen'!B85","v":0},null,null,0,null,null,0,null,null,0,0,0,0,0,null,0,{"$f":"' Aanwezigheden Invullen'!C85","v":0}]
[83,{"$f":"' Aanwezigheden Invullen'!B86","v":0},null,null,0,null,null,0,null,null,0,0,0,0,0,null,0,{"$f":"' Aanwezigheden Invullen'!C86","v":0}]
[84,{"$f":"' Aanwezigheden Invullen'!B87","v":0},null,null,0,null,null,0,null,null,0,0,0,0,0,null,0,{"$f":"' Aanwezigheden Invullen'!C87","v":0}]
[85,{"$f":"' Aanwezigheden Invullen'!B88","v":0},null,null,0,null,null,0,null,null,0,0,0,0,0,null,0,{"$f":"' Aanwezigheden Invullen'!C88","v":0}]
[86,{"$f":"' Aanwezigheden Invullen'!B89","v":0},null,null,0,null,null,0,null,null,0,0,0,0,0,null,0,{"$f":"' Aanwezigheden Invullen'!C89","v":0}]
[87,{"$f":"' Aanwezigheden Invullen'!B90","v":0},null,null,0,null,null,0,null,null,0,0,0,0,0,null,0,{"$f":"' Aanwezigheden Invullen'!C90","v":0}]
[88,{"$f":"' Aanwezigheden Invullen'!B91","v":0},null,null,{"$f":"IF((C91>D91),1,0)","v":0},null,null,{"$f":"IF((F91>G91),1,0)","v":0},null,null,{"$f":"IF((I91>J91),1,0)","v":0},{"$f":"SUM(E91,H91,K91)","v":0},{"$f":"SUM(C91,F91,I91)","v":0},{"$f":"SUM(D91,G91,J91)","v":0},{"$f":"SUM((M91-N91))","v":0},null,{"$f":"B91","v":0},{"$f":"' Aanwezigheden Invullen'!C91","v":0}]
[89,{"$f":"' Aanwezigheden Invullen'!B92","v":0},null,null,0,null,null,0,null,null,0,0,0,0,0,null,0,{"$f":"' Aanwezigheden Invullen'!C92","v":0}]
[90,{"$f":"' Aanwezigheden Invullen'!B93","v":0},null,null,0,null,null,0,null,null,0,0,0,0,0,null,0,{"$f":"' Aanwezigheden Invullen'!C93","v":0}]
[91,{"$f":"' Aanwezigheden Invullen'!B94","v":0},null,null,0,null,null,0,null,null,0,0,0,0,0,null,0,{"$f":"' Aanwezigheden Invullen'!C94","v":0}]
[92,{"$f":"' Aanwezigheden Invullen'!B95","v":0},null,null,0,null,null,0,null,null,0,0,0,0,0,null,0,{"$f":"' Aanwezigheden Invullen'!C95","v":0}]
[93,{"$f":"' Aanwezigheden Invullen'!B96","v":0},null,null,0,null,null,0,null,null,0,0,0,0,0,null,0,{"$f":"' Aanwezigheden Invullen'!C96","v":0}]
[94,{"$f":"' Aanwezigheden Invullen'!B97","v":0},null,null,0,null,null,0,null,null,0,0,0,0,0,null,0,{"$f":"' Aanwezigheden Invullen'!C97","v":0}]
[95,{"$f":"' Aanwezigheden Invullen'!B98","v":0},null,null,0,null,null,0,null,null,0,0,0,0,0,null,0,{"$f":"' Aanwezigheden Invullen'!C98","v":0}]
[96,{"$f":"' Aanwezigheden Invullen'!B99","v":0},null,null,0,null,null,0,null,null,0,0,0,0,0,null,0,{"$f":"' Aanwezigheden Invullen'!C99","v":0}]
[97,{"$f":"' Aanwezigheden Invullen'!B100","v":0},null,null,0,null,null,0,null,null,0,0,0,0,0,null,0,{"$f":"' Aanwezigheden Invullen'!C100","v":0}]
[98,{"$f":"' Aanwezigheden Invullen'!B101","v":0},null,null,0,null,null,0,null,null,0,0,0,0,0,null,0,{"$f":"' Aanwezigheden Invullen'!C101","v":0}]
[99,{"$f":"' Aanwezigheden Invullen'!B102","v":0},null,null,0,null,null,0,null,null,0,0,0,0,0,null,0,{"$f":"' Aanwezigheden Invullen'!C102","v":0}]
[100,{"$f":"' Aanwezigheden Invullen'!B103","v":0},null,null,0,null,null,0,null,null,0,0,0,0,0,null,0,{"$f":"' Aanwezigheden Invullen'!C103","v":0}]
[101,{"$f":"' Aanwezigheden Invullen'!B104","v":0},null,null,0,null,null,0,null,null,0,0,0,0,0,null,0,{"$f":"' Aanwezigheden Invullen'!C104","v":0}]
[102,{"$f":"' Aanwezigheden Invullen'!B105","v":0},null,null,0,null,null,0,null,null,0,0,0,0,0,null,0,{"$f":"' Aanwezigheden Invullen'!C105","v":0}]
[103,{"$f":"' Aanwezigheden Invullen'!B106","v":0},null,null,0,null,null,0,null,null,0,0,0,0,0,null,0,{"$f":"' Aanwezigheden Invullen'!C106","v":0}]
[104,{"$f":"' Aanwezigheden Invullen'!B107","v":0},null,null,0,null,null,0,null,null,0,0,0,0,0,null,0,{"$f":"' Aanwezigheden Invullen'!C107","v":0}]
[105,{"$f":"' Aanwezigheden Invullen'!B108","v":0},null,null,0,null,null,0,null,null,0,0,0,0,0,null,0,{"$f":"' Aanwezigheden Invullen'!C108","v":0}]
[106,{"$f":"' Aanwezigheden Invullen'!B109","v":0},null,null,0,null,null,0,null,null,0,0,0,0,0,null,0,{"$f":"' Aanwezigheden Invullen'!C109","v":0}]
[107,{"$f":"' Aanwezigheden Invullen'!B110","v":0},null,null,0,null,null,0,null,null,0,0,0,0,0,null,0,{"$f":"' Aanwezigheden Invullen'!C110","v":0}]
[108,{"$f":"' Aanwezigheden Invullen'!B111","v":0},null,null,0,null,null,0,null,null,0,0,0,0,0,null,0,{"$f":"' Aanwezigheden Invullen'!C111","v":0}]
[109,{"$f":"' Aanwezigheden Invullen'!B112","v":0},null,null,0,null,null,0,null,null,0,0,0,0,0,null,0,{"$f":"' Aanwezigheden Invullen'!C112","v":0}]
[110,{"$f":"' Aanwezigheden Invullen'!B113","v":0},null,null,0,null,null,0,null,null,0,0,0,0,0,null,0,{"$f":"' Aanwezigheden Invullen'!C113","v":0}]

{"sheet":"RESULTAAT WOMMELGEM","index":6,"n_rows":113,"n_cols":18,"rows_kept":113,"cut":false,"hidden":false,"merged":[]}
[null,"deelnemers",null,null,"KBC PETANQUETORNOOI",null,null,null,null,null,null,"WOMMELGEM",null,null,null,null,"2019-06-25"]
[null,{"$f":"' Aanwezigheden Invullen'!D116","v":33},"1ste Ronde",null,null,"2de Ronde",null,null,"3de Ronde",null,null,"Gew",null,null,"Totaal",null,"RESULTAAT"]
["Nr","Naam","voor","tegen","Gew","voor","tegen","Gew","voor","tegen","Gew","Totaal","voor ","tegen","saldo","rang","Naam","Aanwezig"]
[1,{"$f":"' Aanwezigheden Invullen'!B4","v":"JAN VAN BERCKELAER"},13,3,{"$f":"IF((C4>D4),1,0)","v":1},13,7,{"$f":"IF((F4>G4),1,0)","v":1},7,13,{"$f":"IF((I4>J4),1,0)","v":0},{"$f":"SUM(E4,H4,K4)","v":2},{"$f":"SUM(C4,F4,I4)","v":33},{"$f":"SUM(D4,G4,J4)","v":23},{"$f":"SUM((M4-N4))","v":10},null,{"$f":"B4","v":"JAN VAN BERCKELAER"},{"$f":"' Aanwezigheden Invullen'!D4","v":1}]
[2,{"$f":"' Aanwezigheden Invullen'!B5","v":"CLAIRE VERMEULEN"},13,9,1,1,13,0,13,9,1,{"$f":"SUM(E5,H5,K5)","v":2},{"$f":"SUM(C5,F5,I5)","v":27},{"$f":"SUM(D5,G5,J5)","v":31},-4,null,{"$f":"B5","v":"CLAIRE VERMEULEN"},{"$f":"' Aanwezigheden Invullen'!D5","v":1}]
[3,{"$f":"' Aanwezigheden Invullen'!B6","v":"MARC ARTS"},0,0,0,0,0,0,0,0,0,0,0,0,0,null,{"$f":"B6","v":"MARC ARTS"},{"$f":"' Aanwezigheden Invullen'!D6","v":0}]
[4,{"$f":"' Aanwezigheden Invullen'!B7","v":"ERNEST BOMANS"},0,0,0,0,0,{"$f":"IF((F7>G7),1,0)","v":0},0,0,0,0,0,0,0,null,"ERNEST BOMANS",{"$f":"' Aanwezigheden Invullen'!D7","v":0}]
[5,{"$f":"' Aanwezigheden Invullen'!B8","v":"VERA LEYSEN"},0,0,0,0,0,0,0,0,0,0,0,0,0,null,"VERA LEYSEN",{"$f":"' Aanwezigheden Invullen'!D8","v":0}]
[6,{"$f":"' Aanwezigheden Invullen'!B9","v":"WILLY HEMELS"},0,0,0,0,0,0,0,0,0,0,0,0,0,null,"WILLY HEMELS",{"$f":"' Aanwezigheden Invullen'!D9","v":0}]
[7,{"$f":"' Aanwezigheden Invullen'!B10","v":"ALAIN SPIRON"},0,0,0,0,0,0,0,0,0,0,0,0,0,null,"ALAIN SPIRON",{"$f":"' Aanwezigheden Invullen'!D10","v":0}]
[8,{"$f":"' Aanwezigheden Invullen'!B11","v":"PAUL VAN OECKEL"},0,0,0,0,0,0,0,0,0,0,0,0,0,null,"PAUL VAN OECKEL",{"$f":"' Aanwezigheden Invullen'!D11","v":0}]
[9,{"$f":"' Aanwezigheden Invullen'!B12","v":"RITA NAGELS"},0,0,0,0,0,0,0,0,0,0,0,0,0,null,"RITA NAGELS",{"$f":"' Aanwezigheden Invullen'!D12","v":0}]
[10,{"$f":"' Aanwezigheden Invullen'!B13","v":"ROGER LENAERTS"},13,3,1,13,1,1,4,13,0,2,30,17,13,null,"ROGER LENAERTS",{"$f":"' Aanwezigheden Invullen'!D13","v":1}]
[11,{"$f":"' Aanwezigheden Invullen'!B14","v":"ROGER WOUTERS"},0,0,0,0,0,0,0,0,0,0,0,0,0,null,"ROGER WOUTERS",{"$f":"' Aanwezigheden Invullen'!D14","v":0}]
[12,{"$f":"' Aanwezigheden Invullen'!B15","v":"AN VAN DER GUCHT"},0,0,0,0,0,0,0,0,0,0,0,0,0,null,"AN VAN DER GUCHT",{"$f":"' Aanwezigheden Invullen'!D15","v":0}]
[13,{"$f":"' Aanwezigheden Invullen'!B16","v":"MARC DELVAUX"},0,0,0,0,0,0,0,0,0,0,0,0,0,null,"MARC DELVAUX",{"$f":"' Aanwezigheden Invullen'!D16","v":0}]
[14,{"$f":"' Aanwezigheden Invullen'!B17","v":"FONS NICOLAY"},13,1,1,12,13,0,13,10,1,2,38,24,14,null,"FONS NICOLAY",{"$f":"' Aanwezigheden Invullen'!D17","v":1}]
[15,{"$f":"' Aanwezigheden Invullen'!B18","v":"LILIANE LAURIJSSEN"},3,13,0,13,5,1,9,13,0,1,25,31,-6,null,"LILIANE LAURIJSSEN",{"$f":"' Aanwezigheden Invullen'!D18","v":1}]
[16,{"$f":"' Aanwezigheden Invullen'!B19","v":"JEF LAUWERS"},0,0,0,0,0,0,0,0,0,0,0,0,0,null,"JEF LAUWERS",{"$f":"' Aanwezigheden Invullen'!D19","v":0}]
[17,{"$f":"' Aanwezigheden Invullen'!B20","v":"PAULINE OLDE-BIJVANK"},0,0,0,0,0,0,0,0,0,0,0,0,0,null,"PAULINE OLDE-BIJVANK",{"$f":"' Aanwezigheden Invullen'!D20","v":0}]
[18,{"$f":"' Aanwezigheden Invullen'!B21","v":"GUY ELSLANDER"},0,0,0,0,0,0,0,0,0,0,0,0,0,null,"GUY ELSLANDER",{"$f":"' Aanwezigheden Invullen'!D21","v":0}]
[19,{"$f":"' Aanwezigheden Invullen'!B22","v":"LIES VERHAEGHE"},0,0,0,0,0,0,0,0,0,0,0,0,0,null,"LIES VERHAEGHE",{"$f":"' Aanwezigheden Invullen'!D22","v":0}]
[20,{"$f":"' Aanwezigheden Invullen'!B23","v":"PATRICK VEKEMANS"},5,13,0,13,1,1,13,10,1,2,31,24,7,null,"PATRICK VEKEMANS",{"$f":"' Aanwezigheden Invullen'!D23","v":1}]
[21,{"$f":"' Aanwezigheden Invullen'!B24","v":"LILIANE MOSTIEN"},13,7,1,7,13,0,13,4,1,2,33,24,9,null,"LILIANE MOSTIEN",{"$f":"' Aanwezigheden Invullen'!D24","v":1}]
[22,{"$f":"' Aanwezigheden Invullen'!B25","v":"JEF CLONEN"},0,0,0,0,0,0,0,0,0,0,0,0,0,null,"JEF CLONEN",{"$f":"' Aanwezigheden Invullen'!D25","v":0}]
[23,{"$f":"' Aanwezigheden Invullen'!B26","v":"MARLEEN VAN DE WAETER"},10,13,0,13,12,1,4,13,0,1,27,38,-11,null,"MARLEEN VAN DE WAETER",{"$f":"' Aanwezigheden Invullen'!D26","v":1}]
[24,{"$f":"' Aanwezigheden Invullen'!B27","v":"MAGGIE MAHIEU"},13,9,1,12,13,0,9,13,0,1,34,35,-1,null,"MAGGIE MAHIEU",{"$f":"' Aanwezigheden Invullen'!D27","v":1}]
[25,{"$f":"' Aanwezigheden Invullen'!B28","v":"GUY PEETERS"},13,5,1,13,12,1,9,13,0,2,35,30,5,null,"GUY PEETERS",{"$f":"' Aanwezigheden Invullen'!D28","v":1}]
[26,{"$f":"' Aanwezigheden Invullen'!B29","v":"LINDA MARES"},13,7,1,13,7,1,10,13,0,2,36,27,9,null,"LINDA MARES",{"$f":"' Aanwezigheden Invullen'!D29","v":1}]
[27,{"$f":"' Aanwezigheden Invullen'!B30","v":"JULIA DE WINTER"},0,0,0,0,0,0,0,0,0,0,0,0,0,null,"JULIA DE WINTER",{"$f":"' Aanwezigheden Invullen'!D30","v":0}]
[28,{"$f":"' Aanwezigheden Invullen'!B31","v":"PAUL BOEYKENS"},13,5,1,13,7,1,13,7,1,3,39,19,20,null,"PAUL BOEYKENS",{"$f":"' Aanwezigheden Invullen'!D31","v":1}]
[29,{"$f":"' Aanwezigheden Invullen'!B32","v":"RITA LAURIJSSEN"},7,13,0,13,7,1,6,13,0,1,26,33,-7,null,"RITA LAURIJSSEN",{"$f":"' Aanwezigheden Invullen'!D32","v":1}]
[30,{"$f":"' Aanwezigheden Invullen'!B33","v":"MARCEL KESTENS"},0,0,0,0,0,0,0,0,0,0,0,0,0,null,"MARCEL KESTENS",{"$f":"' Aanwezigheden Invullen'!D33","v":0}]
[31,{"$f":"' Aanwezigheden Invullen'!B34","v":"PAUL VAN HOVE"},0,0,0,0,0,0,0,0,0,0,0,0,0,null,"PAUL VAN HOVE",{"$f":"' Aanwezigheden Invullen'!D34","v":0}]
[32,{"$f":"' Aanwezigheden Invullen'!B35","v":"TONY WILLAERT"},0,0,0,0,0,0,0,0,0,0,0,0,0,null,"TONY WILLAERT",{"$f":"' Aanwezigheden Invullen'!D35","v":0}]
[33,{"$f":"' Aanwezigheden Invullen'!B36","v":"RITA LEJON"},0,0,0,0,0,0,0,0,0,0,0,0,0,null,"RITA LEJON",{"$f":"' Aanwezigheden Invullen'!D36","v":0}]
[34,{"$f":"' Aanwezigheden Invullen'!B37","v":"MARC VERMANT"},3,13,0,13,5,1,6,13,0,1,22,31,-9,null,"MARC VERMANT",{"$f":"' Aanwezigheden Invullen'!D37","v":1}]
[35,{"$f":"' Aanwezigheden Invullen'!B38","v":"MYRIAM VERRYDT"},1,13,0,13,7,1,10,13,0,1,24,33,-9,null,"MYRIAM VERRYDT",{"$f":"' Aanwezigheden Invullen'!D38","v":1}]
[36,{"$f":"' Aanwezigheden Invullen'!B39","v":"LUDO IELEGEMS"},0,0,0,0,0,0,0,0,0,0,0,0,0,null,"LUDO IELEGEMS",{"$f":"' Aanwezigheden Invullen'!D39","v":0}]
[37,{"$f":"' Aanwezigheden Invullen'!B40","v":"ANNE-MARIE KLEINJAN"},0,0,0,0,0,0,0,0,0,0,0,0,0,null,"ANNE-MARIE KLEINJAN",{"$f":"' Aanwezigheden Invullen'!D40","v":0}]
[38,{"$f":"' Aanwezigheden Invullen'!B41","v":"GRIET VERWIMP"},0,0,0,0,0,0,0,0,0,0,0,0,0,null,"GRIET VERWIMP",{"$f":"' Aanwezigheden Invullen'!D41","v":0}]
[39,{"$f":"' Aanwezigheden Invullen'!B42","v":"LUC VAN DEN BROECK"},5,13,0,5,13,0,7,13,0,0,17,39,-22,null,"LUC VAN DEN BROECK",{"$f":"' Aanwezigheden Invullen'!D42","v":1}]
[40,{"$f":"' Aanwezigheden Invullen'!B43","v":"MONIQUE RUYMBEKE"},13,3,1,7,13,0,7,13,0,1,27,29,-2,null,"MONIQUE RUYMBEKE",{"$f":"' Aanwezigheden Invullen'!D43","v":1}]
[41,{"$f":"' Aanwezigheden Invullen'!B44","v":"JOS JANSSENS"},7,13,0,1,13,0,10,13,0,0,18,39,-21,null,"JOS JANSSENS",{"$f":"' Aanwezigheden Invullen'!D44","v":1}]
[42,{"$f":"' Aanwezigheden Invullen'!B45","v":"MARIA RUTS"},10,13,0,7,13,0,13,6,1,1,30,32,-2,null,"MARIA RUTS",{"$f":"' Aanwezigheden Invullen'!D45","v":1}]
[43,{"$f":"' Aanwezigheden Invullen'!B46","v":"PIERRE MEIR"},13,1,1,13,1,1,13,6,1,3,39,8,31,null,"PIERRE MEIR",{"$f":"' Aanwezigheden Invullen'!D46","v":1}]
[44,{"$f":"' Aanwezigheden Invullen'!B47","v":"PATTY MEEUSEN"},13,10,1,1,13,0,10,13,0,1,24,36,-12,null,"PATTY MEEUSEN",{"$f":"' Aanwezigheden Invullen'!D47","v":1}]
[45,{"$f":"' Aanwezigheden Invullen'!B48","v":"TRISTAN WEYN"},0,0,{"$f":"IF((C48>D48),1,0)","v":0},0,0,{"$f":"IF((F48>G48),1,0)","v":0},0,0,{"$f":"IF((I48>J48),1,0)","v":0},0,0,0,{"$f":"SUM((M48-N48))","v":0},null,"TRISTAN WEYN",{"$f":"' Aanwezigheden Invullen'!D48","v":0}]
[46,{"$f":"' Aanwezigheden Invullen'!B49","v":"CARINA LUYTEN"},0,0,0,0,0,0,0,0,0,0,0,0,0,null,"CARINA LUYTEN",{"$f":"' Aanwezigheden Invullen'!D49","v":0}]
[47,{"$f":"' Aanwezigheden Invullen'!B50","v":"ETIENNE BURM"},0,0,0,0,0,0,0,0,0,0,0,0,0,null,"ETIENNE BURM",{"$f":"' Aanwezigheden Invullen'!D50","v":0}]
[48,{"$f":"' Aanwezigheden Invullen'!B51","v":"LIEVE GEZELS"},0,0,0,0,0,0,0,0,0,0,0,0,0,null,"LIEVE GEZELS",{"$f":"' Aanwezigheden Invullen'!D51","v":0}]
[49,{"$f":"' Aanwezigheden Invullen'!B52","v":"MARIA DE VRIENDT"},0,0,0,0,0,0,0,0,0,0,0,0,0,null,"MARIA DE VRIENDT",{"$f":"' Aanwezigheden Invullen'!D52","v":0}]
[50,{"$f":"' Aanwezigheden Invullen'!B53","v":"BOB OOMS"},1,13,0,11,13,0,13,4,1,1,25,30,-5,null,"BOB OOMS",{"$f":"' Aanwezigheden Invullen'!D53","v":1}]
[51,{"$f":"' Aanwezigheden Invullen'!B54","v":"ANNITA VAN LEUGENHAEGHE"},13,10,{"$f":"IF((C54>D54),1,0)","v":1},13,7,{"$f":"IF((F54>G54),1,0)","v":1},13,10,{"$f":"IF((I54>J54),1,0)","v":1},3,39,27,{"$f":"SUM((M54-N54))","v":12},null,"ANNITA VAN LEUGENHAEGHE",{"$f":"' Aanwezigheden Invullen'!D54","v":1}]
[52,{"$f":"' Aanwezigheden Invullen'!B55","v":"LUC VAN HAVER"},0,0,0,0,0,0,0,0,0,0,0,0,0,null,"LUC VAN HAVER",{"$f":"' Aanwezigheden Invullen'!D55","v":0}]
[53,{"$f":"' Aanwezigheden Invullen'!B56","v":"BEA VERHAEGEN"},0,0,0,0,0,0,0,0,0,0,0,0,0,null,"BEA VERHAEGEN",{"$f":"' Aanwezigheden Invullen'!D56","v":0}]
[54,{"$f":"' Aanwezigheden Invullen'!B57","v":"RUDY VERACHTERT"},0,0,0,0,0,0,0,0,0,0,0,0,0,null,"RUDY VERACHTERT",{"$f":"' Aanwezigheden Invullen'!D57","v":0}]
[55,{"$f":"' Aanwezigheden Invullen'!B58","v":"CORRY DE BIE"},0,0,0,0,0,0,0,0,0,0,0,0,0,null,"CORRY DE BIE",{"$f":"' Aanwezigheden Invullen'!D58","v":0}]
[56,{"$f":"' Aanwezigheden Invullen'!B59","v":"NADINE BRACKE"},0,0,0,0,0,0,0,0,0,0,0,0,0,null,"NADINE BRACKE",{"$f":"' Aanwezigheden Invullen'!D59","v":0}]
[57,{"$f":"' Aanwezigheden Invullen'!B60","v":"PATRICK VELDERS"},0,0,0,0,0,0,0,0,0,0,0,0,0,null,"PATRICK VELDERS",{"$f":"' Aanwezigheden Invullen'!D60","v":0}]
[58,{"$f":"' Aanwezigheden Invullen'!B61","v":"MARC DE REU"},13,7,1,13,11,1,13,9,1,3,39,27,12,null,"MARC DE REU",{"$f":"' Aanwezigheden Invullen'!D61","v":1}]
[59,{"$f":"' Aanwezigheden Invullen'!B62","v":"VIOLETTE GLANZ"},3,13,0,13,12,1,13,10,1,2,29,35,-6,null,"VIOLETTE GLANZ",{"$f":"' Aanwezigheden Invullen'!D62","v":1}]
[60,{"$f":"' Aanwezigheden Invullen'!B63","v":"ROGER VAN DURME"},9,13,0,13,5,1,13,9,1,2,35,27,8,null,"ROGER VAN DURME",{"$f":"' Aanwezigheden Invullen'!D63","v":1}]
[61,{"$f":"' Aanwezigheden Invullen'!B64","v":"JEAN TIJSMANS"},13,10,1,5,13,0,13,6,1,2,31,29,2,null,"JEAN TIJSMANS",{"$f":"' Aanwezigheden Invullen'!D64","v":1}]
[62,{"$f":"' Aanwezigheden Invullen'!B65","v":"ETIENNE VAN ROBBROECK"},13,5,{"$f":"IF((C65>D65),1,0)","v":1},13,11,{"$f":"IF((F65>G65),1,0)","v":1},13,10,{"$f":"IF((I65>J65),1,0)","v":1},3,39,26,{"$f":"SUM((M65-N65))","v":13},null,{"$f":"B65","v":"ETIENNE VAN ROBBROECK"},{"$f":"' Aanwezigheden Invullen'!D65","v":1}]
[63,{"$f":"' Aanwezigheden Invullen'!B66","v":"PAULA VAN LINDEN"},9,13,0,7,13,0,6,13,0,0,22,39,-17,null,"PAULA VAN LINDEN",{"$f":"' Aanwezigheden Invullen'!D66","v":1}]
[64,{"$f":"' Aanwezigheden Invullen'!B67","v":"ERIK BOCKSTAL"},0,0,0,0,0,0,0,0,0,0,0,0,0,null,"ERIK BOCKSTAL",{"$f":"' Aanwezigheden Invullen'!D67","v":0}]
[65,{"$f":"' Aanwezigheden Invullen'!B68","v":"BRUNO HERREBOSCH"},13,9,1,11,13,0,13,7,1,2,37,29,8,null,"BRUNO HERREBOSCH",{"$f":"' Aanwezigheden Invullen'!D68","v":1}]
[66,{"$f":"' Aanwezigheden Invullen'!B69","v":"MARC GOVAERS"},0,0,0,0,0,0,0,0,0,{"$f":"SUM(E69,H69,K69)","v":0},{"$f":"SUM(C69,F69,I69)","v":0},{"$f":"SUM(D69,G69,J69)","v":0},0,null,"MARC GOVAERS",{"$f":"' Aanwezigheden Invullen'!D69","v":0}]
[67,{"$f":"' Aanwezigheden Invullen'!B70","v":"NICOLE BAYARD"},0,0,0,0,0,0,0,0,0,0,0,0,0,null,"NICOLE BAYARD",{"$f":"' Aanwezigheden Invullen'!D70","v":0}]
[68,{"$f":"' Aanwezigheden Invullen'!B71","v":"FRANK DE KINDER"},10,13,0,7,13,0,13,7,1,1,30,33,-3,null,"FRANK DE KINDER",{"$f":"' Aanwezigheden Invullen'!D71","v":1}]
[69,{"$f":"' Aanwezigheden Invullen'!B72","v":"FRANS WOUTERS"},5,13,{"$f":"IF((C72>D72),1,0)","v":0},5,13,{"$f":"IF((F72>G72),1,0)","v":0},10,13,{"$f":"IF((I72>J72),1,0)","v":0},0,20,39,{"$f":"SUM((M72-N72))","v":-19},null,{"$f":"B72","v":"FRANS WOUTERS"},{"$f":"' Aanwezigheden Invullen'!D72","v":1}]
[70,{"$f":"' Aanwezigheden Invullen'!B73","v":"ANNE LOMBAERTS "},9,13,{"$f":"IF((C73>D73),1,0)","v":0},7,13,{"$f":"IF((F73>G73),1,0)","v":0},13,4,{"$f":"IF((I73>J73),1,0)","v":1},1,29,30,{"$f":"SUM((M73-N73))","v":-1},null,{"$f":"B73","v":"ANNE LOMBAERTS "},{"$f":"' Aanwezigheden Invullen'!D73","v":1}]
[71,{"$f":"' Aanwezigheden Invullen'!B74","v":"FRIEDA HAESELDONCKX"},null,null,{"$f":"IF((C74>D74),1,0)","v":0},null,null,{"$f":"IF((F74>G74),1,0)","v":0},null,null,{"$f":"IF((I74>J74),1,0)","v":0},0,0,0,{"$f":"SUM((M74-N74))","v":0},null,{"$f":"B74","v":"FRIEDA HAESELDONCKX"},{"$f":"' Aanwezigheden Invullen'!D74","v":0}]
[72,{"$f":"' Aanwezigheden Invullen'!B75","v":"CHRIS DE RAEYMAEKER"},null,null,0,null,null,0,null,null,0,0,0,0,0,null,"CHRIS DE RAEYMAEKER",{"$f":"' Aanwezigheden Invullen'!D75","v":0}]
[73,{"$f":"' Aanwezigheden Invullen'!B76","v":"WIS VAN DINGENEN"},null,null,0,null,null,0,null,null,0,0,0,0,0,null,"WIS VAN DINGENEN",{"$f":"' Aanwezigheden Invullen'!D76","v":0}]
[74,{"$f":"' Aanwezigheden Invullen'!B77","v":"RENEE COPPENS"},null,null,0,null,null,0,null,null,0,0,0,0,0,null,"RENEE COPPENS",{"$f":"' Aanwezigheden Invullen'!D77","v":0}]
[75,{"$f":"' Aanwezigheden Invullen'!B78","v":0},null,null,0,null,null,0,null,null,0,0,0,0,0,null,0,{"$f":"' Aanwezigheden Invullen'!D78","v":0}]
[76,{"$f":"' Aanwezigheden Invullen'!B79","v":0},null,null,0,null,null,0,null,null,0,0,0,0,0,null,0,{"$f":"' Aanwezigheden Invullen'!D79","v":0}]
[77,{"$f":"' Aanwezigheden Invullen'!B80","v":0},null,null,0,null,null,0,null,null,0,0,0,0,0,null,0,{"$f":"' Aanwezigheden Invullen'!D80","v":0}]
[78,{"$f":"' Aanwezigheden Invullen'!B81","v":0},null,null,0,null,null,0,null,null,0,0,0,0,0,null,0,{"$f":"' Aanwezigheden Invullen'!D81","v":0}]
[79,{"$f":"' Aanwezigheden Invullen'!B82","v":0},null,null,0,null,null,0,null,null,0,0,0,0,0,null,0,{"$f":"' Aanwezigheden Invullen'!D82","v":0}]
[80,{"$f":"' Aanwezigheden Invullen'!B83","v":0},null,null,0,null,null,0,null,null,0,0,0,0,0,null,0,{"$f":"' Aanwezigheden Invullen'!D83","v":0}]
[81,{"$f":"' Aanwezigheden Invullen'!B84","v":0},null,null,0,null,null,0,null,null,0,0,0,0,0,null,0,{"$f":"' Aanwezigheden Invullen'!D84","v":0}]
[82,{"$f":"' Aanwezigheden Invullen'!B85","v":0},null,null,0,null,null,0,null,null,0,0,0,0,0,null,0,{"$f":"' Aanwezigheden Invullen'!D85","v":0}]
[83,{"$f":"' Aanwezigheden Invullen'!B86","v":0},null,null,0,null,null,0,null,null,0,0,0,0,0,null,0,{"$f":"' Aanwezigheden Invullen'!D86","v":0}]
[84,{"$f":"' Aanwezigheden Invullen'!B87","v":0},null,null,0,null,null,0,null,null,0,0,0,0,0,null,0,{"$f":"' Aanwezigheden Invullen'!D87","v":0}]
[85,{"$f":"' Aanwezigheden Invullen'!B88","v":0},null,null,0,null,null,0,null,null,0,0,0,0,0,null,0,{"$f":"' Aanwezigheden Invullen'!D88","v":0}]
[86,{"$f":"' Aanwezigheden Invullen'!B89","v":0},null,null,0,null,null,0,null,null,0,0,0,0,0,null,0,{"$f":"' Aanwezigheden Invullen'!D89","v":0}]
[87,{"$f":"' Aanwezigheden Invullen'!B90","v":0},null,null,0,null,null,0,null,null,0,0,0,0,0,null,0,{"$f":"' Aanwezigheden Invullen'!D90","v":0}]
[88,{"$f":"' Aanwezigheden Invullen'!B91","v":0},null,null,{"$f":"IF((C91>D91),1,0)","v":0},null,null,{"$f":"IF((F91>G91),1,0)","v":0},null,null,{"$f":"IF((I91>J91),1,0)","v":0},{"$f":"SUM(E91,H91,K91)","v":0},{"$f":"SUM(C91,F91,I91)","v":0},{"$f":"SUM(D91,G91,J91)","v":0},{"$f":"SUM((M91-N91))","v":0},null,{"$f":"B91","v":0},{"$f":"' Aanwezigheden Invullen'!D91","v":0}]
[89,{"$f":"' Aanwezigheden Invullen'!B92","v":0},null,null,0,null,null,0,null,null,0,0,0,0,0,null,0,{"$f":"' Aanwezigheden Invullen'!D92","v":0}]
[90,{"$f":"' Aanwezigheden Invullen'!B93","v":0},null,null,0,null,null,0,null,null,0,0,0,0,0,null,0,{"$f":"' Aanwezigheden Invullen'!D93","v":0}]
[91,{"$f":"' Aanwezigheden Invullen'!B94","v":0},null,null,0,null,null,0,null,null,0,0,0,0,0,null,0,{"$f":"' Aanwezigheden Invullen'!D94","v":0}]
[92,{"$f":"' Aanwezigheden Invullen'!B95","v":0},null,null,0,null,null,0,null,null,0,0,0,0,0,null,0,{"$f":"' Aanwezigheden Invullen'!D95","v":0}]
[93,{"$f":"' Aanwezigheden Invullen'!B96","v":0},null,null,0,null,null,0,null,null,0,0,0,0,0,null,0,{"$f":"' Aanwezigheden Invullen'!D96","v":0}]
[94,{"$f":"' Aanwezigheden Invullen'!B97","v":0},null,null,0,null,null,0,null,null,0,0,0,0,0,null,0,{"$f":"' Aanwezigheden Invullen'!D97","v":0}]
[95,{"$f":"' Aanwezigheden Invullen'!B98","v":0},null,null,0,null,null,0,null,null,0,0,0,0,0,null,0,{"$f":"' Aanwezigheden Invullen'!D98","v":0}]
[96,{"$f":"' Aanwezigheden Invullen'!B99","v":0},null,null,0,null,null,0,null,null,0,0,0,0,0,null,0,{"$f":"' Aanwezigheden Invullen'!D99","v":0}]
[97,{"$f":"' Aanwezigheden Invullen'!B100","v":0},null,null,0,null,null,0,null,null,0,0,0,0,0,null,0,{"$f":"' Aanwezigheden Invullen'!D100","v":0}]
[98,{"$f":"' Aanwezigheden Invullen'!B101","v":0},null,null,0,null,null,0,null,null,0,0,0,0,0,null,0,{"$f":"' Aanwezigheden Invullen'!D101","v":0}]
[99,{"$f":"' Aanwezigheden Invullen'!B102","v":0},null,null,0,null,null,0,null,null,0,0,0,0,0,null,0,{"$f":"' Aanwezigheden Invullen'!D102","v":0}]
[100,{"$f":"' Aanwezigheden Invullen'!B103","v":0},null,null,0,null,null,0,null,null,0,0,0,0,0,null,0,{"$f":"' Aanwezigheden Invullen'!D103","v":0}]
[101,{"$f":"' Aanwezigheden Invullen'!B104","v":0},null,null,0,null,null,0,null,null,0,0,0,0,0,null,0,{"$f":"' Aanwezigheden Invullen'!D104","v":0}]
[102,{"$f":"' Aanwezigheden Invullen'!B105","v":0},null,null,0,null,null,0,null,null,0,0,0,0,0,null,0,{"$f":"' Aanwezigheden Invullen'!D105","v":0}]
[103,{"$f":"' Aanwezigheden Invullen'!B106","v":0},null,null,0,null,null,0,null,null,0,0,0,0,0,null,0,{"$f":"' Aanwezigheden Invullen'!D106","v":0}]
[104,{"$f":"' Aanwezigheden Invullen'!B107","v":0},null,null,0,null,null,0,null,null,0,0,0,0,0,null,0,{"$f":"' Aanwezigheden Invullen'!D107","v":0}]
[105,{"$f":"' Aanwezigheden Invullen'!B108","v":0},null,null,0,null,null,0,null,null,0,0,0,0,0,null,0,{"$f":"' Aanwezigheden Invullen'!D108","v":0}]
[106,{"$f":"' Aanwezigheden Invullen'!B109","v":0},null,null,0,null,null,0,null,null,0,0,0,0,0,null,0,{"$f":"' Aanwezigheden Invullen'!D109","v":0}]
[107,{"$f":"' Aanwezigheden Invullen'!B110","v":0},null,null,0,null,null,0,null,null,0,0,0,0,0,null,0,{"$f":"' Aanwezigheden Invullen'!D110","v":0}]
[108,{"$f":"' Aanwezigheden Invullen'!B111","v":0},null,null,0,null,null,0,null,null,0,0,0,0,0,null,0,{"$f":"' Aanwezigheden Invullen'!D111","v":0}]
[109,{"$f":"' Aanwezigheden Invullen'!B112","v":0},null,null,0,null,null,0,null,null,0,0,0,0,0,null,0,{"$f":"' Aanwezigheden Invullen'!D112","v":0}]
[110,{"$f":"' Aanwezigheden Invullen'!B113","v":0},null,null,0,null,null,0,null,null,0,0,0,0,0,null,0,{"$f":"' Aanwezigheden Invullen'!D113","v":0}]

{"sheet":"RESULTAAT KIEL","index":7,"n_rows":113,"n_cols":18,"rows_kept":113,"cut":false,"hidden":false,"merged":[]}
[null,"deelnemers",null,null,"KBC PETANQUETORNOOI",null,null,null,null,null,null,"KIEL",null,null,null,null,"2019-07-30"]
[null,{"$f":"' Aanwezigheden Invullen'!E116","v":45},"1ste Ronde",null,null,"2de Ronde",null,null,"3de Ronde",null,null,"Gew",null,null,"Totaal",null,"RESULTAAT"]
["Nr","Naam","voor","tegen","Gew","voor","tegen","Gew","voor","tegen","Gew","Totaal","voor ","tegen","saldo","rang","Naam","Aanwezig"]
[1,{"$f":"' Aanwezigheden Invullen'!B4","v":"JAN VAN BERCKELAER"},13,4,{"$f":"IF((C4>D4),1,0)","v":1},13,11,{"$f":"IF((F4>G4),1,0)","v":1},3,13,{"$f":"IF((I4>J4),1,0)","v":0},{"$f":"SUM(E4,H4,K4)","v":2},{"$f":"SUM(C4,F4,I4)","v":29},{"$f":"SUM(D4,G4,J4)","v":28},{"$f":"SUM((M4-N4))","v":1},null,{"$f":"B4","v":"JAN VAN BERCKELAER"},{"$f":"' Aanwezigheden Invullen'!E4","v":1}]
[2,{"$f":"' Aanwezigheden Invullen'!B5","v":"CLAIRE VERMEULEN"},4,13,0,10,13,0,13,7,1,{"$f":"SUM(E5,H5,K5)","v":1},{"$f":"SUM(C5,F5,I5)","v":27},{"$f":"SUM(D5,G5,J5)","v":33},-6,null,{"$f":"B5","v":"CLAIRE VERMEULEN"},{"$f":"' Aanwezigheden Invullen'!E5","v":1}]
[3,{"$f":"' Aanwezigheden Invullen'!B6","v":"MARC ARTS"},null,null,0,null,null,0,null,null,0,0,0,0,0,null,{"$f":"B6","v":"MARC ARTS"},{"$f":"' Aanwezigheden Invullen'!E6","v":0}]
[4,{"$f":"' Aanwezigheden Invullen'!B7","v":"ERNEST BOMANS"},null,null,0,null,null,{"$f":"IF((F7>G7),1,0)","v":0},null,null,0,0,0,0,0,null,"ERNEST BOMANS",{"$f":"' Aanwezigheden Invullen'!E7","v":0}]
[5,{"$f":"' Aanwezigheden Invullen'!B8","v":"VERA LEYSEN"},null,null,0,null,null,0,null,null,0,0,0,0,0,null,"VERA LEYSEN",{"$f":"' Aanwezigheden Invullen'!E8","v":0}]
[6,{"$f":"' Aanwezigheden Invullen'!B9","v":"WILLY HEMELS"},13,9,1,13,8,1,13,4,1,3,39,21,18,null,"WILLY HEMELS",{"$f":"' Aanwezigheden Invullen'!E9","v":1}]
[7,{"$f":"' Aanwezigheden Invullen'!B10","v":"ALAIN SPIRON"},13,5,1,13,0,1,13,6,1,3,39,11,28,null,"ALAIN SPIRON",{"$f":"' Aanwezigheden Invullen'!E10","v":1}]
[8,{"$f":"' Aanwezigheden Invullen'!B11","v":"PAUL VAN OECKEL"},13,4,1,13,11,1,11,13,0,2,37,28,9,null,"PAUL VAN OECKEL",{"$f":"' Aanwezigheden Invullen'!E11","v":1}]
[9,{"$f":"' Aanwezigheden Invullen'!B12","v":"RITA NAGELS"},13,7,1,0,13,0,13,6,1,2,26,26,0,null,"RITA NAGELS",{"$f":"' Aanwezigheden Invullen'!E12","v":1}]
[10,{"$f":"' Aanwezigheden Invullen'!B13","v":"ROGER LENAERTS"},13,9,1,13,10,1,3,13,0,2,29,32,-3,null,"ROGER LENAERTS",{"$f":"' Aanwezigheden Invullen'!E13","v":1}]
[11,{"$f":"' Aanwezigheden Invullen'!B14","v":"ROGER WOUTERS"},4,13,0,13,8,1,10,13,0,1,27,34,-7,null,"ROGER WOUTERS",{"$f":"' Aanwezigheden Invullen'!E14","v":1}]
[12,{"$f":"' Aanwezigheden Invullen'!B15","v":"AN VAN DER GUCHT"},7,13,0,7,13,0,4,13,0,0,18,39,-21,null,"AN VAN DER GUCHT",{"$f":"' Aanwezigheden Invullen'!E15","v":1}]
[13,{"$f":"' Aanwezigheden Invullen'!B16","v":"MARC DELVAUX"},13,4,1,6,13,0,6,13,0,1,25,30,-5,null,"MARC DELVAUX",{"$f":"' Aanwezigheden Invullen'!E16","v":1}]
[14,{"$f":"' Aanwezigheden Invullen'!B17","v":"FONS NICOLAY"},8,13,0,13,10,1,13,10,1,2,34,33,1,null,"FONS NICOLAY",{"$f":"' Aanwezigheden Invullen'!E17","v":1}]
[15,{"$f":"' Aanwezigheden Invullen'!B18","v":"LILIANE LAURIJSSEN"},13,3,1,13,6,1,7,13,0,2,33,22,11,null,"LILIANE LAURIJSSEN",{"$f":"' Aanwezigheden Invullen'!E18","v":1}]
[16,{"$f":"' Aanwezigheden Invullen'!B19","v":"JEF LAUWERS"},null,null,0,null,null,0,null,null,0,0,0,0,0,null,"JEF LAUWERS",{"$f":"' Aanwezigheden Invullen'!E19","v":0}]
[17,{"$f":"' Aanwezigheden Invullen'!B20","v":"PAULINE OLDE-BIJVANK"},null,null,0,null,null,0,null,null,0,0,0,0,0,null,"PAULINE OLDE-BIJVANK",{"$f":"' Aanwezigheden Invullen'!E20","v":0}]
[18,{"$f":"' Aanwezigheden Invullen'!B21","v":"GUY ELSLANDER"},13,8,1,13,10,1,5,13,0,2,31,31,0,null,"GUY ELSLANDER",{"$f":"' Aanwezigheden Invullen'!E21","v":1}]
[19,{"$f":"' Aanwezigheden Invullen'!B22","v":"LIES VERHAEGHE"},null,null,0,null,null,0,null,null,0,0,0,0,0,null,"LIES VERHAEGHE",{"$f":"' Aanwezigheden Invullen'!E22","v":0}]
[20,{"$f":"' Aanwezigheden Invullen'!B23","v":"PATRICK VEKEMANS"},9,13,0,13,7,1,11,13,0,1,33,33,0,null,"PATRICK VEKEMANS",{"$f":"' Aanwezigheden Invullen'!E23","v":1}]
[21,{"$f":"' Aanwezigheden Invullen'!B24","v":"LILIANE MOSTIEN"},11,13,0,13,0,1,13,7,1,2,37,20,17,null,"LILIANE MOSTIEN",{"$f":"' Aanwezigheden Invullen'!E24","v":1}]
[22,{"$f":"' Aanwezigheden Invullen'!B25","v":"JEF CLONEN"},null,null,0,null,null,0,null,null,0,0,0,0,0,null,"JEF CLONEN",{"$f":"' Aanwezigheden Invullen'!E25","v":0}]
[23,{"$f":"' Aanwezigheden Invullen'!B26","v":"MARLEEN VAN DE WAETER"},13,11,1,6,13,0,11,13,0,1,30,37,-7,null,"MARLEEN VAN DE WAETER",{"$f":"' Aanwezigheden Invullen'!E26","v":1}]
[24,{"$f":"' Aanwezigheden Invullen'!B27","v":"MAGGIE MAHIEU"},5,13,0,11,13,0,3,13,0,0,19,39,-20,null,"MAGGIE MAHIEU",{"$f":"' Aanwezigheden Invullen'!E27","v":1}]
[25,{"$f":"' Aanwezigheden Invullen'!B28","v":"GUY PEETERS"},13,3,1,13,11,1,10,13,0,2,36,27,9,null,"GUY PEETERS",{"$f":"' Aanwezigheden Invullen'!E28","v":1}]
[26,{"$f":"' Aanwezigheden Invullen'!B29","v":"LINDA MARES"},13,5,1,8,13,0,13,5,1,2,34,23,11,null,"LINDA MARES",{"$f":"' Aanwezigheden Invullen'!E29","v":1}]
[27,{"$f":"' Aanwezigheden Invullen'!B30","v":"JULIA DE WINTER"},13,3,1,13,7,1,13,5,1,3,39,15,24,null,"JULIA DE WINTER",{"$f":"' Aanwezigheden Invullen'!E30","v":1}]
[28,{"$f":"' Aanwezigheden Invullen'!B31","v":"PAUL BOEYKENS"},7,13,0,8,13,0,13,3,1,1,28,29,-1,null,"PAUL BOEYKENS",{"$f":"' Aanwezigheden Invullen'!E31","v":1}]
[29,{"$f":"' Aanwezigheden Invullen'!B32","v":"RITA LAURIJSSEN"},11,13,0,13,6,1,10,13,0,1,34,32,2,null,"RITA LAURIJSSEN",{"$f":"' Aanwezigheden Invullen'!E32","v":1}]
[30,{"$f":"' Aanwezigheden Invullen'!B33","v":"MARCEL KESTENS"},null,null,0,null,null,0,null,null,0,0,0,0,0,null,"MARCEL KESTENS",{"$f":"' Aanwezigheden Invullen'!E33","v":0}]
[31,{"$f":"' Aanwezigheden Invullen'!B34","v":"PAUL VAN HOVE"},null,null,0,null,null,0,null,null,0,0,0,0,0,null,"PAUL VAN HOVE",{"$f":"' Aanwezigheden Invullen'!E34","v":0}]
[32,{"$f":"' Aanwezigheden Invullen'!B35","v":"TONY WILLAERT"},9,13,0,7,13,0,7,13,0,0,23,39,-16,null,"TONY WILLAERT",{"$f":"' Aanwezigheden Invullen'!E35","v":1}]
[33,{"$f":"' Aanwezigheden Invullen'!B36","v":"RITA LEJON"},11,13,0,13,8,1,5,13,0,1,29,34,-5,null,"RITA LEJON",{"$f":"' Aanwezigheden Invullen'!E36","v":1}]
[34,{"$f":"' Aanwezigheden Invullen'!B37","v":"MARC VERMANT"},8,13,0,8,13,0,7,13,0,0,23,39,-16,null,"MARC VERMANT",{"$f":"' Aanwezigheden Invullen'!E37","v":1}]
[35,{"$f":"' Aanwezigheden Invullen'!B38","v":"MYRIAM VERRYDT"},13,5,1,0,13,0,4,13,0,1,17,31,-14,null,"MYRIAM VERRYDT",{"$f":"' Aanwezigheden Invullen'!E38","v":1}]
[36,{"$f":"' Aanwezigheden Invullen'!B39","v":"LUDO IELEGEMS"},null,null,0,null,null,0,null,null,0,0,0,0,0,null,"LUDO IELEGEMS",{"$f":"' Aanwezigheden Invullen'!E39","v":0}]
[37,{"$f":"' Aanwezigheden Invullen'!B40","v":"ANNE-MARIE KLEINJAN"},null,null,0,null,null,0,null,null,0,0,0,0,0,null,"ANNE-MARIE KLEINJAN",{"$f":"' Aanwezigheden Invullen'!E40","v":0}]
[38,{"$f":"' Aanwezigheden Invullen'!B41","v":"GRIET VERWIMP"},null,null,0,null,null,0,null,null,0,0,0,0,0,null,"GRIET VERWIMP",{"$f":"' Aanwezigheden Invullen'!E41","v":0}]
[39,{"$f":"' Aanwezigheden Invullen'!B42","v":"LUC VAN DEN BROECK"},null,null,0,null,null,0,null,null,0,0,0,0,0,null,"LUC VAN DEN BROECK",{"$f":"' Aanwezigheden Invullen'!E42","v":0}]
[40,{"$f":"' Aanwezigheden Invullen'!B43","v":"MONIQUE RUYMBEKE"},null,null,0,null,null,0,null,null,0,0,0,0,0,null,"MONIQUE RUYMBEKE",{"$f":"' Aanwezigheden Invullen'!E43","v":0}]
[41,{"$f":"' Aanwezigheden Invullen'!B44","v":"JOS JANSSENS"},13,8,1,10,13,0,13,3,1,2,36,24,12,null,"JOS JANSSENS",{"$f":"' Aanwezigheden Invullen'!E44","v":1}]
[42,{"$f":"' Aanwezigheden Invullen'!B45","v":"MARIA RUTS"},4,13,0,11,13,0,13,7,1,1,28,33,-5,null,"MARIA RUTS",{"$f":"' Aanwezigheden Invullen'!E45","v":1}]
[43,{"$f":"' Aanwezigheden Invullen'!B46","v":"PIERRE MEIR"},3,13,0,11,13,0,13,10,1,1,27,36,-9,null,"PIERRE MEIR",{"$f":"' Aanwezigheden Invullen'!E46","v":1}]
[44,{"$f":"' Aanwezigheden Invullen'!B47","v":"PATTY MEEUSEN"},13,7,1,13,11,1,13,6,1,3,39,24,15,null,"PATTY MEEUSEN",{"$f":"' Aanwezigheden Invullen'!E47","v":1}]
[45,{"$f":"' Aanwezigheden Invullen'!B48","v":"TRISTAN WEYN"},13,11,1,8,13,0,13,10,1,2,34,34,0,null,"TRISTAN WEYN",{"$f":"' Aanwezigheden Invullen'!E48","v":1}]
[46,{"$f":"' Aanwezigheden Invullen'!B49","v":"CARINA LUYTEN"},7,13,0,10,13,0,13,11,1,1,30,37,-7,null,"CARINA LUYTEN",{"$f":"' Aanwezigheden Invullen'!E49","v":1}]
[47,{"$f":"' Aanwezigheden Invullen'!B50","v":"ETIENNE BURM"},3,13,0,8,13,0,13,11,1,1,24,37,-13,null,"ETIENNE BURM",{"$f":"' Aanwezigheden Invullen'!E50","v":1}]
[48,{"$f":"' Aanwezigheden Invullen'!B51","v":"LIEVE GEZELS"},3,13,0,13,8,1,6,13,0,1,22,34,-12,null,"LIEVE GEZELS",{"$f":"' Aanwezigheden Invullen'!E51","v":1}]
[49,{"$f":"' Aanwezigheden Invullen'!B52","v":"MARIA DE VRIENDT"},null,null,0,null,null,0,null,null,0,0,0,0,0,null,"MARIA DE VRIENDT",{"$f":"' Aanwezigheden Invullen'!E52","v":0}]
[50,{"$f":"' Aanwezigheden Invullen'!B53","v":"BOB OOMS"},null,null,0,null,null,0,null,null,0,0,0,0,0,null,"BOB OOMS",{"$f":"' Aanwezigheden Invullen'!E53","v":0}]
[51,{"$f":"' Aanwezigheden Invullen'!B54","v":"ANNITA VAN LEUGENHAEGHE"},null,null,0,null,null,0,null,null,0,0,0,0,0,null,"ANNITA VAN LEUGENHAEGHE",{"$f":"' Aanwezigheden Invullen'!E54","v":0}]
[52,{"$f":"' Aanwezigheden Invullen'!B55","v":"LUC VAN HAVER"},4,13,0,13,0,1,13,5,1,2,30,18,12,null,"LUC VAN HAVER",{"$f":"' Aanwezigheden Invullen'!E55","v":1}]
[53,{"$f":"' Aanwezigheden Invullen'!B56","v":"BEA VERHAEGEN"},13,4,1,8,13,0,5,13,0,1,26,30,-4,null,"BEA VERHAEGEN",{"$f":"' Aanwezigheden Invullen'!E56","v":1}]
[54,{"$f":"' Aanwezigheden Invullen'!B57","v":"RUDY VERACHTERT"},null,null,0,null,null,0,null,null,0,0,0,0,0,null,"RUDY VERACHTERT",{"$f":"' Aanwezigheden Invullen'!E57","v":0}]
[55,{"$f":"' Aanwezigheden Invullen'!B58","v":"CORRY DE BIE"},null,null,0,null,null,0,null,null,0,0,0,0,0,null,"CORRY DE BIE",{"$f":"' Aanwezigheden Invullen'!E58","v":0}]
[56,{"$f":"' Aanwezigheden Invullen'!B59","v":"NADINE BRACKE"},null,null,0,null,null,0,null,null,0,0,0,0,0,null,"NADINE BRACKE",{"$f":"' Aanwezigheden Invullen'!E59","v":0}]
[57,{"$f":"' Aanwezigheden Invullen'!B60","v":"PATRICK VELDERS"},null,null,0,null,null,0,null,null,0,0,0,0,0,null,"PATRICK VELDERS",{"$f":"' Aanwezigheden Invullen'!E60","v":0}]
[58,{"$f":"' Aanwezigheden Invullen'!B61","v":"MARC DE REU"},null,null,0,null,null,0,null,null,0,0,0,0,0,null,"MARC DE REU",{"$f":"' Aanwezigheden Invullen'!E61","v":0}]
[59,{"$f":"' Aanwezigheden Invullen'!B62","v":"VIOLETTE GLANZ"},null,null,0,null,null,0,null,null,0,0,0,0,0,null,"VIOLETTE GLANZ",{"$f":"' Aanwezigheden Invullen'!E62","v":0}]
[60,{"$f":"' Aanwezigheden Invullen'!B63","v":"ROGER VAN DURME"},13,8,1,0,13,0,13,4,1,2,26,25,1,null,"ROGER VAN DURME",{"$f":"' Aanwezigheden Invullen'!E63","v":1}]
[61,{"$f":"' Aanwezigheden Invullen'!B64","v":"JEAN TIJSMANS"},13,7,1,13,8,1,13,10,1,3,39,25,14,null,"JEAN TIJSMANS",{"$f":"' Aanwezigheden Invullen'!E64","v":1}]
[62,{"$f":"' Aanwezigheden Invullen'!B65","v":"ETIENNE VAN ROBBROECK"},13,4,1,13,7,1,13,11,1,3,39,22,17,null,"ETIENNE VAN ROBBROECK",{"$f":"' Aanwezigheden Invullen'!E65","v":1}]
[63,{"$f":"' Aanwezigheden Invullen'!B66","v":"PAULA VAN LINDEN"},4,13,0,11,13,0,13,10,1,1,28,36,-8,null,"PAULA VAN LINDEN",{"$f":"' Aanwezigheden Invullen'!E66","v":1}]
[64,{"$f":"' Aanwezigheden Invullen'!B67","v":"ERIK BOCKSTAL"},null,null,0,null,null,0,null,null,0,0,0,0,0,null,"ERIK BOCKSTAL",{"$f":"' Aanwezigheden Invullen'!E67","v":0}]
[65,{"$f":"' Aanwezigheden Invullen'!B68","v":"BRUNO HERREBOSCH"},null,null,{"$f":"IF((C68>D68),1,0)","v":0},null,null,{"$f":"IF((F68>G68),1,0)","v":0},null,null,{"$f":"IF((I68>J68),1,0)","v":0},0,0,0,{"$f":"SUM((M68-N68))","v":0},null,"BRUNO HERREBOSCH",{"$f":"' Aanwezigheden Invullen'!E68","v":0}]
[66,{"$f":"' Aanwezigheden Invullen'!B69","v":"MARC GOVAERS"},null,null,0,null,null,0,null,null,0,{"$f":"SUM(E69,H69,K69)","v":0},{"$f":"SUM(C69,F69,I69)","v":0},{"$f":"SUM(D69,G69,J69)","v":0},0,null,"MARC GOVAERS",{"$f":"' Aanwezigheden Invullen'!E69","v":0}]
[67,{"$f":"' Aanwezigheden Invullen'!B70","v":"NICOLE BAYARD"},null,null,0,null,null,0,null,null,0,0,0,0,0,null,{"$f":"B70","v":"NICOLE BAYARD"},{"$f":"' Aanwezigheden Invullen'!E70","v":0}]
[68,{"$f":"' Aanwezigheden Invullen'!B71","v":"FRANK DE KINDER"},8,13,0,13,6,1,6,13,0,1,27,32,-5,null,{"$f":"B71","v":"FRANK DE KINDER"},{"$f":"' Aanwezigheden Invullen'!E71","v":1}]
[69,{"$f":"' Aanwezigheden Invullen'!B72","v":"FRANS WOUTERS"},4,13,0,11,13,0,4,13,0,0,19,39,-20,null,{"$f":"B72","v":"FRANS WOUTERS"},{"$f":"' Aanwezigheden Invullen'!E72","v":1}]
[70,{"$f":"' Aanwezigheden Invullen'!B73","v":"ANNE LOMBAERTS "},5,13,0,13,11,1,10,13,0,1,28,37,-9,null,{"$f":"B73","v":"ANNE LOMBAERTS "},{"$f":"' Aanwezigheden Invullen'!E73","v":1}]
[71,{"$f":"' Aanwezigheden Invullen'!B74","v":"FRIEDA HAESELDONCKX"},13,11,1,7,13,0,13,4,{"$f":"IF((I74>J74),1,0)","v":1},2,33,28,{"$f":"SUM((M74-N74))","v":5},null,{"$f":"B74","v":"FRIEDA HAESELDONCKX"},{"$f":"' Aanwezigheden Invullen'!E74","v":1}]
[72,{"$f":"' Aanwezigheden Invullen'!B75","v":"CHRIS DE RAEYMAEKER"},13,4,1,13,8,1,10,13,0,2,36,25,11,null,"CHRIS DE RAEYMAEKER",{"$f":"' Aanwezigheden Invullen'!E75","v":1}]
[73,{"$f":"' Aanwezigheden Invullen'!B76","v":"WIS VAN DINGENEN"},null,null,0,null,null,0,null,null,0,0,0,0,0,null,"WIS VAN DINGENEN",{"$f":"' Aanwezigheden Invullen'!E76","v":0}]
[74,{"$f":"' Aanwezigheden Invullen'!B77","v":"RENEE COPPENS"},null,null,0,null,null,0,null,null,0,0,0,0,0,null,"RENEE COPPENS",{"$f":"' Aanwezigheden Invullen'!E77","v":0}]
[75,{"$f":"' Aanwezigheden Invullen'!B78","v":0},null,null,0,null,null,0,null,null,0,0,0,0,0,null,0,{"$f":"' Aanwezigheden Invullen'!E78","v":0}]
[76,{"$f":"' Aanwezigheden Invullen'!B79","v":0},null,null,0,null,null,0,null,null,0,0,0,0,0,null,0,{"$f":"' Aanwezigheden Invullen'!E79","v":0}]
[77,{"$f":"' Aanwezigheden Invullen'!B80","v":0},null,null,0,null,null,0,null,null,0,0,0,0,0,null,0,{"$f":"' Aanwezigheden Invullen'!E80","v":0}]
[78,{"$f":"' Aanwezigheden Invullen'!B81","v":0},null,null,0,null,null,0,null,null,0,0,0,0,0,null,0,{"$f":"' Aanwezigheden Invullen'!E81","v":0}]
[79,{"$f":"' Aanwezigheden Invullen'!B82","v":0},null,null,0,null,null,0,null,null,0,0,0,0,0,null,0,{"$f":"' Aanwezigheden Invullen'!E82","v":0}]
[80,{"$f":"' Aanwezigheden Invullen'!B83","v":0},null,null,0,null,null,0,null,null,0,0,0,0,0,null,0,{"$f":"' Aanwezigheden Invullen'!E83","v":0}]
[81,{"$f":"' Aanwezigheden Invullen'!B84","v":0},null,null,0,null,null,0,null,null,0,0,0,0,0,null,0,{"$f":"' Aanwezigheden Invullen'!E84","v":0}]
[82,{"$f":"' Aanwezigheden Invullen'!B85","v":0},null,null,0,null,null,0,null,null,0,0,0,0,0,null,0,{"$f":"' Aanwezigheden Invullen'!E85","v":0}]
[83,{"$f":"' Aanwezigheden Invullen'!B86","v":0},null,null,0,null,null,0,null,null,0,0,0,0,0,null,0,{"$f":"' Aanwezigheden Invullen'!E86","v":0}]
[84,{"$f":"' Aanwezigheden Invullen'!B87","v":0},null,null,0,null,null,0,null,null,0,0,0,0,0,null,0,{"$f":"' Aanwezigheden Invullen'!E87","v":0}]
[85,{"$f":"' Aanwezigheden Invullen'!B88","v":0},null,null,0,null,null,0,null,null,0,0,0,0,0,null,0,{"$f":"' Aanwezigheden Invullen'!E88","v":0}]
[86,{"$f":"' Aanwezigheden Invullen'!B89","v":0},null,null,0,null,null,0,null,null,0,0,0,0,0,null,0,{"$f":"' Aanwezigheden Invullen'!E89","v":0}]
[87,{"$f":"' Aanwezigheden Invullen'!B90","v":0},null,null,0,null,null,0,null,null,0,0,0,0,0,null,0,{"$f":"' Aanwezigheden Invullen'!E90","v":0}]
[88,{"$f":"' Aanwezigheden Invullen'!B91","v":0},null,null,{"$f":"IF((C91>D91),1,0)","v":0},null,null,{"$f":"IF((F91>G91),1,0)","v":0},null,null,{"$f":"IF((I91>J91),1,0)","v":0},{"$f":"SUM(E91,H91,K91)","v":0},{"$f":"SUM(C91,F91,I91)","v":0},{"$f":"SUM(D91,G91,J91)","v":0},{"$f":"SUM((M91-N91))","v":0},null,{"$f":"B91","v":0},{"$f":"' Aanwezigheden Invullen'!E91","v":0}]
[89,{"$f":"' Aanwezigheden Invullen'!B92","v":0},null,null,0,null,null,0,null,null,0,0,0,0,0,null,0,{"$f":"' Aanwezigheden Invullen'!E92","v":0}]
[90,{"$f":"' Aanwezigheden Invullen'!B93","v":0},null,null,0,null,null,0,null,null,0,0,0,0,0,null,0,{"$f":"' Aanwezigheden Invullen'!E93","v":0}]
[91,{"$f":"' Aanwezigheden Invullen'!B94","v":0},null,null,0,null,null,0,null,null,0,0,0,0,0,null,0,{"$f":"' Aanwezigheden Invullen'!E94","v":0}]
[92,{"$f":"' Aanwezigheden Invullen'!B95","v":0},null,null,0,null,null,0,null,null,0,0,0,0,0,null,0,{"$f":"' Aanwezigheden Invullen'!E95","v":0}]
[93,{"$f":"' Aanwezigheden Invullen'!B96","v":0},null,null,0,null,null,0,null,null,0,0,0,0,0,null,0,{"$f":"' Aanwezigheden Invullen'!E96","v":0}]
[94,{"$f":"' Aanwezigheden Invullen'!B97","v":0},null,null,{"$f":"IF((C97>D97),1,0)","v":0},null,null,{"$f":"IF((F97>G97),1,0)","v":0},null,null,{"$f":"IF((I97>J97),1,0)","v":0},{"$f":"SUM(E97,H97,K97)","v":0},{"$f":"SUM(C97,F97,I97)","v":0},{"$f":"SUM(D97,G97,J97)","v":0},{"$f":"SUM((M97-N97))","v":0},null,{"$f":"B97","v":0},{"$f":"' Aanwezigheden Invullen'!E97","v":0}]
[95,{"$f":"' Aanwezigheden Invullen'!B98","v":0},null,null,0,null,null,0,null,null,0,0,0,0,0,null,0,{"$f":"' Aanwezigheden Invullen'!E98","v":0}]
[96,{"$f":"' Aanwezigheden Invullen'!B99","v":0},null,null,0,null,null,0,null,null,0,0,0,0,0,null,0,{"$f":"' Aanwezigheden Invullen'!E99","v":0}]
[97,{"$f":"' Aanwezigheden Invullen'!B100","v":0},null,null,0,null,null,0,null,null,0,0,0,0,0,null,0,{"$f":"' Aanwezigheden Invullen'!E100","v":0}]
[98,{"$f":"' Aanwezigheden Invullen'!B101","v":0},null,null,0,null,null,0,null,null,0,0,0,0,0,null,0,{"$f":"' Aanwezigheden Invullen'!E101","v":0}]
[99,{"$f":"' Aanwezigheden Invullen'!B102","v":0},null,null,0,null,null,0,null,null,0,0,0,0,0,null,0,{"$f":"' Aanwezigheden Invullen'!E102","v":0}]
[100,{"$f":"' Aanwezigheden Invullen'!B103","v":0},null,null,0,null,null,0,null,null,0,0,0,0,0,null,0,{"$f":"' Aanwezigheden Invullen'!E103","v":0}]
[101,{"$f":"' Aanwezigheden Invullen'!B104","v":0},null,null,0,null,null,0,null,null,0,0,0,0,0,null,0,{"$f":"' Aanwezigheden Invullen'!E104","v":0}]
[102,{"$f":"' Aanwezigheden Invullen'!B105","v":0},null,null,0,null,null,0,null,null,0,0,0,0,0,null,0,{"$f":"' Aanwezigheden Invullen'!E105","v":0}]
[103,{"$f":"' Aanwezigheden Invullen'!B106","v":0},null,null,0,null,null,0,null,null,0,0,0,0,0,null,0,{"$f":"' Aanwezigheden Invullen'!E106","v":0}]
[104,{"$f":"' Aanwezigheden Invullen'!B107","v":0},null,null,0,null,null,0,null,null,0,0,0,0,0,null,0,{"$f":"' Aanwezigheden Invullen'!E107","v":0}]
[105,{"$f":"' Aanwezigheden Invullen'!B108","v":0},null,null,0,null,null,0,null,null,0,0,0,0,0,null,0,{"$f":"' Aanwezigheden Invullen'!E108","v":0}]
[106,{"$f":"' Aanwezigheden Invullen'!B109","v":0},null,null,0,null,null,0,null,null,0,0,0,0,0,null,0,{"$f":"' Aanwezigheden Invullen'!E109","v":0}]
[107,{"$f":"' Aanwezigheden Invullen'!B110","v":0},null,null,0,null,null,0,null,null,0,0,0,0,0,null,0,{"$f":"' Aanwezigheden Invullen'!E110","v":0}]
[108,{"$f":"' Aanwezigheden Invullen'!B111","v":0},null,null,0,null,null,0,null,null,0,0,0,0,0,null,0,{"$f":"' Aanwezigheden Invullen'!E111","v":0}]
[109,{"$f":"' Aanwezigheden Invullen'!B112","v":0},null,null,0,null,null,0,null,null,0,0,0,0,0,null,0,{"$f":"' Aanwezigheden Invullen'!E112","v":0}]
[110,{"$f":"' Aanwezigheden Invullen'!B113","v":0},null,null,0,null,null,0,null,null,0,0,0,0,0,null,0,{"$f":"' Aanwezigheden Invullen'!E113","v":0}]

{"sheet":"RESULTAAT WIJNEGEM","index":8,"n_rows":113,"n_cols":18,"rows_kept":113,"cut":false,"hidden":false,"merged":[]}
[null,"deelnemers",null,null,"KBC PETANQUETORNOOI",null,null,null,null,null,null,"WIJNEGEM",null,null,null,null,"2019-08-27"]
[null,{"$f":"' Aanwezigheden Invullen'!F116","v":38},"1ste Ronde",null,null,"2de Ronde",null,null,"3de Ronde",null,null,"Gew",null,null,"Totaal",null,"RESULTAAT"]
["Nr","Naam","voor","tegen","Gew","voor","tegen","Gew","voor","tegen","Gew","Totaal","voor ","tegen","saldo","rang","Naam","Aanwezig"]
[1,{"$f":"' Aanwezigheden Invullen'!B4","v":"JAN VAN BERCKELAER"},13,10,{"$f":"IF((C4>D4),1,0)","v":1},13,1,{"$f":"IF((F4>G4),1,0)","v":1},13,1,{"$f":"IF((I4>J4),1,0)","v":1},{"$f":"SUM(E4,H4,K4)","v":3},{"$f":"SUM(C4,F4,I4)","v":39},{"$f":"SUM(D4,G4,J4)","v":12},{"$f":"SUM((M4-N4))","v":27},null,{"$f":"B4","v":"JAN VAN BERCKELAER"},{"$f":"' Aanwezigheden Invullen'!F4","v":1}]
[2,{"$f":"' Aanwezigheden Invullen'!B5","v":"CLAIRE VERMEULEN"},13,10,1,13,9,1,1,13,0,{"$f":"SUM(E5,H5,K5)","v":2},{"$f":"SUM(C5,F5,I5)","v":27},{"$f":"SUM(D5,G5,J5)","v":32},-5,null,{"$f":"B5","v":"CLAIRE VERMEULEN"},{"$f":"' Aanwezigheden Invullen'!F5","v":1}]
[3,{"$f":"' Aanwezigheden Invullen'!B6","v":"MARC ARTS"},null,null,0,null,null,0,null,null,0,0,0,0,0,null,{"$f":"B6","v":"MARC ARTS"},{"$f":"' Aanwezigheden Invullen'!F6","v":0}]
[4,{"$f":"' Aanwezigheden Invullen'!B7","v":"ERNEST BOMANS"},null,null,0,null,null,{"$f":"IF((F7>G7),1,0)","v":0},null,null,0,0,0,0,0,null,"ERNEST BOMANS",{"$f":"' Aanwezigheden Invullen'!F7","v":0}]
[5,{"$f":"' Aanwezigheden Invullen'!B8","v":"VERA LEYSEN"},null,null,0,null,null,0,null,null,0,0,0,0,0,null,"VERA LEYSEN",{"$f":"' Aanwezigheden Invullen'!F8","v":0}]
[6,{"$f":"' Aanwezigheden Invullen'!B9","v":"WILLY HEMELS"},null,null,0,null,null,0,null,null,0,0,0,0,0,null,"WILLY HEMELS",{"$f":"' Aanwezigheden Invullen'!F9","v":0}]
[7,{"$f":"' Aanwezigheden Invullen'!B10","v":"ALAIN SPIRON"},8,13,0,13,12,1,1,13,0,1,22,38,-16,null,"ALAIN SPIRON",{"$f":"' Aanwezigheden Invullen'!F10","v":1}]
[8,{"$f":"' Aanwezigheden Invullen'!B11","v":"PAUL VAN OECKEL"},5,13,0,13,2,1,13,10,1,2,31,25,6,null,"PAUL VAN OECKEL",{"$f":"' Aanwezigheden Invullen'!F11","v":1}]
[9,{"$f":"' Aanwezigheden Invullen'!B12","v":"RITA NAGELS"},5,13,0,8,13,0,13,3,1,1,26,29,-3,null,"RITA NAGELS",{"$f":"' Aanwezigheden Invullen'!F12","v":1}]
[10,{"$f":"' Aanwezigheden Invullen'!B13","v":"ROGER LENAERTS"},9,13,0,13,1,1,13,3,1,2,35,17,18,null,"ROGER LENAERTS",{"$f":"' Aanwezigheden Invullen'!F13","v":1}]
[11,{"$f":"' Aanwezigheden Invullen'!B14","v":"ROGER WOUTERS"},5,13,0,1,13,0,13,8,1,1,19,34,-15,null,"ROGER WOUTERS",{"$f":"' Aanwezigheden Invullen'!F14","v":1}]
[12,{"$f":"' Aanwezigheden Invullen'!B15","v":"AN VAN DER GUCHT"},13,8,1,1,13,0,3,13,0,1,17,34,-17,null,"AN VAN DER GUCHT",{"$f":"' Aanwezigheden Invullen'!F15","v":1}]
[13,{"$f":"' Aanwezigheden Invullen'!B16","v":"MARC DELVAUX"},13,5,1,2,13,0,13,7,1,2,28,25,3,null,"MARC DELVAUX",{"$f":"' Aanwezigheden Invullen'!F16","v":1}]
[14,{"$f":"' Aanwezigheden Invullen'!B17","v":"FONS NICOLAY"},11,13,0,4,13,0,13,1,1,1,28,27,1,null,"FONS NICOLAY",{"$f":"' Aanwezigheden Invullen'!F17","v":1}]
[15,{"$f":"' Aanwezigheden Invullen'!B18","v":"LILIANE LAURIJSSEN"},5,13,0,13,8,1,13,10,1,2,31,31,0,null,"LILIANE LAURIJSSEN",{"$f":"' Aanwezigheden Invullen'!F18","v":1}]
[16,{"$f":"' Aanwezigheden Invullen'!B19","v":"JEF LAUWERS"},null,null,0,null,null,0,null,null,0,0,0,0,0,null,"JEF LAUWERS",{"$f":"' Aanwezigheden Invullen'!F19","v":0}]
[17,{"$f":"' Aanwezigheden Invullen'!B20","v":"PAULINE OLDE-BIJVANK"},null,null,0,null,null,0,null,null,0,0,0,0,0,null,"PAULINE OLDE-BIJVANK",{"$f":"' Aanwezigheden Invullen'!F20","v":0}]
[18,{"$f":"' Aanwezigheden Invullen'!B21","v":"GUY ELSLANDER"},null,null,0,null,null,0,null,null,0,0,0,0,0,null,"GUY ELSLANDER",{"$f":"' Aanwezigheden Invullen'!F21","v":0}]
[19,{"$f":"' Aanwezigheden Invullen'!B22","v":"LIES VERHAEGHE"},null,null,0,null,null,0,null,null,0,0,0,0,0,null,"LIES VERHAEGHE",{"$f":"' Aanwezigheden Invullen'!F22","v":0}]
[20,{"$f":"' Aanwezigheden Invullen'!B23","v":"PATRICK VEKEMANS"},5,13,0,13,4,1,7,13,0,1,25,30,-5,null,"PATRICK VEKEMANS",{"$f":"' Aanwezigheden Invullen'!F23","v":1}]
[21,{"$f":"' Aanwezigheden Invullen'!B24","v":"LILIANE MOSTIEN"},11,13,0,9,13,0,3,13,0,0,23,39,-16,null,"LILIANE MOSTIEN",{"$f":"' Aanwezigheden Invullen'!F24","v":1}]
[22,{"$f":"' Aanwezigheden Invullen'!B25","v":"JEF CLONEN"},null,null,0,null,null,0,null,null,0,0,0,0,0,null,"JEF CLONEN",{"$f":"' Aanwezigheden Invullen'!F25","v":0}]
[23,{"$f":"' Aanwezigheden Invullen'!B26","v":"MARLEEN VAN DE WAETER"},13,5,1,13,3,1,13,3,1,3,39,11,28,null,"MARLEEN VAN DE WAETER",{"$f":"' Aanwezigheden Invullen'!F26","v":1}]
[24,{"$f":"' Aanwezigheden Invullen'!B27","v":"MAGGIE MAHIEU"},13,13,0,13,3,1,3,13,0,1,29,29,0,null,"MAGGIE MAHIEU",{"$f":"' Aanwezigheden Invullen'!F27","v":1}]
[25,{"$f":"' Aanwezigheden Invullen'!B28","v":"GUY PEETERS"},null,null,0,null,null,0,null,null,0,0,0,0,0,null,"GUY PEETERS",{"$f":"' Aanwezigheden Invullen'!F28","v":0}]
[26,{"$f":"' Aanwezigheden Invullen'!B29","v":"LINDA MARES"},5,13,0,3,13,0,13,8,1,1,21,34,-13,null,"LINDA MARES",{"$f":"' Aanwezigheden Invullen'!F29","v":1}]
[27,{"$f":"' Aanwezigheden Invullen'!B30","v":"JULIA DE WINTER"},null,null,0,null,null,0,null,null,0,0,0,0,0,null,"JULIA DE WINTER",{"$f":"' Aanwezigheden Invullen'!F30","v":1}]
[28,{"$f":"' Aanwezigheden Invullen'!B31","v":"PAUL BOEYKENS"},13,5,1,13,8,1,1,13,0,2,27,26,1,null,"PAUL BOEYKENS",{"$f":"' Aanwezigheden Invullen'!F31","v":1}]
[29,{"$f":"' Aanwezigheden Invullen'!B32","v":"RITA LAURIJSSEN"},13,10,1,13,2,1,1,13,0,2,27,25,2,null,"RITA LAURIJSSEN",{"$f":"' Aanwezigheden Invullen'!F32","v":1}]
[30,{"$f":"' Aanwezigheden Invullen'!B33","v":"MARCEL KESTENS"},null,null,0,null,null,0,null,null,0,0,0,0,0,null,"MARCEL KESTENS",{"$f":"' Aanwezigheden Invullen'!F33","v":0}]
[31,{"$f":"' Aanwezigheden Invullen'!B34","v":"PAUL VAN HOVE"},null,null,0,null,null,0,null,null,0,0,0,0,0,null,"PAUL VAN HOVE",{"$f":"' Aanwezigheden Invullen'!F34","v":0}]
[32,{"$f":"' Aanwezigheden Invullen'!B35","v":"TONY WILLAERT"},13,10,1,12,13,0,8,13,0,1,33,36,-3,null,"TONY WILLAERT",{"$f":"' Aanwezigheden Invullen'!F35","v":1}]
[33,{"$f":"' Aanwezigheden Invullen'!B36","v":"RITA LEJON"},13,8,1,3,13,0,7,13,0,1,23,34,-11,null,"RITA LEJON",{"$f":"' Aanwezigheden Invullen'!F36","v":1}]
[34,{"$f":"' Aanwezigheden Invullen'!B37","v":"MARC VERMANT"},null,null,0,null,null,0,null,null,0,0,0,0,0,null,"MARC VERMANT",{"$f":"' Aanwezigheden Invullen'!F37","v":0}]
[35,{"$f":"' Aanwezigheden Invullen'!B38","v":"MYRIAM VERRYDT"},null,null,0,null,null,0,null,null,0,0,0,0,0,null,"MYRIAM VERRYDT",{"$f":"' Aanwezigheden Invullen'!F38","v":0}]
[36,{"$f":"' Aanwezigheden Invullen'!B39","v":"LUDO IELEGEMS"},null,null,0,null,null,0,null,null,0,0,0,0,0,null,"LUDO IELEGEMS",{"$f":"' Aanwezigheden Invullen'!F39","v":0}]
[37,{"$f":"' Aanwezigheden Invullen'!B40","v":"ANNE-MARIE KLEINJAN"},null,null,0,null,null,0,null,null,0,0,0,0,0,null,"ANNE-MARIE KLEINJAN",{"$f":"' Aanwezigheden Invullen'!F40","v":0}]
[38,{"$f":"' Aanwezigheden Invullen'!B41","v":"GRIET VERWIMP"},null,null,0,null,null,0,null,null,0,0,0,0,0,null,"GRIET VERWIMP",{"$f":"' Aanwezigheden Invullen'!F41","v":0}]
[39,{"$f":"' Aanwezigheden Invullen'!B42","v":"LUC VAN DEN BROECK"},null,null,0,null,null,0,null,null,0,0,0,0,0,null,"LUC VAN DEN BROECK",{"$f":"' Aanwezigheden Invullen'!F42","v":0}]
[40,{"$f":"' Aanwezigheden Invullen'!B43","v":"MONIQUE RUYMBEKE"},null,null,0,null,null,0,null,null,0,0,0,0,0,null,"MONIQUE RUYMBEKE",{"$f":"' Aanwezigheden Invullen'!F43","v":0}]
[41,{"$f":"' Aanwezigheden Invullen'!B44","v":"JOS JANSSENS"},null,null,0,null,null,0,null,null,0,0,0,0,0,null,"JOS JANSSENS",{"$f":"' Aanwezigheden Invullen'!F44","v":0}]
[42,{"$f":"' Aanwezigheden Invullen'!B45","v":"MARIA RUTS"},null,null,0,null,null,0,null,null,0,0,0,0,0,null,"MARIA RUTS",{"$f":"' Aanwezigheden Invullen'!F45","v":0}]
[43,{"$f":"' Aanwezigheden Invullen'!B46","v":"PIERRE MEIR"},10,13,0,13,3,1,8,13,0,1,31,29,2,null,"PIERRE MEIR",{"$f":"' Aanwezigheden Invullen'!F46","v":1}]
[44,{"$f":"' Aanwezigheden Invullen'!B47","v":"PATTY MEEUSEN"},13,5,1,9,13,0,13,1,1,2,35,19,16,null,"PATTY MEEUSEN",{"$f":"' Aanwezigheden Invullen'!F47","v":1}]
[45,{"$f":"' Aanwezigheden Invullen'!B48","v":"TRISTAN WEYN"},13,11,1,12,13,0,10,13,0,1,35,37,-2,null,"TRISTAN WEYN",{"$f":"' Aanwezigheden Invullen'!F48","v":1}]
[46,{"$f":"' Aanwezigheden Invullen'!B49","v":"CARINA LUYTEN"},10,13,0,13,12,1,13,7,1,2,36,32,4,null,"CARINA LUYTEN",{"$f":"' Aanwezigheden Invullen'!F49","v":1}]
[47,{"$f":"' Aanwezigheden Invullen'!B50","v":"ETIENNE BURM"},null,null,0,null,null,0,null,null,0,0,0,0,0,null,"ETIENNE BURM",{"$f":"' Aanwezigheden Invullen'!F50","v":0}]
[48,{"$f":"' Aanwezigheden Invullen'!B51","v":"LIEVE GEZELS"},null,null,0,null,null,0,null,null,0,0,0,0,0,null,"LIEVE GEZELS",{"$f":"' Aanwezigheden Invullen'!F51","v":0}]
[49,{"$f":"' Aanwezigheden Invullen'!B52","v":"MARIA DE VRIENDT"},null,null,0,null,null,0,null,null,0,0,0,0,0,null,"MARIA DE VRIENDT",{"$f":"' Aanwezigheden Invullen'!F52","v":0}]
[50,{"$f":"' Aanwezigheden Invullen'!B53","v":"BOB OOMS"},13,11,1,8,13,0,10,13,0,1,31,37,-6,null,"BOB OOMS",{"$f":"' Aanwezigheden Invullen'!F53","v":1}]
[51,{"$f":"' Aanwezigheden Invullen'!B54","v":"ANNITA VAN LEUGENHAEGHE"},11,13,0,13,8,1,1,13,0,1,25,34,-9,null,"ANNITA VAN LEUGENHAEGHE",{"$f":"' Aanwezigheden Invullen'!F54","v":1}]
[52,{"$f":"' Aanwezigheden Invullen'!B55","v":"LUC VAN HAVER"},13,5,1,13,4,1,13,8,1,3,39,17,22,null,"LUC VAN HAVER",{"$f":"' Aanwezigheden Invullen'!F55","v":1}]
[53,{"$f":"' Aanwezigheden Invullen'!B56","v":"BEA VERHAEGEN"},13,9,1,13,12,1,13,1,1,3,39,22,17,null,"BEA VERHAEGEN",{"$f":"' Aanwezigheden Invullen'!F56","v":1}]
[54,{"$f":"' Aanwezigheden Invullen'!B57","v":"RUDY VERACHTERT"},null,null,0,null,null,0,null,null,0,0,0,0,0,null,"RUDY VERACHTERT",{"$f":"' Aanwezigheden Invullen'!F57","v":0}]
[55,{"$f":"' Aanwezigheden Invullen'!B58","v":"CORRY DE BIE"},null,null,0,null,null,0,null,null,0,0,0,0,0,null,"CORRY DE BIE",{"$f":"' Aanwezigheden Invullen'!F58","v":0}]
[56,{"$f":"' Aanwezigheden Invullen'!B59","v":"NADINE BRACKE"},13,10,1,12,13,0,8,13,0,1,33,36,-3,null,"NADINE BRACKE",{"$f":"' Aanwezigheden Invullen'!F59","v":1}]
[57,{"$f":"' Aanwezigheden Invullen'!B60","v":"PATRICK VELDERS"},13,5,1,13,4,1,10,13,0,2,36,22,14,null,"PATRICK VELDERS",{"$f":"' Aanwezigheden Invullen'!F60","v":1}]
[58,{"$f":"' Aanwezigheden Invullen'!B61","v":"MARC DE REU"},null,null,0,null,null,0,null,null,0,0,0,0,0,null,"MARC DE REU",{"$f":"' Aanwezigheden Invullen'!F61","v":0}]
[59,{"$f":"' Aanwezigheden Invullen'!B62","v":"VIOLETTE GLANZ"},null,null,0,null,null,0,null,null,0,0,0,0,0,null,"VIOLETTE GLANZ",{"$f":"' Aanwezigheden Invullen'!F62","v":0}]
[60,{"$f":"' Aanwezigheden Invullen'!B63","v":"ROGER VAN DURME"},10,13,0,3,13,0,1,13,0,0,14,39,-25,null,"ROGER VAN DURME",{"$f":"' Aanwezigheden Invullen'!F63","v":1}]
[61,{"$f":"' Aanwezigheden Invullen'!B64","v":"JEAN TIJSMANS"},13,11,1,4,13,0,13,7,1,2,30,31,-1,null,"JEAN TIJSMANS",{"$f":"' Aanwezigheden Invullen'!F64","v":1}]
[62,{"$f":"' Aanwezigheden Invullen'!B65","v":"ETIENNE VAN ROBBROECK"},9,13,0,8,13,0,7,13,0,0,24,39,-15,null,"ETIENNE VAN ROBBROECK",{"$f":"' Aanwezigheden Invullen'!F65","v":1}]
[63,{"$f":"' Aanwezigheden Invullen'!B66","v":"PAULA VAN LINDEN"},9,13,0,1,13,0,13,10,1,1,23,36,-13,null,"PAULA VAN LINDEN",{"$f":"' Aanwezigheden Invullen'!F66","v":1}]
[64,{"$f":"' Aanwezigheden Invullen'!B67","v":"ERIK BOCKSTAL"},null,null,0,null,null,0,null,null,0,0,0,0,0,null,"ERIK BOCKSTAL",{"$f":"' Aanwezigheden Invullen'!F67","v":0}]
[65,{"$f":"' Aanwezigheden Invullen'!B68","v":"BRUNO HERREBOSCH"},10,13,{"$f":"IF((C68>D68),1,0)","v":0},4,13,{"$f":"IF((F68>G68),1,0)","v":0},1,13,{"$f":"IF((I68>J68),1,0)","v":0},0,15,39,{"$f":"SUM((M68-N68))","v":-24},null,"BRUNO HERREBOSCH",{"$f":"' Aanwezigheden Invullen'!F68","v":1}]
[66,{"$f":"' Aanwezigheden Invullen'!B69","v":"MARC GOVAERS"},13,9,1,2,13,0,13,3,1,{"$f":"SUM(E69,H69,K69)","v":2},{"$f":"SUM(C69,F69,I69)","v":28},{"$f":"SUM(D69,G69,J69)","v":25},3,null,"MARC GOVAERS",{"$f":"' Aanwezigheden Invullen'!F69","v":1}]
[67,{"$f":"' Aanwezigheden Invullen'!B70","v":"NICOLE BAYARD"},null,null,0,null,null,0,null,null,0,0,0,0,0,null,{"$f":"B70","v":"NICOLE BAYARD"},{"$f":"' Aanwezigheden Invullen'!F70","v":0}]
[68,{"$f":"' Aanwezigheden Invullen'!B71","v":"FRANK DE KINDER"},8,13,0,13,1,1,13,1,1,2,34,15,19,null,{"$f":"B71","v":"FRANK DE KINDER"},{"$f":"' Aanwezigheden Invullen'!F71","v":1}]
[69,{"$f":"' Aanwezigheden Invullen'!B72","v":"FRANS WOUTERS"},null,null,0,null,null,0,null,null,0,0,0,0,0,null,{"$f":"B72","v":"FRANS WOUTERS"},{"$f":"' Aanwezigheden Invullen'!F72","v":0}]
[70,{"$f":"' Aanwezigheden Invullen'!B73","v":"ANNE LOMBAERTS "},null,null,0,null,null,0,null,null,0,0,0,0,0,null,{"$f":"B73","v":"ANNE LOMBAERTS "},{"$f":"' Aanwezigheden Invullen'!F73","v":0}]
[71,{"$f":"' Aanwezigheden Invullen'!B74","v":"FRIEDA HAESELDONCKX"},null,null,0,null,null,0,null,null,{"$f":"IF((I74>J74),1,0)","v":0},0,0,0,{"$f":"SUM((M74-N74))","v":0},null,{"$f":"B74","v":"FRIEDA HAESELDONCKX"},{"$f":"' Aanwezigheden Invullen'!F74","v":0}]
[72,{"$f":"' Aanwezigheden Invullen'!B75","v":"CHRIS DE RAEYMAEKER"},null,null,0,null,null,0,null,null,0,0,0,0,0,null,"CHRIS DE RAEYMAEKER",{"$f":"' Aanwezigheden Invullen'!F75","v":0}]
[73,{"$f":"' Aanwezigheden Invullen'!B76","v":"WIS VAN DINGENEN"},13,9,1,13,9,1,13,1,1,3,39,19,20,null,"WIS VAN DINGENEN",{"$f":"' Aanwezigheden Invullen'!F76","v":0}]
[74,{"$f":"' Aanwezigheden Invullen'!B77","v":"RENEE COPPENS"},null,null,0,null,null,0,null,null,0,0,0,0,0,null,"RENEE COPPENS",{"$f":"' Aanwezigheden Invullen'!F77","v":0}]
[75,{"$f":"' Aanwezigheden Invullen'!B78","v":0},null,null,0,null,null,0,null,null,0,0,0,0,0,null,0,{"$f":"' Aanwezigheden Invullen'!F78","v":0}]
[76,{"$f":"' Aanwezigheden Invullen'!B79","v":0},null,null,0,null,null,0,null,null,0,0,0,0,0,null,0,{"$f":"' Aanwezigheden Invullen'!F79","v":0}]
[77,{"$f":"' Aanwezigheden Invullen'!B80","v":0},null,null,0,null,null,0,null,null,0,0,0,0,0,null,0,{"$f":"' Aanwezigheden Invullen'!F80","v":0}]
[78,{"$f":"' Aanwezigheden Invullen'!B81","v":0},null,null,0,null,null,0,null,null,0,0,0,0,0,null,0,{"$f":"' Aanwezigheden Invullen'!F81","v":0}]
[79,{"$f":"' Aanwezigheden Invullen'!B82","v":0},null,null,0,null,null,0,null,null,0,0,0,0,0,null,0,{"$f":"' Aanwezigheden Invullen'!F82","v":0}]
[80,{"$f":"' Aanwezigheden Invullen'!B83","v":0},null,null,0,null,null,0,null,null,0,0,0,0,0,null,0,{"$f":"' Aanwezigheden Invullen'!F83","v":0}]
[81,{"$f":"' Aanwezigheden Invullen'!B84","v":0},null,null,0,null,null,0,null,null,0,0,0,0,0,null,0,{"$f":"' Aanwezigheden Invullen'!F84","v":0}]
[82,{"$f":"' Aanwezigheden Invullen'!B85","v":0},null,null,0,null,null,0,null,null,0,0,0,0,0,null,0,{"$f":"' Aanwezigheden Invullen'!F85","v":0}]
[83,{"$f":"' Aanwezigheden Invullen'!B86","v":0},null,null,0,null,null,0,null,null,0,0,0,0,0,null,0,{"$f":"' Aanwezigheden Invullen'!F86","v":0}]
[84,{"$f":"' Aanwezigheden Invullen'!B87","v":0},null,null,0,null,null,0,null,null,0,0,0,0,0,null,0,{"$f":"' Aanwezigheden Invullen'!F87","v":0}]
[85,{"$f":"' Aanwezigheden Invullen'!B88","v":0},null,null,0,null,null,0,null,null,0,0,0,0,0,null,0,{"$f":"' Aanwezigheden Invullen'!F88","v":0}]
[86,{"$f":"' Aanwezigheden Invullen'!B89","v":0},null,null,0,null,null,0,null,null,0,0,0,0,0,null,0,{"$f":"' Aanwezigheden Invullen'!F89","v":0}]
[87,{"$f":"' Aanwezigheden Invullen'!B90","v":0},null,null,0,null,null,0,null,null,0,0,0,0,0,null,0,{"$f":"' Aanwezigheden Invullen'!F90","v":0}]
[88,{"$f":"' Aanwezigheden Invullen'!B91","v":0},null,null,{"$f":"IF((C91>D91),1,0)","v":0},null,null,{"$f":"IF((F91>G91),1,0)","v":0},null,null,{"$f":"IF((I91>J91),1,0)","v":0},{"$f":"SUM(E91,H91,K91)","v":0},{"$f":"SUM(C91,F91,I91)","v":0},{"$f":"SUM(D91,G91,J91)","v":0},{"$f":"SUM((M91-N91))","v":0},null,{"$f":"B91","v":0},{"$f":"' Aanwezigheden Invullen'!F91","v":0}]
[89,{"$f":"' Aanwezigheden Invullen'!B92","v":0},null,null,0,null,null,0,null,null,0,0,0,0,0,null,0,{"$f":"' Aanwezigheden Invullen'!F92","v":0}]
[90,{"$f":"' Aanwezigheden Invullen'!B93","v":0},null,null,0,null,null,0,null,null,0,0,0,0,0,null,0,{"$f":"' Aanwezigheden Invullen'!F93","v":0}]
[91,{"$f":"' Aanwezigheden Invullen'!B94","v":0},null,null,0,null,null,0,null,null,0,0,0,0,0,null,0,{"$f":"' Aanwezigheden Invullen'!F94","v":0}]
[92,{"$f":"' Aanwezigheden Invullen'!B95","v":0},null,null,0,null,null,0,null,null,0,0,0,0,0,null,0,{"$f":"' Aanwezigheden Invullen'!F95","v":0}]
[93,{"$f":"' Aanwezigheden Invullen'!B96","v":0},null,null,0,null,null,0,null,null,0,0,0,0,0,null,0,{"$f":"' Aanwezigheden Invullen'!F96","v":0}]
[94,{"$f":"' Aanwezigheden Invullen'!B97","v":0},null,null,0,null,null,0,null,null,0,0,0,0,0,null,0,{"$f":"' Aanwezigheden Invullen'!F97","v":0}]
[95,{"$f":"' Aanwezigheden Invullen'!B98","v":0},null,null,0,null,null,0,null,null,0,0,0,0,0,null,0,{"$f":"' Aanwezigheden Invullen'!F98","v":0}]
[96,{"$f":"' Aanwezigheden Invullen'!B99","v":0},null,null,0,null,null,0,null,null,0,0,0,0,0,null,0,{"$f":"' Aanwezigheden Invullen'!F99","v":0}]
[97,{"$f":"' Aanwezigheden Invullen'!B100","v":0},null,null,0,null,null,0,null,null,0,0,0,0,0,null,0,{"$f":"' Aanwezigheden Invullen'!F100","v":0}]
[98,{"$f":"' Aanwezigheden Invullen'!B101","v":0},null,null,0,null,null,0,null,null,0,0,0,0,0,null,0,{"$f":"' Aanwezigheden Invullen'!F101","v":0}]
[99,{"$f":"' Aanwezigheden Invullen'!B102","v":0},null,null,0,null,null,0,null,null,0,0,0,0,0,null,0,{"$f":"' Aanwezigheden Invullen'!F102","v":0}]
[100,{"$f":"' Aanwezigheden Invullen'!B103","v":0},null,null,0,null,null,0,null,null,0,0,0,0,0,null,0,{"$f":"' Aanwezigheden Invullen'!F103","v":0}]
[101,{"$f":"' Aanwezigheden Invullen'!B104","v":0},null,null,0,null,null,0,null,null,0,0,0,0,0,null,0,{"$f":"' Aanwezigheden Invullen'!F104","v":0}]
[102,{"$f":"' Aanwezigheden Invullen'!B105","v":0},null,null,0,null,null,0,null,null,0,0,0,0,0,null,0,{"$f":"' Aanwezigheden Invullen'!F105","v":0}]
[103,{"$f":"' Aanwezigheden Invullen'!B106","v":0},null,null,0,null,null,0,null,null,0,0,0,0,0,null,0,{"$f":"' Aanwezigheden Invullen'!F106","v":0}]
[104,{"$f":"' Aanwezigheden Invullen'!B107","v":0},null,null,0,null,null,0,null,null,0,0,0,0,0,null,0,{"$f":"' Aanwezigheden Invullen'!F107","v":0}]
[105,{"$f":"' Aanwezigheden Invullen'!B108","v":0},null,null,0,null,null,0,null,null,0,0,0,0,0,null,0,{"$f":"' Aanwezigheden Invullen'!F108","v":0}]
[106,{"$f":"' Aanwezigheden Invullen'!B109","v":0},null,null,0,null,null,0,null,null,0,0,0,0,0,null,0,{"$f":"' Aanwezigheden Invullen'!F109","v":0}]
[107,{"$f":"' Aanwezigheden Invullen'!B110","v":0},null,null,0,null,null,0,null,null,0,0,0,0,0,null,0,{"$f":"' Aanwezigheden Invullen'!F110","v":0}]
[108,{"$f":"' Aanwezigheden Invullen'!B111","v":0},null,null,0,null,null,0,null,null,0,0,0,0,0,null,0,{"$f":"' Aanwezigheden Invullen'!F111","v":0}]
[109,{"$f":"' Aanwezigheden Invullen'!B112","v":0},null,null,0,null,null,0,null,null,0,0,0,0,0,null,0,{"$f":"' Aanwezigheden Invullen'!F112","v":0}]
[110,{"$f":"' Aanwezigheden Invullen'!B113","v":0},null,null,0,null,null,0,null,null,0,0,0,0,0,null,0,{"$f":"' Aanwezigheden Invullen'!F113","v":0}]

{"sheet":"GLOBAAL RESULTAAT","index":9,"n_rows":113,"n_cols":14,"rows_kept":113,"cut":false,"hidden":false,"merged":[]}
[null,null,"MERKSEM",null,"WOMMELGEM",null,"KIEL",null,"WIJNEGEM",null,"EINDUITSLAG",null,null,"Elke keer de knop \"Sorteren op Volgnr\" terug gebruiken AUB"]
[null,null,"Gew","Totaal","Gew","Totaal","Gew","Totaal","Gew","Totaal","Gew","Totaal",null,"Na sorteren op winnaar ook \"verberg rijen\" gebruiken AUB"]
["Nr","Naam","Totaal","saldo 1","Totaal","saldo 2","Totaal","saldo 3","Totaal","saldo 4","Totaal","saldo","EINDKLASSEMENT 2019"]
[1,{"$f":"' Aanwezigheden Invullen'!B4","v":"JAN VAN BERCKELAER"},{"$f":"'RESULTAAT MERKSEM'!L4","v":3},{"$f":"'RESULTAAT MERKSEM'!O4","v":12},{"$f":"'RESULTAAT WOMMELGEM'!L4","v":2},{"$f":"'RESULTAAT WOMMELGEM'!O4","v":10},{"$f":"'RESULTAAT KIEL'!L4","v":2},{"$f":"'RESULTAAT KIEL'!O4","v":1},{"$f":"'RESULTAAT WIJNEGEM'!L4","v":3},{"$f":"'RESULTAAT WIJNEGEM'!O4","v":27},{"$f":"SUM(C4,E4,G4,I4)","v":10},{"$f":"IF(D4+F4+H4+J4=0,\"0\",SUM(D4,F4,H4,J4))","v":50},null,{"$f":"B4","v":"JAN VAN BERCKELAER"}]
[2,{"$f":"' Aanwezigheden Invullen'!B5","v":"CLAIRE VERMEULEN"},{"$f":"'RESULTAAT MERKSEM'!L5","v":2},{"$f":"'RESULTAAT MERKSEM'!O5","v":5},{"$f":"'RESULTAAT WOMMELGEM'!L5","v":2},{"$f":"'RESULTAAT WOMMELGEM'!O5","v":-4},{"$f":"'RESULTAAT KIEL'!L5","v":1},{"$f":"'RESULTAAT KIEL'!O5","v":-6},{"$f":"'RESULTAAT WIJNEGEM'!L5","v":2},{"$f":"'RESULTAAT WIJNEGEM'!O5","v":-5},7,-10,null,"CLAIRE VERMEULEN"]
[3,{"$f":"' Aanwezigheden Invullen'!B6","v":"MARC ARTS"},{"$f":"'RESULTAAT MERKSEM'!L6","v":0},{"$f":"'RESULTAAT MERKSEM'!O6","v":0},{"$f":"'RESULTAAT WOMMELGEM'!L6","v":0},{"$f":"'RESULTAAT WOMMELGEM'!O6","v":0},{"$f":"'RESULTAAT KIEL'!L6","v":0},{"$f":"'RESULTAAT KIEL'!O6","v":0},{"$f":"'RESULTAAT WIJNEGEM'!L6","v":0},{"$f":"'RESULTAAT WIJNEGEM'!O6","v":0},0,"0",null,"MARC ARTS"]
[4,{"$f":"' Aanwezigheden Invullen'!B7","v":"ERNEST BOMANS"},{"$f":"'RESULTAAT MERKSEM'!L7","v":0},{"$f":"'RESULTAAT MERKSEM'!O7","v":0},{"$f":"'RESULTAAT WOMMELGEM'!L7","v":0},{"$f":"'RESULTAAT WOMMELGEM'!O7","v":0},{"$f":"'RESULTAAT KIEL'!L7","v":0},{"$f":"'RESULTAAT KIEL'!O7","v":0},{"$f":"'RESULTAAT WIJNEGEM'!L7","v":0},{"$f":"'RESULTAAT WIJNEGEM'!O7","v":0},0,"0",null,"ERNEST BOMANS"]
[5,{"$f":"' Aanwezigheden Invullen'!B8","v":"VERA LEYSEN"},{"$f":"'RESULTAAT MERKSEM'!L8","v":0},{"$f":"'RESULTAAT MERKSEM'!O8","v":0},{"$f":"'RESULTAAT WOMMELGEM'!L8","v":0},{"$f":"'RESULTAAT WOMMELGEM'!O8","v":0},{"$f":"'RESULTAAT KIEL'!L8","v":0},{"$f":"'RESULTAAT KIEL'!O8","v":0},{"$f":"'RESULTAAT WIJNEGEM'!L8","v":0},{"$f":"'RESULTAAT WIJNEGEM'!O8","v":0},0,"0",null,"VERA LEYSEN"]
[6,{"$f":"' Aanwezigheden Invullen'!B9","v":"WILLY HEMELS"},{"$f":"'RESULTAAT MERKSEM'!L9","v":1},{"$f":"'RESULTAAT MERKSEM'!O9","v":-2},{"$f":"'RESULTAAT WOMMELGEM'!L9","v":0},{"$f":"'RESULTAAT WOMMELGEM'!O9","v":0},{"$f":"'RESULTAAT KIEL'!L9","v":3},{"$f":"'RESULTAAT KIEL'!O9","v":18},{"$f":"'RESULTAAT WIJNEGEM'!L9","v":0},{"$f":"'RESULTAAT WIJNEGEM'!O9","v":0},4,16,null,"WILLY HEMELS"]
[7,{"$f":"' Aanwezigheden Invullen'!B10","v":"ALAIN SPIRON"},{"$f":"'RESULTAAT MERKSEM'!L10","v":3},{"$f":"'RESULTAAT MERKSEM'!O10","v":15},{"$f":"'RESULTAAT WOMMELGEM'!L10","v":0},{"$f":"'RESULTAAT WOMMELGEM'!O10","v":0},{"$f":"'RESULTAAT KIEL'!L10","v":3},{"$f":"'RESULTAAT KIEL'!O10","v":28},{"$f":"'RESULTAAT WIJNEGEM'!L10","v":1},{"$f":"'RESULTAAT WIJNEGEM'!O10","v":-16},7,27,null,"ALAIN SPIRON"]
[8,{"$f":"' Aanwezigheden Invullen'!B11","v":"PAUL VAN OECKEL"},{"$f":"'RESULTAAT MERKSEM'!L11","v":0},{"$f":"'RESULTAAT MERKSEM'!O11","v":0},{"$f":"'RESULTAAT WOMMELGEM'!L11","v":0},{"$f":"'RESULTAAT WOMMELGEM'!O11","v":0},{"$f":"'RESULTAAT KIEL'!L11","v":2},{"$f":"'RESULTAAT KIEL'!O11","v":9},{"$f":"'RESULTAAT WIJNEGEM'!L11","v":2},{"$f":"'RESULTAAT WIJNEGEM'!O11","v":6},4,15,null,"PAUL VAN OECKEL"]
[9,{"$f":"' Aanwezigheden Invullen'!B12","v":"RITA NAGELS"},{"$f":"'RESULTAAT MERKSEM'!L12","v":0},{"$f":"'RESULTAAT MERKSEM'!O12","v":0},{"$f":"'RESULTAAT WOMMELGEM'!L12","v":0},{"$f":"'RESULTAAT WOMMELGEM'!O12","v":0},{"$f":"'RESULTAAT KIEL'!L12","v":2},{"$f":"'RESULTAAT KIEL'!O12","v":0},{"$f":"'RESULTAAT WIJNEGEM'!L12","v":1},{"$f":"'RESULTAAT WIJNEGEM'!O12","v":-3},3,-3,null,"RITA NAGELS"]
[10,{"$f":"' Aanwezigheden Invullen'!B13","v":"ROGER LENAERTS"},{"$f":"'RESULTAAT MERKSEM'!L13","v":1},{"$f":"'RESULTAAT MERKSEM'!O13","v":-12},{"$f":"'RESULTAAT WOMMELGEM'!L13","v":2},{"$f":"'RESULTAAT WOMMELGEM'!O13","v":13},{"$f":"'RESULTAAT KIEL'!L13","v":2},{"$f":"'RESULTAAT KIEL'!O13","v":-3},{"$f":"'RESULTAAT WIJNEGEM'!L13","v":2},{"$f":"'RESULTAAT WIJNEGEM'!O13","v":18},7,16,null,"ROGER LENAERTS"]
[11,{"$f":"' Aanwezigheden Invullen'!B14","v":"ROGER WOUTERS"},{"$f":"'RESULTAAT MERKSEM'!L14","v":3},{"$f":"'RESULTAAT MERKSEM'!O14","v":13},{"$f":"'RESULTAAT WOMMELGEM'!L14","v":0},{"$f":"'RESULTAAT WOMMELGEM'!O14","v":0},{"$f":"'RESULTAAT KIEL'!L14","v":1},{"$f":"'RESULTAAT KIEL'!O14","v":-7},{"$f":"'RESULTAAT WIJNEGEM'!L14","v":1},{"$f":"'RESULTAAT WIJNEGEM'!O14","v":-15},5,-9,null,"ROGER WOUTERS"]
[12,{"$f":"' Aanwezigheden Invullen'!B15","v":"AN VAN DER GUCHT"},{"$f":"'RESULTAAT MERKSEM'!L15","v":0},{"$f":"'RESULTAAT MERKSEM'!O15","v":0},{"$f":"'RESULTAAT WOMMELGEM'!L15","v":0},{"$f":"'RESULTAAT WOMMELGEM'!O15","v":0},{"$f":"'RESULTAAT KIEL'!L15","v":0},{"$f":"'RESULTAAT KIEL'!O15","v":-21},{"$f":"'RESULTAAT WIJNEGEM'!L15","v":1},{"$f":"'RESULTAAT WIJNEGEM'!O15","v":-17},1,-38,null,"AN VAN DER GUCHT"]
[13,{"$f":"' Aanwezigheden Invullen'!B16","v":"MARC DELVAUX"},{"$f":"'RESULTAAT MERKSEM'!L16","v":0},{"$f":"'RESULTAAT MERKSEM'!O16","v":0},{"$f":"'RESULTAAT WOMMELGEM'!L16","v":0},{"$f":"'RESULTAAT WOMMELGEM'!O16","v":0},{"$f":"'RESULTAAT KIEL'!L16","v":1},{"$f":"'RESULTAAT KIEL'!O16","v":-5},{"$f":"'RESULTAAT WIJNEGEM'!L16","v":2},{"$f":"'RESULTAAT WIJNEGEM'!O16","v":3},3,-2,null,"MARC DELVAUX"]
[14,{"$f":"' Aanwezigheden Invullen'!B17","v":"FONS NICOLAY"},{"$f":"'RESULTAAT MERKSEM'!L17","v":2},{"$f":"'RESULTAAT MERKSEM'!O17","v":5},{"$f":"'RESULTAAT WOMMELGEM'!L17","v":2},{"$f":"'RESULTAAT WOMMELGEM'!O17","v":14},{"$f":"'RESULTAAT KIEL'!L17","v":2},{"$f":"'RESULTAAT KIEL'!O17","v":1},{"$f":"'RESULTAAT WIJNEGEM'!L17","v":1},{"$f":"'RESULTAAT WIJNEGEM'!O17","v":1},7,21,null,"FONS NICOLAY"]
[15,{"$f":"' Aanwezigheden Invullen'!B18","v":"LILIANE LAURIJSSEN"},{"$f":"'RESULTAAT MERKSEM'!L18","v":1},{"$f":"'RESULTAAT MERKSEM'!O18","v":-1},{"$f":"'RESULTAAT WOMMELGEM'!L18","v":1},{"$f":"'RESULTAAT WOMMELGEM'!O18","v":-6},{"$f":"'RESULTAAT KIEL'!L18","v":2},{"$f":"'RESULTAAT KIEL'!O18","v":11},{"$f":"'RESULTAAT WIJNEGEM'!L18","v":2},{"$f":"'RESULTAAT WIJNEGEM'!O18","v":0},6,4,null,"LILIANE LAURIJSSEN"]
[16,{"$f":"' Aanwezigheden Invullen'!B19","v":"JEF LAUWERS"},{"$f":"'RESULTAAT MERKSEM'!L19","v":0},{"$f":"'RESULTAAT MERKSEM'!O19","v":0},{"$f":"'RESULTAAT WOMMELGEM'!L19","v":0},{"$f":"'RESULTAAT WOMMELGEM'!O19","v":0},{"$f":"'RESULTAAT KIEL'!L19","v":0},{"$f":"'RESULTAAT KIEL'!O19","v":0},{"$f":"'RESULTAAT WIJNEGEM'!L19","v":0},{"$f":"'RESULTAAT WIJNEGEM'!O19","v":0},0,"0",null,"JEF LAUWERS"]
[17,{"$f":"' Aanwezigheden Invullen'!B20","v":"PAULINE OLDE-BIJVANK"},{"$f":"'RESULTAAT MERKSEM'!L20","v":0},{"$f":"'RESULTAAT MERKSEM'!O20","v":0},{"$f":"'RESULTAAT WOMMELGEM'!L20","v":0},{"$f":"'RESULTAAT WOMMELGEM'!O20","v":0},{"$f":"'RESULTAAT KIEL'!L20","v":0},{"$f":"'RESULTAAT KIEL'!O20","v":0},{"$f":"'RESULTAAT WIJNEGEM'!L20","v":0},{"$f":"'RESULTAAT WIJNEGEM'!O20","v":0},0,"0",null,"PAULINE OLDE-BIJVANK"]
[18,{"$f":"' Aanwezigheden Invullen'!B21","v":"GUY ELSLANDER"},{"$f":"'RESULTAAT MERKSEM'!L21","v":1},{"$f":"'RESULTAAT MERKSEM'!O21","v":-5},{"$f":"'RESULTAAT WOMMELGEM'!L21","v":0},{"$f":"'RESULTAAT WOMMELGEM'!O21","v":0},{"$f":"'RESULTAAT KIEL'!L21","v":2},{"$f":"'RESULTAAT KIEL'!O21","v":0},{"$f":"'RESULTAAT WIJNEGEM'!L21","v":0},{"$f":"'RESULTAAT WIJNEGEM'!O21","v":0},3,-5,null,"GUY ELSLANDER"]
[19,{"$f":"' Aanwezigheden Invullen'!B22","v":"LIES VERHAEGHE"},{"$f":"'RESULTAAT MERKSEM'!L22","v":1},{"$f":"'RESULTAAT MERKSEM'!O22","v":-15},{"$f":"'RESULTAAT WOMMELGEM'!L22","v":0},{"$f":"'RESULTAAT WOMMELGEM'!O22","v":0},{"$f":"'RESULTAAT KIEL'!L22","v":0},{"$f":"'RESULTAAT KIEL'!O22","v":0},{"$f":"'RESULTAAT WIJNEGEM'!L22","v":0},{"$f":"'RESULTAAT WIJNEGEM'!O22","v":0},1,-15,null,"LIES VERHAEGHE"]
[20,{"$f":"' Aanwezigheden Invullen'!B23","v":"PATRICK VEKEMANS"},{"$f":"'RESULTAAT MERKSEM'!L23","v":0},{"$f":"'RESULTAAT MERKSEM'!O23","v":-9},{"$f":"'RESULTAAT WOMMELGEM'!L23","v":2},{"$f":"'RESULTAAT WOMMELGEM'!O23","v":7},{"$f":"'RESULTAAT KIEL'!L23","v":1},{"$f":"'RESULTAAT KIEL'!O23","v":0},{"$f":"'RESULTAAT WIJNEGEM'!L23","v":1},{"$f":"'RESULTAAT WIJNEGEM'!O23","v":-5},4,-7,null,"PATRICK VEKEMANS"]
[21,{"$f":"' Aanwezigheden Invullen'!B24","v":"LILIANE MOSTIEN"},{"$f":"'RESULTAAT MERKSEM'!L24","v":1},{"$f":"'RESULTAAT MERKSEM'!O24","v":3},{"$f":"'RESULTAAT WOMMELGEM'!L24","v":2},{"$f":"'RESULTAAT WOMMELGEM'!O24","v":9},{"$f":"'RESULTAAT KIEL'!L24","v":2},{"$f":"'RESULTAAT KIEL'!O24","v":17},{"$f":"'RESULTAAT WIJNEGEM'!L24","v":0},{"$f":"'RESULTAAT WIJNEGEM'!O24","v":-16},5,13,null,"LILIANE MOSTIEN"]
[22,{"$f":"' Aanwezigheden Invullen'!B25","v":"JEF CLONEN"},{"$f":"'RESULTAAT MERKSEM'!L25","v":0},{"$f":"'RESULTAAT MERKSEM'!O25","v":0},{"$f":"'RESULTAAT WOMMELGEM'!L25","v":0},{"$f":"'RESULTAAT WOMMELGEM'!O25","v":0},{"$f":"'RESULTAAT KIEL'!L25","v":0},{"$f":"'RESULTAAT KIEL'!O25","v":0},{"$f":"'RESULTAAT WIJNEGEM'!L25","v":0},{"$f":"'RESULTAAT WIJNEGEM'!O25","v":0},0,"0",null,"JEF CLONEN"]
[23,{"$f":"' Aanwezigheden Invullen'!B26","v":"MARLEEN VAN DE WAETER"},{"$f":"'RESULTAAT MERKSEM'!L26","v":2},{"$f":"'RESULTAAT MERKSEM'!O26","v":1},{"$f":"'RESULTAAT WOMMELGEM'!L26","v":1},{"$f":"'RESULTAAT WOMMELGEM'!O26","v":-11},{"$f":"'RESULTAAT KIEL'!L26","v":1},{"$f":"'RESULTAAT KIEL'!O26","v":-7},{"$f":"'RESULTAAT WIJNEGEM'!L26","v":3},{"$f":"'RESULTAAT WIJNEGEM'!O26","v":28},7,11,null,"MARLEEN VAN DE WAETER"]
[24,{"$f":"' Aanwezigheden Invullen'!B27","v":"MAGGIE MAHIEU"},{"$f":"'RESULTAAT MERKSEM'!L27","v":1},{"$f":"'RESULTAAT MERKSEM'!O27","v":-4},{"$f":"'RESULTAAT WOMMELGEM'!L27","v":1},{"$f":"'RESULTAAT WOMMELGEM'!O27","v":-1},{"$f":"'RESULTAAT KIEL'!L27","v":0},{"$f":"'RESULTAAT KIEL'!O27","v":-20},{"$f":"'RESULTAAT WIJNEGEM'!L27","v":1},{"$f":"'RESULTAAT WIJNEGEM'!O27","v":0},3,-25,null,"MAGGIE MAHIEU"]
[25,{"$f":"' Aanwezigheden Invullen'!B28","v":"GUY PEETERS"},{"$f":"'RESULTAAT MERKSEM'!L28","v":0},{"$f":"'RESULTAAT MERKSEM'!O28","v":0},{"$f":"'RESULTAAT WOMMELGEM'!L28","v":2},{"$f":"'RESULTAAT WOMMELGEM'!O28","v":5},{"$f":"'RESULTAAT KIEL'!L28","v":2},{"$f":"'RESULTAAT KIEL'!O28","v":9},{"$f":"'RESULTAAT WIJNEGEM'!L28","v":0},{"$f":"'RESULTAAT WIJNEGEM'!O28","v":0},4,14,null,"GUY PEETERS"]
[26,{"$f":"' Aanwezigheden Invullen'!B29","v":"LINDA MARES"},{"$f":"'RESULTAAT MERKSEM'!L29","v":1},{"$f":"'RESULTAAT MERKSEM'!O29","v":2},{"$f":"'RESULTAAT WOMMELGEM'!L29","v":2},{"$f":"'RESULTAAT WOMMELGEM'!O29","v":9},{"$f":"'RESULTAAT KIEL'!L29","v":2},{"$f":"'RESULTAAT KIEL'!O29","v":11},{"$f":"'RESULTAAT WIJNEGEM'!L29","v":1},{"$f":"'RESULTAAT WIJNEGEM'!O29","v":-13},6,9,null,"LINDA MARES"]
[27,{"$f":"' Aanwezigheden Invullen'!B30","v":"JULIA DE WINTER"},{"$f":"'RESULTAAT MERKSEM'!L30","v":1},{"$f":"'RESULTAAT MERKSEM'!O30","v":-14},{"$f":"'RESULTAAT WOMMELGEM'!L30","v":0},{"$f":"'RESULTAAT WOMMELGEM'!O30","v":0},{"$f":"'RESULTAAT KIEL'!L30","v":3},{"$f":"'RESULTAAT KIEL'!O30","v":24},{"$f":"'RESULTAAT WIJNEGEM'!L30","v":0},{"$f":"'RESULTAAT WIJNEGEM'!O30","v":0},4,10,null,"JULIA DE WINTER"]
[28,{"$f":"' Aanwezigheden Invullen'!B31","v":"PAUL BOEYKENS"},{"$f":"'RESULTAAT MERKSEM'!L31","v":2},{"$f":"'RESULTAAT MERKSEM'!O31","v":5},{"$f":"'RESULTAAT WOMMELGEM'!L31","v":3},{"$f":"'RESULTAAT WOMMELGEM'!O31","v":20},{"$f":"'RESULTAAT KIEL'!L31","v":1},{"$f":"'RESULTAAT KIEL'!O31","v":-1},{"$f":"'RESULTAAT WIJNEGEM'!L31","v":2},{"$f":"'RESULTAAT WIJNEGEM'!O31","v":1},8,25,null,"PAUL BOEYKENS"]
[29,{"$f":"' Aanwezigheden Invullen'!B32","v":"RITA LAURIJSSEN"},{"$f":"'RESULTAAT MERKSEM'!L32","v":2},{"$f":"'RESULTAAT MERKSEM'!O32","v":-4},{"$f":"'RESULTAAT WOMMELGEM'!L32","v":1},{"$f":"'RESULTAAT WOMMELGEM'!O32","v":-7},{"$f":"'RESULTAAT KIEL'!L32","v":1},{"$f":"'RESULTAAT KIEL'!O32","v":2},{"$f":"'RESULTAAT WIJNEGEM'!L32","v":2},{"$f":"'RESULTAAT WIJNEGEM'!O32","v":2},6,-7,null,"RITA LAURIJSSEN"]
[30,{"$f":"' Aanwezigheden Invullen'!B33","v":"MARCEL KESTENS"},{"$f":"'RESULTAAT MERKSEM'!L33","v":0},{"$f":"'RESULTAAT MERKSEM'!O33","v":0},{"$f":"'RESULTAAT WOMMELGEM'!L33","v":0},{"$f":"'RESULTAAT WOMMELGEM'!O33","v":0},{"$f":"'RESULTAAT KIEL'!L33","v":0},{"$f":"'RESULTAAT KIEL'!O33","v":0},{"$f":"'RESULTAAT WIJNEGEM'!L33","v":0},{"$f":"'RESULTAAT WIJNEGEM'!O33","v":0},0,"0",null,"MARCEL KESTENS"]
[31,{"$f":"' Aanwezigheden Invullen'!B34","v":"PAUL VAN HOVE"},{"$f":"'RESULTAAT MERKSEM'!L34","v":0},{"$f":"'RESULTAAT MERKSEM'!O34","v":0},{"$f":"'RESULTAAT WOMMELGEM'!L34","v":0},{"$f":"'RESULTAAT WOMMELGEM'!O34","v":0},{"$f":"'RESULTAAT KIEL'!L34","v":0},{"$f":"'RESULTAAT KIEL'!O34","v":0},{"$f":"'RESULTAAT WIJNEGEM'!L34","v":0},{"$f":"'RESULTAAT WIJNEGEM'!O34","v":0},0,"0",null,"PAUL VAN HOVE"]
[32,{"$f":"' Aanwezigheden Invullen'!B35","v":"TONY WILLAERT"},{"$f":"'RESULTAAT MERKSEM'!L35","v":0},{"$f":"'RESULTAAT MERKSEM'!O35","v":0},{"$f":"'RESULTAAT WOMMELGEM'!L35","v":0},{"$f":"'RESULTAAT WOMMELGEM'!O35","v":0},{"$f":"'RESULTAAT KIEL'!L35","v":0},{"$f":"'RESULTAAT KIEL'!O35","v":-16},{"$f":"'RESULTAAT WIJNEGEM'!L35","v":1},{"$f":"'RESULTAAT WIJNEGEM'!O35","v":-3},1,-19,null,"TONY WILLAERT"]
[33,{"$f":"' Aanwezigheden Invullen'!B36","v":"RITA LEJON"},{"$f":"'RESULTAAT MERKSEM'!L36","v":0},{"$f":"'RESULTAAT MERKSEM'!O36","v":0},{"$f":"'RESULTAAT WOMMELGEM'!L36","v":0},{"$f":"'RESULTAAT WOMMELGEM'!O36","v":0},{"$f":"'RESULTAAT KIEL'!L36","v":1},{"$f":"'RESULTAAT KIEL'!O36","v":-5},{"$f":"'RESULTAAT WIJNEGEM'!L36","v":1},{"$f":"'RESULTAAT WIJNEGEM'!O36","v":-11},{"$f":"SUM(C36,E36,G36,I36)","v":2},{"$f":"IF(D36+F36+H36+J36=0,\"0\",SUM(D36,F36,H36,J36))","v":-16},null,{"$f":"B36","v":"RITA LEJON"}]
[34,{"$f":"' Aanwezigheden Invullen'!B37","v":"MARC VERMANT"},{"$f":"'RESULTAAT MERKSEM'!L37","v":1},{"$f":"'RESULTAAT MERKSEM'!O37","v":0},{"$f":"'RESULTAAT WOMMELGEM'!L37","v":1},{"$f":"'RESULTAAT WOMMELGEM'!O37","v":-9},{"$f":"'RESULTAAT KIEL'!L37","v":0},{"$f":"'RESULTAAT KIEL'!O37","v":-16},{"$f":"'RESULTAAT WIJNEGEM'!L37","v":0},{"$f":"'RESULTAAT WIJNEGEM'!O37","v":0},2,-25,null,"MARC VERMANT"]
[35,{"$f":"' Aanwezigheden Invullen'!B38","v":"MYRIAM VERRYDT"},{"$f":"'RESULTAAT MERKSEM'!L38","v":2},{"$f":"'RESULTAAT MERKSEM'!O38","v":9},{"$f":"'RESULTAAT WOMMELGEM'!L38","v":1},{"$f":"'RESULTAAT WOMMELGEM'!O38","v":-9},{"$f":"'RESULTAAT KIEL'!L38","v":1},{"$f":"'RESULTAAT KIEL'!O38","v":-14},{"$f":"'RESULTAAT WIJNEGEM'!L38","v":0},{"$f":"'RESULTAAT WIJNEGEM'!O38","v":0},4,-14,null,"MYRIAM VERRYDT"]
[36,{"$f":"' Aanwezigheden Invullen'!B39","v":"LUDO IELEGEMS"},{"$f":"'RESULTAAT MERKSEM'!L39","v":0},{"$f":"'RESULTAAT MERKSEM'!O39","v":0},{"$f":"'RESULTAAT WOMMELGEM'!L39","v":0},{"$f":"'RESULTAAT WOMMELGEM'!O39","v":0},{"$f":"'RESULTAAT KIEL'!L39","v":0},{"$f":"'RESULTAAT KIEL'!O39","v":0},{"$f":"'RESULTAAT WIJNEGEM'!L39","v":0},{"$f":"'RESULTAAT WIJNEGEM'!O39","v":0},0,"0",null,"LUDO IELEGEMS"]
[37,{"$f":"' Aanwezigheden Invullen'!B40","v":"ANNE-MARIE KLEINJAN"},{"$f":"'RESULTAAT MERKSEM'!L40","v":0},{"$f":"'RESULTAAT MERKSEM'!O40","v":0},{"$f":"'RESULTAAT WOMMELGEM'!L40","v":0},{"$f":"'RESULTAAT WOMMELGEM'!O40","v":0},{"$f":"'RESULTAAT KIEL'!L40","v":0},{"$f":"'RESULTAAT KIEL'!O40","v":0},{"$f":"'RESULTAAT WIJNEGEM'!L40","v":0},{"$f":"'RESULTAAT WIJNEGEM'!O40","v":0},0,"0",null,"ANNE-MARIE KLEINJAN"]
[38,{"$f":"' Aanwezigheden Invullen'!B41","v":"GRIET VERWIMP"},{"$f":"'RESULTAAT MERKSEM'!L41","v":0},{"$f":"'RESULTAAT MERKSEM'!O41","v":0},{"$f":"'RESULTAAT WOMMELGEM'!L41","v":0},{"$f":"'RESULTAAT WOMMELGEM'!O41","v":0},{"$f":"'RESULTAAT KIEL'!L41","v":0},{"$f":"'RESULTAAT KIEL'!O41","v":0},{"$f":"'RESULTAAT WIJNEGEM'!L41","v":0},{"$f":"'RESULTAAT WIJNEGEM'!O41","v":0},0,"0",null,"GRIET VERWIMP"]
[39,{"$f":"' Aanwezigheden Invullen'!B42","v":"LUC VAN DEN BROECK"},{"$f":"'RESULTAAT MERKSEM'!L42","v":2},{"$f":"'RESULTAAT MERKSEM'!O42","v":10},{"$f":"'RESULTAAT WOMMELGEM'!L42","v":0},{"$f":"'RESULTAAT WOMMELGEM'!O42","v":-22},{"$f":"'RESULTAAT KIEL'!L42","v":0},{"$f":"'RESULTAAT KIEL'!O42","v":0},{"$f":"'RESULTAAT WIJNEGEM'!L42","v":0},{"$f":"'RESULTAAT WIJNEGEM'!O42","v":0},2,-12,null,"LUC VAN DEN BROECK"]
[40,{"$f":"' Aanwezigheden Invullen'!B43","v":"MONIQUE RUYMBEKE"},{"$f":"'RESULTAAT MERKSEM'!L43","v":0},{"$f":"'RESULTAAT MERKSEM'!O43","v":-23},{"$f":"'RESULTAAT WOMMELGEM'!L43","v":1},{"$f":"'RESULTAAT WOMMELGEM'!O43","v":-2},{"$f":"'RESULTAAT KIEL'!L43","v":0},{"$f":"'RESULTAAT KIEL'!O43","v":0},{"$f":"'RESULTAAT WIJNEGEM'!L43","v":0},{"$f":"'RESULTAAT WIJNEGEM'!O43","v":0},1,-25,null,"MONIQUE RUYMBEKE"]
[41,{"$f":"' Aanwezigheden Invullen'!B44","v":"JOS JANSSENS"},{"$f":"'RESULTAAT MERKSEM'!L44","v":3},{"$f":"'RESULTAAT MERKSEM'!O44","v":26},{"$f":"'RESULTAAT WOMMELGEM'!L44","v":0},{"$f":"'RESULTAAT WOMMELGEM'!O44","v":-21},{"$f":"'RESULTAAT KIEL'!L44","v":2},{"$f":"'RESULTAAT KIEL'!O44","v":12},{"$f":"'RESULTAAT WIJNEGEM'!L44","v":0},{"$f":"'RESULTAAT WIJNEGEM'!O44","v":0},5,17,null,"JOS JANSSENS"]
[42,{"$f":"' Aanwezigheden Invullen'!B45","v":"MARIA RUTS"},{"$f":"'RESULTAAT MERKSEM'!L45","v":2},{"$f":"'RESULTAAT MERKSEM'!O45","v":6},{"$f":"'RESULTAAT WOMMELGEM'!L45","v":1},{"$f":"'RESULTAAT WOMMELGEM'!O45","v":-2},{"$f":"'RESULTAAT KIEL'!L45","v":1},{"$f":"'RESULTAAT KIEL'!O45","v":-5},{"$f":"'RESULTAAT WIJNEGEM'!L45","v":0},{"$f":"'RESULTAAT WIJNEGEM'!O45","v":0},4,-1,null,"MARIA RUTS"]
[43,{"$f":"' Aanwezigheden Invullen'!B46","v":"PIERRE MEIR"},{"$f":"'RESULTAAT MERKSEM'!L46","v":3},{"$f":"'RESULTAAT MERKSEM'!O46","v":30},{"$f":"'RESULTAAT WOMMELGEM'!L46","v":3},{"$f":"'RESULTAAT WOMMELGEM'!O46","v":31},{"$f":"'RESULTAAT KIEL'!L46","v":1},{"$f":"'RESULTAAT KIEL'!O46","v":-9},{"$f":"'RESULTAAT WIJNEGEM'!L46","v":1},{"$f":"'RESULTAAT WIJNEGEM'!O46","v":2},8,54,null,"PIERRE MEIR"]
[44,{"$f":"' Aanwezigheden Invullen'!B47","v":"PATTY MEEUSEN"},{"$f":"'RESULTAAT MERKSEM'!L47","v":2},{"$f":"'RESULTAAT MERKSEM'!O47","v":12},{"$f":"'RESULTAAT WOMMELGEM'!L47","v":1},{"$f":"'RESULTAAT WOMMELGEM'!O47","v":-12},{"$f":"'RESULTAAT KIEL'!L47","v":3},{"$f":"'RESULTAAT KIEL'!O47","v":15},{"$f":"'RESULTAAT WIJNEGEM'!L47","v":2},{"$f":"'RESULTAAT WIJNEGEM'!O47","v":16},8,31,null,"PATTY MEEUSEN"]
[45,{"$f":"' Aanwezigheden Invullen'!B48","v":"TRISTAN WEYN"},{"$f":"'RESULTAAT MERKSEM'!L48","v":0},{"$f":"'RESULTAAT MERKSEM'!O48","v":0},{"$f":"'RESULTAAT WOMMELGEM'!L48","v":0},{"$f":"'RESULTAAT WOMMELGEM'!O48","v":0},{"$f":"'RESULTAAT KIEL'!L48","v":2},{"$f":"'RESULTAAT KIEL'!O48","v":0},{"$f":"'RESULTAAT WIJNEGEM'!L48","v":1},{"$f":"'RESULTAAT WIJNEGEM'!O48","v":-2},3,-2,null,"TRISTAN WEYN"]
[46,{"$f":"' Aanwezigheden Invullen'!B49","v":"CARINA LUYTEN"},{"$f":"'RESULTAAT MERKSEM'!L49","v":0},{"$f":"'RESULTAAT MERKSEM'!O49","v":0},{"$f":"'RESULTAAT WOMMELGEM'!L49","v":0},{"$f":"'RESULTAAT WOMMELGEM'!O49","v":0},{"$f":"'RESULTAAT KIEL'!L49","v":1},{"$f":"'RESULTAAT KIEL'!O49","v":-7},{"$f":"'RESULTAAT WIJNEGEM'!L49","v":2},{"$f":"'RESULTAAT WIJNEGEM'!O49","v":4},3,-3,null,"CARINA LUYTEN"]
[47,{"$f":"' Aanwezigheden Invullen'!B50","v":"ETIENNE BURM"},{"$f":"'RESULTAAT MERKSEM'!L50","v":2},{"$f":"'RESULTAAT MERKSEM'!O50","v":11},{"$f":"'RESULTAAT WOMMELGEM'!L50","v":0},{"$f":"'RESULTAAT WOMMELGEM'!O50","v":0},{"$f":"'RESULTAAT KIEL'!L50","v":1},{"$f":"'RESULTAAT KIEL'!O50","v":-13},{"$f":"'RESULTAAT WIJNEGEM'!L50","v":0},{"$f":"'RESULTAAT WIJNEGEM'!O50","v":0},3,-2,null,"ETIENNE BURM"]
[48,{"$f":"' Aanwezigheden Invullen'!B51","v":"LIEVE GEZELS"},{"$f":"'RESULTAAT MERKSEM'!L51","v":1},{"$f":"'RESULTAAT MERKSEM'!O51","v":-13},{"$f":"'RESULTAAT WOMMELGEM'!L51","v":0},{"$f":"'RESULTAAT WOMMELGEM'!O51","v":0},{"$f":"'RESULTAAT KIEL'!L51","v":1},{"$f":"'RESULTAAT KIEL'!O51","v":-12},{"$f":"'RESULTAAT WIJNEGEM'!L51","v":0},{"$f":"'RESULTAAT WIJNEGEM'!O51","v":0},2,-25,null,"LIEVE GEZELS"]
[49,{"$f":"' Aanwezigheden Invullen'!B52","v":"MARIA DE VRIENDT"},{"$f":"'RESULTAAT MERKSEM'!L52","v":0},{"$f":"'RESULTAAT MERKSEM'!O52","v":0},{"$f":"'RESULTAAT WOMMELGEM'!L52","v":0},{"$f":"'RESULTAAT WOMMELGEM'!O52","v":0},{"$f":"'RESULTAAT KIEL'!L52","v":0},{"$f":"'RESULTAAT KIEL'!O52","v":0},{"$f":"'RESULTAAT WIJNEGEM'!L52","v":0},{"$f":"'RESULTAAT WIJNEGEM'!O52","v":0},0,"0",null,"MARIA DE VRIENDT"]
[50,{"$f":"' Aanwezigheden Invullen'!B53","v":"BOB OOMS"},{"$f":"'RESULTAAT MERKSEM'!L53","v":1},{"$f":"'RESULTAAT MERKSEM'!O53","v":-4},{"$f":"'RESULTAAT WOMMELGEM'!L53","v":1},{"$f":"'RESULTAAT WOMMELGEM'!O53","v":-5},{"$f":"'RESULTAAT KIEL'!L53","v":0},{"$f":"'RESULTAAT KIEL'!O53","v":0},{"$f":"'RESULTAAT WIJNEGEM'!L53","v":1},{"$f":"'RESULTAAT WIJNEGEM'!O53","v":-6},3,-15,null,"BOB OOMS"]
[51,{"$f":"' Aanwezigheden Invullen'!B54","v":"ANNITA VAN LEUGENHAEGHE"},{"$f":"'RESULTAAT MERKSEM'!L54","v":0},{"$f":"'RESULTAAT MERKSEM'!O54","v":-21},{"$f":"'RESULTAAT WOMMELGEM'!L54","v":3},{"$f":"'RESULTAAT WOMMELGEM'!O54","v":12},{"$f":"'RESULTAAT KIEL'!L54","v":0},{"$f":"'RESULTAAT KIEL'!O54","v":0},{"$f":"'RESULTAAT WIJNEGEM'!L54","v":1},{"$f":"'RESULTAAT WIJNEGEM'!O54","v":-9},4,-18,null,"ANNITA VAN LEUGENHAEGHE"]
[52,{"$f":"' Aanwezigheden Invullen'!B55","v":"LUC VAN HAVER"},{"$f":"'RESULTAAT MERKSEM'!L55","v":1},{"$f":"'RESULTAAT MERKSEM'!O55","v":-2},{"$f":"'RESULTAAT WOMMELGEM'!L55","v":0},{"$f":"'RESULTAAT WOMMELGEM'!O55","v":0},{"$f":"'RESULTAAT KIEL'!L55","v":2},{"$f":"'RESULTAAT KIEL'!O55","v":12},{"$f":"'RESULTAAT WIJNEGEM'!L55","v":3},{"$f":"'RESULTAAT WIJNEGEM'!O55","v":22},6,32,null,"LUC VAN HAVER"]
[53,{"$f":"' Aanwezigheden Invullen'!B56","v":"BEA VERHAEGEN"},{"$f":"'RESULTAAT MERKSEM'!L56","v":2},{"$f":"'RESULTAAT MERKSEM'!O56","v":3},{"$f":"'RESULTAAT WOMMELGEM'!L56","v":0},{"$f":"'RESULTAAT WOMMELGEM'!O56","v":0},{"$f":"'RESULTAAT KIEL'!L56","v":1},{"$f":"'RESULTAAT KIEL'!O56","v":-4},{"$f":"'RESULTAAT WIJNEGEM'!L56","v":3},{"$f":"'RESULTAAT WIJNEGEM'!O56","v":17},6,16,null,"BEA VERHAEGEN"]
[54,{"$f":"' Aanwezigheden Invullen'!B57","v":"RUDY VERACHTERT"},{"$f":"'RESULTAAT MERKSEM'!L57","v":1},{"$f":"'RESULTAAT MERKSEM'!O57","v":-3},{"$f":"'RESULTAAT WOMMELGEM'!L57","v":0},{"$f":"'RESULTAAT WOMMELGEM'!O57","v":0},{"$f":"'RESULTAAT KIEL'!L57","v":0},{"$f":"'RESULTAAT KIEL'!O57","v":0},{"$f":"'RESULTAAT WIJNEGEM'!L57","v":0},{"$f":"'RESULTAAT WIJNEGEM'!O57","v":0},1,-3,null,"RUDY VERACHTERT"]
[55,{"$f":"' Aanwezigheden Invullen'!B58","v":"CORRY DE BIE"},{"$f":"'RESULTAAT MERKSEM'!L58","v":1},{"$f":"'RESULTAAT MERKSEM'!O58","v":-17},{"$f":"'RESULTAAT WOMMELGEM'!L58","v":0},{"$f":"'RESULTAAT WOMMELGEM'!O58","v":0},{"$f":"'RESULTAAT KIEL'!L58","v":0},{"$f":"'RESULTAAT KIEL'!O58","v":0},{"$f":"'RESULTAAT WIJNEGEM'!L58","v":0},{"$f":"'RESULTAAT WIJNEGEM'!O58","v":0},1,-17,null,"CORRY DE BIE"]
[56,{"$f":"' Aanwezigheden Invullen'!B59","v":"NADINE BRACKE"},{"$f":"'RESULTAAT MERKSEM'!L59","v":1},{"$f":"'RESULTAAT MERKSEM'!O59","v":-15},{"$f":"'RESULTAAT WOMMELGEM'!L59","v":0},{"$f":"'RESULTAAT WOMMELGEM'!O59","v":0},{"$f":"'RESULTAAT KIEL'!L59","v":0},{"$f":"'RESULTAAT KIEL'!O59","v":0},{"$f":"'RESULTAAT WIJNEGEM'!L59","v":1},{"$f":"'RESULTAAT WIJNEGEM'!O59","v":-3},2,-18,null,"NADINE BRACKE"]
[57,{"$f":"' Aanwezigheden Invullen'!B60","v":"PATRICK VELDERS"},{"$f":"'RESULTAAT MERKSEM'!L60","v":2},{"$f":"'RESULTAAT MERKSEM'!O60","v":3},{"$f":"'RESULTAAT WOMMELGEM'!L60","v":0},{"$f":"'RESULTAAT WOMMELGEM'!O60","v":0},{"$f":"'RESULTAAT KIEL'!L60","v":0},{"$f":"'RESULTAAT KIEL'!O60","v":0},{"$f":"'RESULTAAT WIJNEGEM'!L60","v":2},{"$f":"'RESULTAAT WIJNEGEM'!O60","v":14},4,17,null,"PATRICK VELDERS"]
[58,{"$f":"' Aanwezigheden Invullen'!B61","v":"MARC DE REU"},{"$f":"'RESULTAAT MERKSEM'!L61","v":0},{"$f":"'RESULTAAT MERKSEM'!O61","v":0},{"$f":"'RESULTAAT WOMMELGEM'!L61","v":3},{"$f":"'RESULTAAT WOMMELGEM'!O61","v":12},{"$f":"'RESULTAAT KIEL'!L61","v":0},{"$f":"'RESULTAAT KIEL'!O61","v":0},{"$f":"'RESULTAAT WIJNEGEM'!L61","v":0},{"$f":"'RESULTAAT WIJNEGEM'!O61","v":0},3,12,null,"MARC DE REU"]
[59,{"$f":"' Aanwezigheden Invullen'!B62","v":"VIOLETTE GLANZ"},{"$f":"'RESULTAAT MERKSEM'!L62","v":0},{"$f":"'RESULTAAT MERKSEM'!O62","v":0},{"$f":"'RESULTAAT WOMMELGEM'!L62","v":2},{"$f":"'RESULTAAT WOMMELGEM'!O62","v":-6},{"$f":"'RESULTAAT KIEL'!L62","v":0},{"$f":"'RESULTAAT KIEL'!O62","v":0},{"$f":"'RESULTAAT WIJNEGEM'!L62","v":0},{"$f":"'RESULTAAT WIJNEGEM'!O62","v":0},2,-6,null,"VIOLETTE GLANZ"]
[60,{"$f":"' Aanwezigheden Invullen'!B63","v":"ROGER VAN DURME"},{"$f":"'RESULTAAT MERKSEM'!L63","v":1},{"$f":"'RESULTAAT MERKSEM'!O63","v":-15},{"$f":"'RESULTAAT WOMMELGEM'!L63","v":2},{"$f":"'RESULTAAT WOMMELGEM'!O63","v":8},{"$f":"'RESULTAAT KIEL'!L63","v":2},{"$f":"'RESULTAAT KIEL'!O63","v":1},{"$f":"'RESULTAAT WIJNEGEM'!L63","v":0},{"$f":"'RESULTAAT WIJNEGEM'!O63","v":-25},5,-31,null,"ROGER VAN DURME"]
[61,{"$f":"' Aanwezigheden Invullen'!B64","v":"JEAN TIJSMANS"},{"$f":"'RESULTAAT MERKSEM'!L64","v":2},{"$f":"'RESULTAAT MERKSEM'!O64","v":8},{"$f":"'RESULTAAT WOMMELGEM'!L64","v":2},{"$f":"'RESULTAAT WOMMELGEM'!O64","v":2},{"$f":"'RESULTAAT KIEL'!L64","v":3},{"$f":"'RESULTAAT KIEL'!O64","v":14},{"$f":"'RESULTAAT WIJNEGEM'!L64","v":2},{"$f":"'RESULTAAT WIJNEGEM'!O64","v":-1},9,23,null,"JEAN TIJSMANS"]
[62,{"$f":"' Aanwezigheden Invullen'!B65","v":"ETIENNE VAN ROBBROECK"},{"$f":"'RESULTAAT MERKSEM'!L65","v":2},{"$f":"'RESULTAAT MERKSEM'!O65","v":11},{"$f":"'RESULTAAT WOMMELGEM'!L65","v":3},{"$f":"'RESULTAAT WOMMELGEM'!O65","v":13},{"$f":"'RESULTAAT KIEL'!L65","v":3},{"$f":"'RESULTAAT KIEL'!O65","v":17},{"$f":"'RESULTAAT WIJNEGEM'!L65","v":0},{"$f":"'RESULTAAT WIJNEGEM'!O65","v":-15},8,26,null,"ETIENNE VAN ROBBROECK"]
[63,{"$f":"' Aanwezigheden Invullen'!B66","v":"PAULA VAN LINDEN"},{"$f":"'RESULTAAT MERKSEM'!L66","v":1},{"$f":"'RESULTAAT MERKSEM'!O66","v":-7},{"$f":"'RESULTAAT WOMMELGEM'!L66","v":0},{"$f":"'RESULTAAT WOMMELGEM'!O66","v":-17},{"$f":"'RESULTAAT KIEL'!L66","v":1},{"$f":"'RESULTAAT KIEL'!O66","v":-8},{"$f":"'RESULTAAT WIJNEGEM'!L66","v":1},{"$f":"'RESULTAAT WIJNEGEM'!O66","v":-13},3,-45,null,"PAULA VAN LINDEN"]
[64,{"$f":"' Aanwezigheden Invullen'!B67","v":"ERIK BOCKSTAL"},{"$f":"'RESULTAAT MERKSEM'!L67","v":0},{"$f":"'RESULTAAT MERKSEM'!O67","v":0},{"$f":"'RESULTAAT WOMMELGEM'!L67","v":0},{"$f":"'RESULTAAT WOMMELGEM'!O67","v":0},{"$f":"'RESULTAAT KIEL'!L67","v":0},{"$f":"'RESULTAAT KIEL'!O67","v":0},{"$f":"'RESULTAAT WIJNEGEM'!L67","v":0},{"$f":"'RESULTAAT WIJNEGEM'!O67","v":0},0,"0",null,"ERIK BOCKSTAL"]
[65,{"$f":"' Aanwezigheden Invullen'!B68","v":"BRUNO HERREBOSCH"},{"$f":"'RESULTAAT MERKSEM'!L68","v":2},{"$f":"'RESULTAAT MERKSEM'!O68","v":3},{"$f":"'RESULTAAT WOMMELGEM'!L68","v":2},{"$f":"'RESULTAAT WOMMELGEM'!O68","v":8},{"$f":"'RESULTAAT KIEL'!L68","v":0},{"$f":"'RESULTAAT KIEL'!O68","v":0},{"$f":"'RESULTAAT WIJNEGEM'!L68","v":0},{"$f":"'RESULTAAT WIJNEGEM'!O68","v":-24},{"$f":"SUM(C68,E68,G68,I68)","v":4},{"$f":"IF(D68+F68+H68+J68=0,\"0\",SUM(D68,F68,H68,J68))","v":-13},null,{"$f":"B68","v":"BRUNO HERREBOSCH"}]
[66,{"$f":"' Aanwezigheden Invullen'!B69","v":"MARC GOVAERS"},{"$f":"'RESULTAAT MERKSEM'!L69","v":3},{"$f":"'RESULTAAT MERKSEM'!O69","v":20},{"$f":"'RESULTAAT WOMMELGEM'!L69","v":0},{"$f":"'RESULTAAT WOMMELGEM'!O69","v":0},{"$f":"'RESULTAAT KIEL'!L69","v":0},{"$f":"'RESULTAAT KIEL'!O69","v":0},{"$f":"'RESULTAAT WIJNEGEM'!L69","v":2},{"$f":"'RESULTAAT WIJNEGEM'!O69","v":3},5,23,null,"MARC GOVAERS"]
[67,{"$f":"' Aanwezigheden Invullen'!B70","v":"NICOLE BAYARD"},{"$f":"'RESULTAAT MERKSEM'!L70","v":0},{"$f":"'RESULTAAT MERKSEM'!O70","v":-14},{"$f":"'RESULTAAT WOMMELGEM'!L70","v":0},{"$f":"'RESULTAAT WOMMELGEM'!O70","v":0},{"$f":"'RESULTAAT KIEL'!L70","v":0},{"$f":"'RESULTAAT KIEL'!O70","v":0},{"$f":"'RESULTAAT WIJNEGEM'!L70","v":0},{"$f":"'RESULTAAT WIJNEGEM'!O70","v":0},0,-14,null,"NICOLE BAYARD"]
[68,{"$f":"' Aanwezigheden Invullen'!B71","v":"FRANK DE KINDER"},{"$f":"'RESULTAAT MERKSEM'!L71","v":0},{"$f":"'RESULTAAT MERKSEM'!O71","v":0},{"$f":"'RESULTAAT WOMMELGEM'!L71","v":1},{"$f":"'RESULTAAT WOMMELGEM'!O71","v":-3},{"$f":"'RESULTAAT KIEL'!L71","v":1},{"$f":"'RESULTAAT KIEL'!O71","v":-5},{"$f":"'RESULTAAT WIJNEGEM'!L71","v":2},{"$f":"'RESULTAAT WIJNEGEM'!O71","v":19},4,11,null,"FRANK DE KINDER"]
[69,{"$f":"' Aanwezigheden Invullen'!B72","v":"FRANS WOUTERS"},{"$f":"'RESULTAAT MERKSEM'!L72","v":0},{"$f":"'RESULTAAT MERKSEM'!O72","v":0},{"$f":"'RESULTAAT WOMMELGEM'!L72","v":0},{"$f":"'RESULTAAT WOMMELGEM'!O72","v":-19},{"$f":"'RESULTAAT KIEL'!L72","v":0},{"$f":"'RESULTAAT KIEL'!O72","v":-20},{"$f":"'RESULTAAT WIJNEGEM'!L72","v":0},{"$f":"'RESULTAAT WIJNEGEM'!O72","v":0},0,-39,null,"FRANS WOUTERS"]
[70,{"$f":"' Aanwezigheden Invullen'!B73","v":"ANNE LOMBAERTS "},{"$f":"'RESULTAAT MERKSEM'!L73","v":0},{"$f":"'RESULTAAT MERKSEM'!O73","v":0},{"$f":"'RESULTAAT WOMMELGEM'!L73","v":1},{"$f":"'RESULTAAT WOMMELGEM'!O73","v":-1},{"$f":"'RESULTAAT KIEL'!L73","v":1},{"$f":"'RESULTAAT KIEL'!O73","v":-9},{"$f":"'RESULTAAT WIJNEGEM'!L73","v":0},{"$f":"'RESULTAAT WIJNEGEM'!O73","v":0},2,-10,null,"ANNE LOMBAERTS "]
[71,{"$f":"' Aanwezigheden Invullen'!B74","v":"FRIEDA HAESELDONCKX"},{"$f":"'RESULTAAT MERKSEM'!L74","v":0},{"$f":"'RESULTAAT MERKSEM'!O74","v":0},{"$f":"'RESULTAAT WOMMELGEM'!L74","v":0},{"$f":"'RESULTAAT WOMMELGEM'!O74","v":0},{"$f":"'RESULTAAT KIEL'!L74","v":2},{"$f":"'RESULTAAT KIEL'!O74","v":5},{"$f":"'RESULTAAT WIJNEGEM'!L74","v":0},{"$f":"'RESULTAAT WIJNEGEM'!O74","v":0},2,5,null,"FRIEDA HAESELDONCKX"]
[72,{"$f":"' Aanwezigheden Invullen'!B75","v":"CHRIS DE RAEYMAEKER"},{"$f":"'RESULTAAT MERKSEM'!L75","v":0},{"$f":"'RESULTAAT MERKSEM'!O75","v":0},{"$f":"'RESULTAAT WOMMELGEM'!L75","v":0},{"$f":"'RESULTAAT WOMMELGEM'!O75","v":0},{"$f":"'RESULTAAT KIEL'!L75","v":2},{"$f":"'RESULTAAT KIEL'!O75","v":11},{"$f":"'RESULTAAT WIJNEGEM'!L75","v":0},{"$f":"'RESULTAAT WIJNEGEM'!O75","v":0},2,11,null,"CHRIS DE RAEYMAEKER"]
[73,{"$f":"' Aanwezigheden Invullen'!B76","v":"WIS VAN DINGENEN"},{"$f":"'RESULTAAT MERKSEM'!L76","v":0},{"$f":"'RESULTAAT MERKSEM'!O76","v":0},{"$f":"'RESULTAAT WOMMELGEM'!L76","v":0},{"$f":"'RESULTAAT WOMMELGEM'!O76","v":0},{"$f":"'RESULTAAT KIEL'!L76","v":0},{"$f":"'RESULTAAT KIEL'!O76","v":0},{"$f":"'RESULTAAT WIJNEGEM'!L76","v":3},{"$f":"'RESULTAAT WIJNEGEM'!O76","v":20},3,20,null,"WIS VAN DINGENEN"]
[74,{"$f":"' Aanwezigheden Invullen'!B77","v":"RENEE COPPENS"},{"$f":"'RESULTAAT MERKSEM'!L77","v":0},{"$f":"'RESULTAAT MERKSEM'!O77","v":0},{"$f":"'RESULTAAT WOMMELGEM'!L77","v":0},{"$f":"'RESULTAAT WOMMELGEM'!O77","v":0},{"$f":"'RESULTAAT KIEL'!L77","v":0},{"$f":"'RESULTAAT KIEL'!O77","v":0},{"$f":"'RESULTAAT WIJNEGEM'!L77","v":0},{"$f":"'RESULTAAT WIJNEGEM'!O77","v":0},0,"0",null,"RENEE COPPENS"]
[75,{"$f":"' Aanwezigheden Invullen'!B78","v":0},{"$f":"'RESULTAAT MERKSEM'!L78","v":0},{"$f":"'RESULTAAT MERKSEM'!O78","v":0},{"$f":"'RESULTAAT WOMMELGEM'!L78","v":0},{"$f":"'RESULTAAT WOMMELGEM'!O78","v":0},{"$f":"'RESULTAAT KIEL'!L78","v":0},{"$f":"'RESULTAAT KIEL'!O78","v":0},{"$f":"'RESULTAAT WIJNEGEM'!L78","v":0},{"$f":"'RESULTAAT WIJNEGEM'!O78","v":0},0,"0",null,0]
[76,{"$f":"' Aanwezigheden Invullen'!B79","v":0},{"$f":"'RESULTAAT MERKSEM'!L79","v":0},{"$f":"'RESULTAAT MERKSEM'!O79","v":0},{"$f":"'RESULTAAT WOMMELGEM'!L79","v":0},{"$f":"'RESULTAAT WOMMELGEM'!O79","v":0},{"$f":"'RESULTAAT KIEL'!L79","v":0},{"$f":"'RESULTAAT KIEL'!O79","v":0},{"$f":"'RESULTAAT WIJNEGEM'!L79","v":0},{"$f":"'RESULTAAT WIJNEGEM'!O79","v":0},0,"0",null,0]
[77,{"$f":"' Aanwezigheden Invullen'!B80","v":0},{"$f":"'RESULTAAT MERKSEM'!L80","v":0},{"$f":"'RESULTAAT MERKSEM'!O80","v":0},{"$f":"'RESULTAAT WOMMELGEM'!L80","v":0},{"$f":"'RESULTAAT WOMMELGEM'!O80","v":0},{"$f":"'RESULTAAT KIEL'!L80","v":0},{"$f":"'RESULTAAT KIEL'!O80","v":0},{"$f":"'RESULTAAT WIJNEGEM'!L80","v":0},{"$f":"'RESULTAAT WIJNEGEM'!O80","v":0},0,"0",null,0]
[78,{"$f":"' Aanwezigheden Invullen'!B81","v":0},{"$f":"'RESULTAAT MERKSEM'!L81","v":0},{"$f":"'RESULTAAT MERKSEM'!O81","v":0},{"$f":"'RESULTAAT WOMMELGEM'!L81","v":0},{"$f":"'RESULTAAT WOMMELGEM'!O81","v":0},{"$f":"'RESULTAAT KIEL'!L81","v":0},{"$f":"'RESULTAAT KIEL'!O81","v":0},{"$f":"'RESULTAAT WIJNEGEM'!L81","v":0},{"$f":"'RESULTAAT WIJNEGEM'!O81","v":0},0,"0",null,0]
[79,{"$f":"' Aanwezigheden Invullen'!B82","v":0},{"$f":"'RESULTAAT MERKSEM'!L82","v":0},{"$f":"'RESULTAAT MERKSEM'!O82","v":0},{"$f":"'RESULTAAT WOMMELGEM'!L82","v":0},{"$f":"'RESULTAAT WOMMELGEM'!O82","v":0},{"$f":"'RESULTAAT KIEL'!L82","v":0},{"$f":"'RESULTAAT KIEL'!O82","v":0},{"$f":"'RESULTAAT WIJNEGEM'!L82","v":0},{"$f":"'RESULTAAT WIJNEGEM'!O82","v":0},0,"0",null,0]
[80,{"$f":"' Aanwezigheden Invullen'!B83","v":0},{"$f":"'RESULTAAT MERKSEM'!L83","v":0},{"$f":"'RESULTAAT MERKSEM'!O83","v":0},{"$f":"'RESULTAAT WOMMELGEM'!L83","v":0},{"$f":"'RESULTAAT WOMMELGEM'!O83","v":0},{"$f":"'RESULTAAT KIEL'!L83","v":0},{"$f":"'RESULTAAT KIEL'!O83","v":0},{"$f":"'RESULTAAT WIJNEGEM'!L83","v":0},{"$f":"'RESULTAAT WIJNEGEM'!O83","v":0},0,"0",null,0]
[81,{"$f":"' Aanwezigheden Invullen'!B84","v":0},{"$f":"'RESULTAAT MERKSEM'!L84","v":0},{"$f":"'RESULTAAT MERKSEM'!O84","v":0},{"$f":"'RESULTAAT WOMMELGEM'!L84","v":0},{"$f":"'RESULTAAT WOMMELGEM'!O84","v":0},{"$f":"'RESULTAAT KIEL'!L84","v":0},{"$f":"'RESULTAAT KIEL'!O84","v":0},{"$f":"'RESULTAAT WIJNEGEM'!L84","v":0},{"$f":"'RESULTAAT WIJNEGEM'!O84","v":0},0,"0",null,0]
[82,{"$f":"' Aanwezigheden Invullen'!B85","v":0},{"$f":"'RESULTAAT MERKSEM'!L85","v":0},{"$f":"'RESULTAAT MERKSEM'!O85","v":0},{"$f":"'RESULTAAT WOMMELGEM'!L85","v":0},{"$f":"'RESULTAAT WOMMELGEM'!O85","v":0},{"$f":"'RESULTAAT KIEL'!L85","v":0},{"$f":"'RESULTAAT KIEL'!O85","v":0},{"$f":"'RESULTAAT WIJNEGEM'!L85","v":0},{"$f":"'RESULTAAT WIJNEGEM'!O85","v":0},0,"0",null,0]
[83,{"$f":"' Aanwezigheden Invullen'!B86","v":0},{"$f":"'RESULTAAT MERKSEM'!L86","v":0},{"$f":"'RESULTAAT MERKSEM'!O86","v":0},{"$f":"'RESULTAAT WOMMELGEM'!L86","v":0},{"$f":"'RESULTAAT WOMMELGEM'!O86","v":0},{"$f":"'RESULTAAT KIEL'!L86","v":0},{"$f":"'RESULTAAT KIEL'!O86","v":0},{"$f":"'RESULTAAT WIJNEGEM'!L86","v":0},{"$f":"'RESULTAAT WIJNEGEM'!O86","v":0},0,"0",null,0]
[84,{"$f":"' Aanwezigheden Invullen'!B87","v":0},{"$f":"'RESULTAAT MERKSEM'!L87","v":0},{"$f":"'RESULTAAT MERKSEM'!O87","v":0},{"$f":"'RESULTAAT WOMMELGEM'!L87","v":0},{"$f":"'RESULTAAT WOMMELGEM'!O87","v":0},{"$f":"'RESULTAAT KIEL'!L87","v":0},{"$f":"'RESULTAAT KIEL'!O87","v":0},{"$f":"'RESULTAAT WIJNEGEM'!L87","v":0},{"$f":"'RESULTAAT WIJNEGEM'!O87","v":0},0,"0",null,0]
[85,{"$f":"' Aanwezigheden Invullen'!B88","v":0},{"$f":"'RESULTAAT MERKSEM'!L88","v":0},{"$f":"'RESULTAAT MERKSEM'!O88","v":0},{"$f":"'RESULTAAT WOMMELGEM'!L88","v":0},{"$f":"'RESULTAAT WOMMELGEM'!O88","v":0},{"$f":"'RESULTAAT KIEL'!L88","v":0},{"$f":"'RESULTAAT KIEL'!O88","v":0},{"$f":"'RESULTAAT WIJNEGEM'!L88","v":0},{"$f":"'RESULTAAT WIJNEGEM'!O88","v":0},0,"0",null,0]
[86,{"$f":"' Aanwezigheden Invullen'!B89","v":0},{"$f":"'RESULTAAT MERKSEM'!L89","v":0},{"$f":"'RESULTAAT MERKSEM'!O89","v":0},{"$f":"'RESULTAAT WOMMELGEM'!L89","v":0},{"$f":"'RESULTAAT WOMMELGEM'!O89","v":0},{"$f":"'RESULTAAT KIEL'!L89","v":0},{"$f":"'RESULTAAT KIEL'!O89","v":0},{"$f":"'RESULTAAT WIJNEGEM'!L89","v":0},{"$f":"'RESULTAAT WIJNEGEM'!O89","v":0},0,"0",null,0]
[87,{"$f":"' Aanwezigheden Invullen'!B90","v":0},{"$f":"'RESULTAAT MERKSEM'!L90","v":0},{"$f":"'RESULTAAT MERKSEM'!O90","v":0},{"$f":"'RESULTAAT WOMMELGEM'!L90","v":0},{"$f":"'RESULTAAT WOMMELGEM'!O90","v":0},{"$f":"'RESULTAAT KIEL'!L90","v":0},{"$f":"'RESULTAAT KIEL'!O90","v":0},{"$f":"'RESULTAAT WIJNEGEM'!L90","v":0},{"$f":"'RESULTAAT WIJNEGEM'!O90","v":0},0,"0",null,0]
[88,{"$f":"' Aanwezigheden Invullen'!B91","v":0},{"$f":"'RESULTAAT MERKSEM'!L91","v":0},{"$f":"'RESULTAAT MERKSEM'!O91","v":0},{"$f":"'RESULTAAT WOMMELGEM'!L91","v":0},{"$f":"'RESULTAAT WOMMELGEM'!O91","v":0},{"$f":"'RESULTAAT KIEL'!L91","v":0},{"$f":"'RESULTAAT KIEL'!O91","v":0},{"$f":"'RESULTAAT WIJNEGEM'!L91","v":0},{"$f":"'RESULTAAT WIJNEGEM'!O91","v":0},0,"0",null,0]
[89,{"$f":"' Aanwezigheden Invullen'!B92","v":0},{"$f":"'RESULTAAT MERKSEM'!L92","v":0},{"$f":"'RESULTAAT MERKSEM'!O92","v":0},{"$f":"'RESULTAAT WOMMELGEM'!L92","v":0},{"$f":"'RESULTAAT WOMMELGEM'!O92","v":0},{"$f":"'RESULTAAT KIEL'!L92","v":0},{"$f":"'RESULTAAT KIEL'!O92","v":0},{"$f":"'RESULTAAT WIJNEGEM'!L92","v":0},{"$f":"'RESULTAAT WIJNEGEM'!O92","v":0},0,"0",null,0]
[90,{"$f":"' Aanwezigheden Invullen'!B93","v":0},{"$f":"'RESULTAAT MERKSEM'!L93","v":0},{"$f":"'RESULTAAT MERKSEM'!O93","v":0},{"$f":"'RESULTAAT WOMMELGEM'!L93","v":0},{"$f":"'RESULTAAT WOMMELGEM'!O93","v":0},{"$f":"'RESULTAAT KIEL'!L93","v":0},{"$f":"'RESULTAAT KIEL'!O93","v":0},{"$f":"'RESULTAAT WIJNEGEM'!L93","v":0},{"$f":"'RESULTAAT WIJNEGEM'!O93","v":0},0,"0",null,0]
[91,{"$f":"' Aanwezigheden Invullen'!B94","v":0},{"$f":"'RESULTAAT MERKSEM'!L94","v":0},{"$f":"'RESULTAAT MERKSEM'!O94","v":0},{"$f":"'RESULTAAT WOMMELGEM'!L94","v":0},{"$f":"'RESULTAAT WOMMELGEM'!O94","v":0},{"$f":"'RESULTAAT KIEL'!L94","v":0},{"$f":"'RESULTAAT KIEL'!O94","v":0},{"$f":"'RESULTAAT WIJNEGEM'!L94","v":0},{"$f":"'RESULTAAT WIJNEGEM'!O94","v":0},0,"0",null,0]
[92,{"$f":"' Aanwezigheden Invullen'!B95","v":0},{"$f":"'RESULTAAT MERKSEM'!L95","v":0},{"$f":"'RESULTAAT MERKSEM'!O95","v":0},{"$f":"'RESULTAAT WOMMELGEM'!L95","v":0},{"$f":"'RESULTAAT WOMMELGEM'!O95","v":0},{"$f":"'RESULTAAT KIEL'!L95","v":0},{"$f":"'RESULTAAT KIEL'!O95","v":0},{"$f":"'RESULTAAT WIJNEGEM'!L95","v":0},{"$f":"'RESULTAAT WIJNEGEM'!O95","v":0},0,"0",null,0]
[93,{"$f":"' Aanwezigheden Invullen'!B96","v":0},{"$f":"'RESULTAAT MERKSEM'!L96","v":0},{"$f":"'RESULTAAT MERKSEM'!O96","v":0},{"$f":"'RESULTAAT WOMMELGEM'!L96","v":0},{"$f":"'RESULTAAT WOMMELGEM'!O96","v":0},{"$f":"'RESULTAAT KIEL'!L96","v":0},{"$f":"'RESULTAAT KIEL'!O96","v":0},{"$f":"'RESULTAAT WIJNEGEM'!L96","v":0},{"$f":"'RESULTAAT WIJNEGEM'!O96","v":0},0,"0",null,0]
[94,{"$f":"' Aanwezigheden Invullen'!B97","v":0},{"$f":"'RESULTAAT MERKSEM'!L97","v":0},{"$f":"'RESULTAAT MERKSEM'!O97","v":0},{"$f":"'RESULTAAT WOMMELGEM'!L97","v":0},{"$f":"'RESULTAAT WOMMELGEM'!O97","v":0},{"$f":"'RESULTAAT KIEL'!L97","v":0},{"$f":"'RESULTAAT KIEL'!O97","v":0},{"$f":"'RESULTAAT WIJNEGEM'!L97","v":0},{"$f":"'RESULTAAT WIJNEGEM'!O97","v":0},0,"0",null,0]
[95,{"$f":"' Aanwezigheden Invullen'!B98","v":0},{"$f":"'RESULTAAT MERKSEM'!L98","v":0},{"$f":"'RESULTAAT MERKSEM'!O98","v":0},{"$f":"'RESULTAAT WOMMELGEM'!L98","v":0},{"$f":"'RESULTAAT WOMMELGEM'!O98","v":0},{"$f":"'RESULTAAT KIEL'!L98","v":0},{"$f":"'RESULTAAT KIEL'!O98","v":0},{"$f":"'RESULTAAT WIJNEGEM'!L98","v":0},{"$f":"'RESULTAAT WIJNEGEM'!O98","v":0},0,"0",null,0]
[96,{"$f":"' Aanwezigheden Invullen'!B99","v":0},{"$f":"'RESULTAAT MERKSEM'!L99","v":0},{"$f":"'RESULTAAT MERKSEM'!O99","v":0},{"$f":"'RESULTAAT WOMMELGEM'!L99","v":0},{"$f":"'RESULTAAT WOMMELGEM'!O99","v":0},{"$f":"'RESULTAAT KIEL'!L99","v":0},{"$f":"'RESULTAAT KIEL'!O99","v":0},{"$f":"'RESULTAAT WIJNEGEM'!L99","v":0},{"$f":"'RESULTAAT WIJNEGEM'!O99","v":0},0,"0",null,0]
[97,{"$f":"' Aanwezigheden Invullen'!B100","v":0},{"$f":"'RESULTAAT MERKSEM'!L100","v":0},{"$f":"'RESULTAAT MERKSEM'!O100","v":0},{"$f":"'RESULTAAT WOMMELGEM'!L100","v":0},{"$f":"'RESULTAAT WOMMELGEM'!O100","v":0},{"$f":"'RESULTAAT KIEL'!L100","v":0},{"$f":"'RESULTAAT KIEL'!O100","v":0},{"$f":"'RESULTAAT WIJNEGEM'!L100","v":0},{"$f":"'RESULTAAT WIJNEGEM'!O100","v":0},{"$f":"SUM(C100,E100,G100,I100)","v":0},{"$f":"IF(D100+F100+H100+J100=0,\"0\",SUM(D100,F100,H100,J100))","v":"0"},null,{"$f":"B100","v":0}]
[98,{"$f":"' Aanwezigheden Invullen'!B101","v":0},{"$f":"'RESULTAAT MERKSEM'!L101","v":0},{"$f":"'RESULTAAT MERKSEM'!O101","v":0},{"$f":"'RESULTAAT WOMMELGEM'!L101","v":0},{"$f":"'RESULTAAT WOMMELGEM'!O101","v":0},{"$f":"'RESULTAAT KIEL'!L101","v":0},{"$f":"'RESULTAAT KIEL'!O101","v":0},{"$f":"'RESULTAAT WIJNEGEM'!L101","v":0},{"$f":"'RESULTAAT WIJNEGEM'!O101","v":0},0,"0",null,0]
[99,{"$f":"' Aanwezigheden Invullen'!B102","v":0},{"$f":"'RESULTAAT MERKSEM'!L102","v":0},{"$f":"'RESULTAAT MERKSEM'!O102","v":0},{"$f":"'RESULTAAT WOMMELGEM'!L102","v":0},{"$f":"'RESULTAAT WOMMELGEM'!O102","v":0},{"$f":"'RESULTAAT KIEL'!L102","v":0},{"$f":"'RESULTAAT KIEL'!O102","v":0},{"$f":"'RESULTAAT WIJNEGEM'!L102","v":0},{"$f":"'RESULTAAT WIJNEGEM'!O102","v":0},0,"0",null,0]
[100,{"$f":"' Aanwezigheden Invullen'!B103","v":0},{"$f":"'RESULTAAT MERKSEM'!L103","v":0},{"$f":"'RESULTAAT MERKSEM'!O103","v":0},{"$f":"'RESULTAAT WOMMELGEM'!L103","v":0},{"$f":"'RESULTAAT WOMMELGEM'!O103","v":0},{"$f":"'RESULTAAT KIEL'!L103","v":0},{"$f":"'RESULTAAT KIEL'!O103","v":0},{"$f":"'RESULTAAT WIJNEGEM'!L103","v":0},{"$f":"'RESULTAAT WIJNEGEM'!O103","v":0},0,"0",null,0]
[101,{"$f":"' Aanwezigheden Invullen'!B104","v":0},{"$f":"'RESULTAAT MERKSEM'!L104","v":0},{"$f":"'RESULTAAT MERKSEM'!O104","v":0},{"$f":"'RESULTAAT WOMMELGEM'!L104","v":0},{"$f":"'RESULTAAT WOMMELGEM'!O104","v":0},{"$f":"'RESULTAAT KIEL'!L104","v":0},{"$f":"'RESULTAAT KIEL'!O104","v":0},{"$f":"'RESULTAAT WIJNEGEM'!L104","v":0},{"$f":"'RESULTAAT WIJNEGEM'!O104","v":0},0,"0",null,0]
[102,{"$f":"' Aanwezigheden Invullen'!B105","v":0},{"$f":"'RESULTAAT MERKSEM'!L105","v":0},{"$f":"'RESULTAAT MERKSEM'!O105","v":0},{"$f":"'RESULTAAT WOMMELGEM'!L105","v":0},{"$f":"'RESULTAAT WOMMELGEM'!O105","v":0},{"$f":"'RESULTAAT KIEL'!L105","v":0},{"$f":"'RESULTAAT KIEL'!O105","v":0},{"$f":"'RESULTAAT WIJNEGEM'!L105","v":0},{"$f":"'RESULTAAT WIJNEGEM'!O105","v":0},0,"0",null,0]
[103,{"$f":"' Aanwezigheden Invullen'!B106","v":0},{"$f":"'RESULTAAT MERKSEM'!L106","v":0},{"$f":"'RESULTAAT MERKSEM'!O106","v":0},{"$f":"'RESULTAAT WOMMELGEM'!L106","v":0},{"$f":"'RESULTAAT WOMMELGEM'!O106","v":0},{"$f":"'RESULTAAT KIEL'!L106","v":0},{"$f":"'RESULTAAT KIEL'!O106","v":0},{"$f":"'RESULTAAT WIJNEGEM'!L106","v":0},{"$f":"'RESULTAAT WIJNEGEM'!O106","v":0},0,"0",null,0]
[104,{"$f":"' Aanwezigheden Invullen'!B107","v":0},{"$f":"'RESULTAAT MERKSEM'!L107","v":0},{"$f":"'RESULTAAT MERKSEM'!O107","v":0},{"$f":"'RESULTAAT WOMMELGEM'!L107","v":0},{"$f":"'RESULTAAT WOMMELGEM'!O107","v":0},{"$f":"'RESULTAAT KIEL'!L107","v":0},{"$f":"'RESULTAAT KIEL'!O107","v":0},{"$f":"'RESULTAAT WIJNEGEM'!L107","v":0},{"$f":"'RESULTAAT WIJNEGEM'!O107","v":0},0,"0",null,0]
[105,{"$f":"' Aanwezigheden Invullen'!B108","v":0},{"$f":"'RESULTAAT MERKSEM'!L108","v":0},{"$f":"'RESULTAAT MERKSEM'!O108","v":0},{"$f":"'RESULTAAT WOMMELGEM'!L108","v":0},{"$f":"'RESULTAAT WOMMELGEM'!O108","v":0},{"$f":"'RESULTAAT KIEL'!L108","v":0},{"$f":"'RESULTAAT KIEL'!O108","v":0},{"$f":"'RESULTAAT WIJNEGEM'!L108","v":0},{"$f":"'RESULTAAT WIJNEGEM'!O108","v":0},0,"0",null,0]
[106,{"$f":"' Aanwezigheden Invullen'!B109","v":0},{"$f":"'RESULTAAT MERKSEM'!L109","v":0},{"$f":"'RESULTAAT MERKSEM'!O109","v":0},{"$f":"'RESULTAAT WOMMELGEM'!L109","v":0},{"$f":"'RESULTAAT WOMMELGEM'!O109","v":0},{"$f":"'RESULTAAT KIEL'!L109","v":0},{"$f":"'RESULTAAT KIEL'!O109","v":0},{"$f":"'RESULTAAT WIJNEGEM'!L109","v":0},{"$f":"'RESULTAAT WIJNEGEM'!O109","v":0},0,"0",null,0]
[107,{"$f":"' Aanwezigheden Invullen'!B110","v":0},{"$f":"'RESULTAAT MERKSEM'!L110","v":0},{"$f":"'RESULTAAT MERKSEM'!O110","v":0},{"$f":"'RESULTAAT WOMMELGEM'!L110","v":0},{"$f":"'RESULTAAT WOMMELGEM'!O110","v":0},{"$f":"'RESULTAAT KIEL'!L110","v":0},{"$f":"'RESULTAAT KIEL'!O110","v":0},{"$f":"'RESULTAAT WIJNEGEM'!L110","v":0},{"$f":"'RESULTAAT WIJNEGEM'!O110","v":0},0,"0",null,0]
[108,{"$f":"' Aanwezigheden Invullen'!B111","v":0},{"$f":"'RESULTAAT MERKSEM'!L111","v":0},{"$f":"'RESULTAAT MERKSEM'!O111","v":0},{"$f":"'RESULTAAT WOMMELGEM'!L111","v":0},{"$f":"'RESULTAAT WOMMELGEM'!O111","v":0},{"$f":"'RESULTAAT KIEL'!L111","v":0},{"$f":"'RESULTAAT KIEL'!O111","v":0},{"$f":"'RESULTAAT WIJNEGEM'!L111","v":0},{"$f":"'RESULTAAT WIJNEGEM'!O111","v":0},0,"0",null,0]
[109,{"$f":"' Aanwezigheden Invullen'!B112","v":0},{"$f":"'RESULTAAT MERKSEM'!L112","v":0},{"$f":"'RESULTAAT MERKSEM'!O112","v":0},{"$f":"'RESULTAAT WOMMELGEM'!L112","v":0},{"$f":"'RESULTAAT WOMMELGEM'!O112","v":0},{"$f":"'RESULTAAT KIEL'!L112","v":0},{"$f":"'RESULTAAT KIEL'!O112","v":0},{"$f":"'RESULTAAT WIJNEGEM'!L112","v":0},{"$f":"'RESULTAAT WIJNEGEM'!O112","v":0},0,"0",null,0]
[110,{"$f":"' Aanwezigheden Invullen'!B113","v":0},{"$f":"'RESULTAAT MERKSEM'!L113","v":0},{"$f":"'RESULTAAT MERKSEM'!O113","v":0},{"$f":"'RESULTAAT WOMMELGEM'!L113","v":0},{"$f":"'RESULTAAT WOMMELGEM'!O113","v":0},{"$f":"'RESULTAAT KIEL'!L113","v":0},{"$f":"'RESULTAAT KIEL'!O113","v":0},{"$f":"'RESULTAAT WIJNEGEM'!L113","v":0},{"$f":"'RESULTAAT WIJNEGEM'!O113","v":0},0,"0",null,0]

{"sheet":"KLASSEMENT MERKSEM","index":10,"n_rows":73,"n_cols":17,"rows_kept":73,"cut":false,"hidden":true,"merged":[]}
[null,"deelnemers",null,null,"KBC PETANQUETORNOOI",null,null,null,null,null,null,"MERKSEM",null,null,null,null,"2019-04-29"]
[null,null,"1ste Ronde",null,null,"2de Ronde",null,null,"3de Ronde",null,null,"Gew",null,null,"Totaal",null,"RESULTAAT"]
["Nr","Naam","voor","tegen","Gew","voor","tegen","Gew","voor","tegen","Gew","Totaal","voor ","tegen","saldo","rang","Naam"]
[null,null,null,null,{"$f":"IF((C4>D4),1,0)","v":0},null,null,{"$f":"IF((F4>G4),1,0)","v":0},null,null,{"$f":"IF((I4>J4),1,0)","v":0},{"$f":"SUM(E4+H4+K4)","v":0},null,null,{"$f":"SUM((M4-N4))","v":0},1,{"$f":"B4","v":0}]
[null,null,null,null,0,null,null,0,null,null,0,0,null,null,0,2,0]
[null,null,null,null,0,null,null,0,null,null,0,0,null,null,0,3,0]
[null,null,null,null,0,null,null,0,null,null,0,0,null,null,0,4,0]
[null,null,null,null,0,null,null,0,null,null,0,0,null,null,0,5,0]
[null,null,null,null,0,null,null,0,null,null,0,0,null,null,0,6,0]
[null,null,null,null,0,null,null,0,null,null,0,0,null,null,0,7,0]
[null,null,null,null,0,null,null,0,null,null,0,0,null,null,0,8,0]
[null,null,null,null,0,null,null,0,null,null,0,0,null,null,0,9,0]
[null,null,null,null,0,null,null,0,null,null,0,0,null,null,0,10,0]
[null,null,null,null,0,null,null,0,null,null,0,0,null,null,0,11,0]
[null,null,null,null,0,null,null,0,null,null,0,0,null,null,0,12,0]
[null,null,null,null,0,null,null,0,null,null,0,0,null,null,0,13,0]
[null,null,null,null,0,null,null,0,null,null,0,0,null,null,0,14,0]
[null,null,null,null,0,null,null,0,null,null,0,0,null,null,0,15,0]
[null,null,null,null,0,null,null,0,null,null,0,0,null,null,0,16,0]
[null,null,null,null,0,null,null,0,null,null,0,0,null,null,0,17,0]
[null,null,null,null,0,null,null,0,null,null,0,0,null,null,0,18,0]
[null,null,null,null,0,null,null,0,null,null,0,0,null,null,0,19,0]
[null,null,null,null,0,null,null,0,null,null,0,0,null,null,0,20,0]
[null,null,null,null,0,null,null,0,null,null,0,0,null,null,0,21,0]
[null,null,null,null,0,null,null,0,null,null,0,0,null,null,0,22,0]
[null,null,null,null,0,null,null,0,null,null,0,0,null,null,0,23,0]
[null,null,null,null,0,null,null,0,null,null,0,0,null,null,0,24,0]
[null,null,null,null,0,null,null,0,null,null,0,0,null,null,0,25,0]
[null,null,null,null,0,null,null,0,null,null,0,0,null,null,0,26,0]
[null,null,null,null,0,null,null,0,null,null,0,0,null,null,0,27,0]
[null,null,null,null,0,null,null,0,null,null,0,0,null,null,0,28,0]
[null,null,null,null,0,null,null,0,null,null,0,0,null,null,0,29,0]
[null,null,null,null,0,null,null,0,null,null,0,0,null,null,0,30,0]
[null,null,null,null,0,null,null,0,null,null,0,0,null,null,0,31,0]
[null,null,null,null,0,null,null,0,null,null,0,0,null,null,0,32,0]
[null,null,null,null,0,null,null,0,null,null,0,0,null,null,0,33,0]
[null,null,null,null,0,null,null,0,null,null,0,0,null,null,0,34,0]
[null,null,null,null,0,null,null,0,null,null,0,0,null,null,0,35,0]
[null,null,null,null,0,null,null,0,null,null,0,0,null,null,0,36,0]
[null,null,null,null,0,null,null,0,null,null,0,0,null,null,0,37,0]
[null,null,null,null,0,null,null,0,null,null,0,0,null,null,0,38,0]
[null,null,null,null,0,null,null,0,null,null,0,0,null,null,0,39,0]
[null,null,null,null,0,null,null,0,null,null,0,0,null,null,0,40,0]
[null,null,null,null,0,null,null,0,null,null,0,0,null,null,0,41,0]
[null,null,null,null,0,null,null,0,null,null,0,0,null,null,0,42,0]
[null,null,null,null,0,null,null,0,null,null,0,0,null,null,0,43,0]
[null,null,null,null,0,null,null,0,null,null,0,0,null,null,0,44,0]
[null,null,null,null,0,null,null,0,null,null,0,0,null,null,0,45,0]
[null,null,null,null,0,null,null,0,null,null,0,0,null,null,0,46,0]
[null,null,null,null,0,null,null,0,null,null,0,0,null,null,0,47,0]
[null,null,null,null,0,null,null,0,null,null,0,0,null,null,0,48,0]
[null,null,null,null,0,null,null,0,null,null,0,0,null,null,0,49,0]
[null,null,null,null,0,null,null,0,null,null,0,0,null,null,0,50,0]
[null,null,null,null,0,null,null,0,null,null,0,0,null,null,0,51,0]
[null,null,null,null,0,null,null,0,null,null,0,0,null,null,0,52,0]
[null,null,null,null,0,null,null,0,null,null,0,0,null,null,0,53,0]
[null,null,null,null,0,null,null,0,null,null,0,0,null,null,0,54,0]
[null,null,null,null,0,null,null,0,null,null,0,0,null,null,0,55,0]
[null,null,null,null,0,null,null,0,null,null,0,0,null,null,0,56,0]
[null,null,null,null,0,null,null,0,null,null,0,0,null,null,0,57,0]
[null,null,null,null,0,null,null,0,null,null,0,0,null,null,0,58,0]
[null,null,null,null,0,null,null,0,null,null,0,0,null,null,0,59,0]
[null,null,null,null,0,null,null,0,null,null,0,0,null,null,0,60,0]
[null,null,null,null,0,null,null,0,null,null,0,0,null,null,0,61,0]
[null,null,null,null,0,null,null,0,null,null,0,0,null,null,0,62,0]
[null,null,null,null,0,null,null,0,null,null,0,0,null,null,0,63,0]
[null,null,null,null,0,null,null,0,null,null,0,0,null,null,0,64,0]
[null,null,null,null,{"$f":"IF((C68>D68),1,0)","v":0},null,null,{"$f":"IF((F68>G68),1,0)","v":0},null,null,{"$f":"IF((I68>J68),1,0)","v":0},{"$f":"SUM(E68+H68+K68)","v":0},null,null,{"$f":"SUM((M68-N68))","v":0},65,{"$f":"B68","v":0}]
[null,null,null,null,0,null,null,0,null,null,0,0,null,null,0,66,0]
[null,null,null,null,0,null,null,0,null,null,0,0,null,null,0,67,0]
[null,null,null,null,0,null,null,0,null,null,0,0,null,null,0,68,0]
[null,null,null,null,0,null,null,0,null,null,0,0,null,null,0,69,0]
[null,null,null,null,0,null,null,0,null,null,0,0,null,null,0,70,0]

{"sheet":"KLASSEMENT WOMMELGEM","index":11,"n_rows":73,"n_cols":17,"rows_kept":73,"cut":false,"hidden":true,"merged":[]}
[null,"deelnemers",null,null,"KBC PETANQUETORNOOI",null,null,null,null,null,null,"WOMMELGEM",null,null,null,null,"2019-06-25"]
[null,null,"1ste Ronde",null,null,"2de Ronde",null,null,"3de Ronde",null,null,"Gew",null,null,"Totaal",null,"RESULTAAT"]
["Nr","Naam","voor","tegen","Gew","voor","tegen","Gew","voor","tegen","Gew","Totaal","voor ","tegen","saldo","rang","Naam"]
[1,"JAN VAN BERCKELAER",null,null,{"$f":"IF((C4>D4),1,0)","v":0},null,null,{"$f":"IF((F4>G4),1,0)","v":0},null,null,{"$f":"IF((I4>J4),1,0)","v":0},{"$f":"SUM(E4+H4+K4)","v":0},null,null,{"$f":"SUM((M4-N4))","v":0},1,{"$f":"B4","v":"JAN VAN BERCKELAER"}]
[null,null,null,null,0,null,null,0,null,null,0,0,null,null,0,2,0]
[null,null,null,null,0,null,null,0,null,null,0,0,null,null,0,3,0]
[null,null,null,null,0,null,null,0,null,null,0,0,null,null,0,4,0]
[null,null,null,null,0,null,null,0,null,null,0,0,null,null,0,5,0]
[null,null,null,null,0,null,null,0,null,null,0,0,null,null,0,6,0]
[null,null,null,null,0,null,null,0,null,null,0,0,null,null,0,7,0]
[null,null,null,null,{"$f":"IF((C11>D11),1,0)","v":0},null,null,{"$f":"IF((F11>G11),1,0)","v":0},null,null,{"$f":"IF((I11>J11),1,0)","v":0},{"$f":"SUM(E11+H11+K11)","v":0},null,null,{"$f":"SUM((M11-N11))","v":0},8,{"$f":"B11","v":0}]
[null,null,null,null,{"$f":"IF((C12>D12),1,0)","v":0},null,null,{"$f":"IF((F12>G12),1,0)","v":0},null,null,{"$f":"IF((I12>J12),1,0)","v":0},{"$f":"SUM(E12+H12+K12)","v":0},null,null,{"$f":"SUM((M12-N12))","v":0},9,{"$f":"B12","v":0}]
[null,null,null,null,0,null,null,0,null,null,0,0,null,null,0,10,0]
[null,null,null,null,0,null,null,0,null,null,0,0,null,null,0,11,0]
[null,null,null,null,0,null,null,0,null,null,0,0,null,null,0,12,0]
[null,null,null,null,0,null,null,0,null,null,0,0,null,null,0,13,0]
[null,null,null,null,0,null,null,0,null,null,0,0,null,null,0,14,0]
[null,null,null,null,0,null,null,0,null,null,0,0,null,null,0,15,0]
[null,null,null,null,0,null,null,0,null,null,0,0,null,null,0,16,0]
[null,null,null,null,0,null,null,0,null,null,0,0,null,null,0,17,0]
[null,null,null,null,0,null,null,0,null,null,0,0,null,null,0,18,0]
[null,null,null,null,0,null,null,0,null,null,0,0,null,null,0,19,0]
[null,null,null,null,0,null,null,0,null,null,0,0,null,null,0,20,0]
[null,null,null,null,0,null,null,0,null,null,0,0,null,null,0,21,0]
[null,null,null,null,0,null,null,0,null,null,0,0,null,null,0,22,0]
[null,null,null,null,0,null,null,0,null,null,0,0,null,null,0,23,0]
[null,null,null,null,0,null,null,0,null,null,0,0,null,null,0,24,0]
[null,null,null,null,0,null,null,0,null,null,0,0,null,null,0,25,0]
[null,null,null,null,0,null,null,0,null,null,0,0,null,null,0,26,0]
[null,null,null,null,0,null,null,0,null,null,0,0,null,null,0,27,0]
[null,null,null,null,0,null,null,0,null,null,0,0,null,null,0,28,0]
[null,null,null,null,0,null,null,0,null,null,0,0,null,null,0,29,0]
[null,null,null,null,0,null,null,0,null,null,0,0,null,null,0,30,0]
[null,null,null,null,0,null,null,0,null,null,0,0,null,null,0,31,0]
[null,null,null,null,0,null,null,0,null,null,0,0,null,null,0,32,0]
[null,null,null,null,0,null,null,0,null,null,0,0,null,null,0,33,0]
[null,null,null,null,0,null,null,0,null,null,0,0,null,null,0,34,0]
[null,null,null,null,0,null,null,0,null,null,0,0,null,null,0,35,0]
[null,null,null,null,0,null,null,0,null,null,0,0,null,null,0,36,0]
[null,null,null,null,0,null,null,0,null,null,0,0,null,null,0,37,0]
[null,null,null,null,0,null,null,0,null,null,0,0,null,null,0,38,0]
[null,null,null,null,0,null,null,0,null,null,0,0,null,null,0,39,0]
[null,null,null,null,0,null,null,0,null,null,0,0,null,null,0,40,0]
[null,null,null,null,0,null,null,0,null,null,0,0,null,null,0,41,0]
[null,null,null,null,0,null,null,0,null,null,0,0,null,null,0,42,0]
[null,null,null,null,0,null,null,0,null,null,0,0,null,null,0,43,0]
[null,null,null,null,0,null,null,0,null,null,0,0,null,null,0,44,0]
[null,null,null,null,0,null,null,0,null,null,0,0,null,null,0,45,0]
[null,null,null,null,0,null,null,0,null,null,0,0,null,null,0,46,0]
[null,null,null,null,0,null,null,0,null,null,0,0,null,null,0,47,0]
[null,null,null,null,0,null,null,0,null,null,0,0,null,null,0,48,0]
[null,null,null,null,0,null,null,0,null,null,0,0,null,null,0,49,0]
[null,null,null,null,0,null,null,0,null,null,0,0,null,null,0,50,0]
[null,null,null,null,0,null,null,0,null,null,0,0,null,null,0,51,0]
[null,null,null,null,0,null,null,0,null,null,0,0,null,null,0,52,0]
[null,null,null,null,0,null,null,0,null,null,0,0,null,null,0,53,0]
[null,null,null,null,0,null,null,0,null,null,0,0,null,null,0,54,0]
[null,null,null,null,0,null,null,0,null,null,0,0,null,null,0,55,0]
[null,null,null,null,0,null,null,0,null,null,0,0,null,null,0,56,0]
[null,null,null,null,0,null,null,0,null,null,0,0,null,null,0,57,0]
[null,null,null,null,0,null,null,0,null,null,0,0,null,null,0,58,0]
[null,null,null,null,0,null,null,0,null,null,0,0,null,null,0,59,0]
[null,null,null,null,0,null,null,0,null,null,0,0,null,null,0,60,0]
[null,null,null,null,0,null,null,0,null,null,0,0,null,null,0,61,0]
[null,null,null,null,0,null,null,0,null,null,0,0,null,null,0,62,0]
[null,null,null,null,0,null,null,0,null,null,0,0,null,null,0,63,0]
[null,null,null,null,0,null,null,0,null,null,0,0,null,null,0,64,0]
[null,null,null,null,0,null,null,0,null,null,0,0,null,null,0,65,0]
[null,null,null,null,0,null,null,0,null,null,0,0,null,null,0,66,0]
[null,null,null,null,0,null,null,0,null,null,0,0,null,null,0,67,0]
[null,null,null,null,0,null,null,0,null,null,0,0,null,null,0,68,0]
[null,null,null,null,0,null,null,0,null,null,0,0,null,null,0,69,0]
[null,null,null,null,0,null,null,0,null,null,0,0,null,null,0,70,0]

{"sheet":"KLASSEMENT KIEL","index":12,"n_rows":73,"n_cols":17,"rows_kept":73,"cut":false,"hidden":true,"merged":[]}
[null,"deelnemers",null,null,"KBC PETANQUETORNOOI",null,null,null,null,null,null,"KIEL",null,null,null,null,"2019-07-30"]
[null,null,"1ste Ronde",null,null,"2de Ronde",null,null,"3de Ronde",null,null,"Gew",null,null,"Totaal",null,"RESULTAAT"]
["Nr","Naam","voor","tegen","Gew","voor","tegen","Gew","voor","tegen","Gew","Totaal","voor ","tegen","saldo","rang","Naam"]
[1,"JAN VAN BERCKELAER",null,null,{"$f":"IF((C4>D4),1,0)","v":0},null,null,{"$f":"IF((F4>G4),1,0)","v":0},null,null,{"$f":"IF((I4>J4),1,0)","v":0},{"$f":"SUM(E4+H4+K4)","v":0},null,null,{"$f":"SUM((M4-N4))","v":0},1,{"$f":"B4","v":"JAN VAN BERCKELAER"}]
[null,null,null,null,0,null,null,0,null,null,0,0,null,null,0,2,0]
[null,null,null,null,0,null,null,0,null,null,0,0,null,null,0,3,0]
[null,null,null,null,0,null,null,0,null,null,0,0,null,null,0,4,0]
[null,null,null,null,0,null,null,0,null,null,0,0,null,null,0,5,0]
[null,null,null,null,0,null,null,0,null,null,0,0,null,null,0,6,0]
[null,null,null,null,0,null,null,0,null,null,0,0,null,null,0,7,0]
[null,null,null,null,0,null,null,0,null,null,0,0,null,null,0,8,0]
[null,null,null,null,0,null,null,0,null,null,0,0,null,null,0,9,0]
[null,null,null,null,0,null,null,0,null,null,0,0,null,null,0,10,0]
[null,null,null,null,0,null,null,0,null,null,0,0,null,null,0,11,0]
[null,null,null,null,0,null,null,0,null,null,0,0,null,null,0,12,0]
[null,null,null,null,0,null,null,0,null,null,0,0,null,null,0,13,0]
[null,null,null,null,0,null,null,0,null,null,0,0,null,null,0,14,0]
[null,null,null,null,0,null,null,0,null,null,0,0,null,null,0,15,0]
[null,null,null,null,0,null,null,0,null,null,0,0,null,null,0,16,0]
[null,null,null,null,0,null,null,0,null,null,0,0,null,null,0,17,0]
[null,null,null,null,0,null,null,0,null,null,0,0,null,null,0,18,0]
[null,null,null,null,0,null,null,0,null,null,0,0,null,null,0,19,0]
[null,null,null,null,0,null,null,0,null,null,0,0,null,null,0,20,0]
[null,null,null,null,0,null,null,0,null,null,0,0,null,null,0,21,0]
[null,null,null,null,0,null,null,0,null,null,0,0,null,null,0,22,0]
[null,null,null,null,0,null,null,0,null,null,0,0,null,null,0,23,0]
[null,null,null,null,0,null,null,0,null,null,0,0,null,null,0,24,0]
[null,null,null,null,0,null,null,0,null,null,0,0,null,null,0,25,0]
[null,null,null,null,0,null,null,0,null,null,0,0,null,null,0,26,0]
[null,null,null,null,0,null,null,0,null,null,0,0,null,null,0,27,0]
[null,null,null,null,0,null,null,0,null,null,0,0,null,null,0,28,0]
[null,null,null,null,0,null,null,0,null,null,0,0,null,null,0,29,0]
[null,null,null,null,0,null,null,0,null,null,0,0,null,null,0,30,0]
[null,null,null,null,0,null,null,0,null,null,0,0,null,null,0,31,0]
[null,null,null,null,0,null,null,0,null,null,0,0,null,null,0,32,0]
[null,null,null,null,0,null,null,0,null,null,0,0,null,null,0,33,0]
[null,null,null,null,0,null,null,0,null,null,0,0,null,null,0,34,0]
[null,null,null,null,0,null,null,0,null,null,0,0,null,null,0,35,0]
[null,null,null,null,0,null,null,0,null,null,0,0,null,null,0,36,0]
[null,null,null,null,0,null,null,0,null,null,0,0,null,null,0,37,0]
[null,null,null,null,0,null,null,0,null,null,0,0,null,null,0,38,0]
[null,null,null,null,0,null,null,0,null,null,0,0,null,null,0,39,0]
[null,null,null,null,0,null,null,0,null,null,0,0,null,null,0,40,0]
[null,null,null,null,0,null,null,0,null,null,0,0,null,null,0,41,0]
[null,null,null,null,0,null,null,0,null,null,0,0,null,null,0,42,0]
[null,null,null,null,0,null,null,0,null,null,0,0,null,null,0,43,0]
[null,null,null,null,0,null,null,0,null,null,0,0,null,null,0,44,0]
[null,null,null,null,0,null,null,0,null,null,0,0,null,null,0,45,0]
[null,null,null,null,0,null,null,0,null,null,0,0,null,null,0,46,0]
[null,null,null,null,0,null,null,0,null,null,0,0,null,null,0,47,0]
[null,null,null,null,0,null,null,0,null,null,0,0,null,null,0,48,0]
[null,null,null,null,0,null,null,0,null,null,0,0,null,null,0,49,0]
[null,null,null,null,0,null,null,0,null,null,0,0,null,null,0,50,0]
[null,null,null,null,0,null,null,0,null,null,0,0,null,null,0,51,0]
[null,null,null,null,0,null,null,0,null,null,0,0,null,null,0,52,0]
[null,null,null,null,0,null,null,0,null,null,0,0,null,null,0,53,0]
[null,null,null,null,0,null,null,0,null,null,0,0,null,null,0,54,0]
[null,null,null,null,0,null,null,0,null,null,0,0,null,null,0,55,0]
[null,null,null,null,0,null,null,0,null,null,0,0,null,null,0,56,0]
[null,null,null,null,0,null,null,0,null,null,0,0,null,null,0,57,0]
[null,null,null,null,0,null,null,0,null,null,0,0,null,null,0,58,0]
[null,null,null,null,0,null,null,0,null,null,0,0,null,null,0,59,0]
[null,null,null,null,0,null,null,0,null,null,0,0,null,null,0,60,0]
[null,null,null,null,0,null,null,0,null,null,0,0,null,null,0,61,0]
[null,null,null,null,0,null,null,0,null,null,0,0,null,null,0,62,0]
[null,null,null,null,0,null,null,0,null,null,0,0,null,null,0,63,0]
[null,null,null,null,0,null,null,0,null,null,0,0,null,null,0,64,0]
[null,null,null,null,{"$f":"IF((C68>D68),1,0)","v":0},null,null,{"$f":"IF((F68>G68),1,0)","v":0},null,null,{"$f":"IF((I68>J68),1,0)","v":0},{"$f":"SUM(E68+H68+K68)","v":0},null,null,{"$f":"SUM((M68-N68))","v":0},65,{"$f":"B68","v":0}]
[null,null,null,null,0,null,null,0,null,null,0,0,null,null,0,66,0]
[null,null,null,null,0,null,null,0,null,null,0,0,null,null,0,67,0]
[null,null,null,null,0,null,null,0,null,null,0,0,null,null,0,68,0]
[null,null,null,null,0,null,null,0,null,null,0,0,null,null,0,69,0]
[null,null,null,null,0,null,null,0,null,null,0,0,null,null,0,70,0]

{"sheet":"KLASSEMENT WIJNEGEM","index":13,"n_rows":73,"n_cols":17,"rows_kept":73,"cut":false,"hidden":true,"merged":[]}
[null,"deelnemers",null,null,"KBC PETANQUETORNOOI",null,null,null,null,null,null,"WIJNEGEM",null,null,null,null,"2019-08-27"]
[null,null,"1ste Ronde",null,null,"2de Ronde",null,null,"3de Ronde",null,null,"Gew",null,null,"Totaal",null,"RESULTAAT"]
["Nr","Naam","voor","tegen","Gew","voor","tegen","Gew","voor","tegen","Gew","Totaal","voor ","tegen","saldo","rang","Naam"]
[1,"JAN VAN BERCKELAER",null,null,{"$f":"IF((C4>D4),1,0)","v":0},null,null,{"$f":"IF((F4>G4),1,0)","v":0},null,null,{"$f":"IF((I4>J4),1,0)","v":0},{"$f":"SUM(E4+H4+K4)","v":0},null,null,{"$f":"SUM((M4-N4))","v":0},1,{"$f":"B4","v":"JAN VAN BERCKELAER"}]
[null,null,null,null,0,null,null,0,null,null,0,0,null,null,0,2,0]
[null,null,null,null,0,null,null,0,null,null,0,0,null,null,0,3,0]
[null,null,null,null,0,null,null,0,null,null,0,0,null,null,0,4,0]
[null,null,null,null,0,null,null,0,null,null,0,0,null,null,0,5,0]
[null,null,null,null,0,null,null,0,null,null,0,0,null,null,0,6,0]
[null,null,null,null,0,null,null,0,null,null,0,0,null,null,0,7,0]
[null,null,null,null,0,null,null,0,null,null,0,0,null,null,0,8,0]
[null,null,null,null,0,null,null,0,null,null,0,0,null,null,0,9,0]
[null,null,null,null,0,null,null,0,null,null,0,0,null,null,0,10,0]
[null,null,null,null,0,null,null,0,null,null,0,0,null,null,0,11,0]
[null,null,null,null,0,null,null,0,null,null,0,0,null,null,0,12,0]
[null,null,null,null,0,null,null,0,null,null,0,0,null,null,0,13,0]
[null,null,null,null,0,null,null,0,null,null,0,0,null,null,0,14,0]
[null,null,null,null,0,null,null,0,null,null,0,0,null,null,0,15,0]
[null,null,null,null,0,null,null,0,null,null,0,0,null,null,0,16,0]
[null,null,null,null,0,null,null,0,null,null,0,0,null,null,0,17,0]
[null,null,null,null,0,null,null,0,null,null,0,0,null,null,0,18,0]
[null,null,null,null,0,null,null,0,null,null,0,0,null,null,0,19,0]
[null,null,null,null,0,null,null,0,null,null,0,0,null,null,0,20,0]
[null,null,null,null,0,null,null,0,null,null,0,0,null,null,0,21,0]
[null,null,null,null,0,null,null,0,null,null,0,0,null,null,0,22,0]
[null,null,null,null,0,null,null,0,null,null,0,0,null,null,0,23,0]
[null,null,null,null,0,null,null,0,null,null,0,0,null,null,0,24,0]
[null,null,null,null,0,null,null,0,null,null,0,0,null,null,0,25,0]
[null,null,null,null,0,null,null,0,null,null,0,0,null,null,0,26,0]
[null,null,null,null,0,null,null,0,null,null,0,0,null,null,0,27,0]
[null,null,null,null,0,null,null,0,null,null,0,0,null,null,0,28,0]
[null,null,null,null,0,null,null,0,null,null,0,0,null,null,0,29,0]
[null,null,null,null,0,null,null,0,null,null,0,0,null,null,0,30,0]
[null,null,null,null,0,null,null,0,null,null,0,0,null,null,0,31,0]
[null,null,null,null,0,null,null,0,null,null,0,0,null,null,0,32,0]
[null,null,null,null,0,null,null,0,null,null,0,0,null,null,0,33,0]
[null,null,null,null,0,null,null,0,null,null,0,0,null,null,0,34,0]
[null,null,null,null,0,null,null,0,null,null,0,0,null,null,0,35,0]
[null,null,null,null,0,null,null,0,null,null,0,0,null,null,0,36,0]
[null,null,null,null,0,null,null,0,null,null,0,0,null,null,0,37,0]
[null,null,null,null,0,null,null,0,null,null,0,0,null,null,0,38,0]
[null,null,null,null,0,null,null,0,null,null,0,0,null,null,0,39,0]
[null,null,null,null,0,null,null,0,null,null,0,0,null,null,0,40,0]
[null,null,null,null,0,null,null,0,null,null,0,0,null,null,0,41,0]
[null,null,null,null,0,null,null,0,null,null,0,0,null,null,0,42,0]
[null,null,null,null,0,null,null,0,null,null,0,0,null,null,0,43,0]
[null,null,null,null,0,null,null,0,null,null,0,0,null,null,0,44,0]
[null,null,null,null,0,null,null,0,null,null,0,0,null,null,0,45,0]
[null,null,null,null,0,null,null,0,null,null,0,0,null,null,0,46,0]
[null,null,null,null,0,null,null,0,null,null,0,0,null,null,0,47,0]
[null,null,null,null,0,null,null,0,null,null,0,0,null,null,0,48,0]
[null,null,null,null,0,null,null,0,null,null,0,0,null,null,0,49,0]
[null,null,null,null,0,null,null,0,null,null,0,0,null,null,0,50,0]
[null,null,null,null,0,null,null,0,null,null,0,0,null,null,0,51,0]
[null,null,null,null,0,null,null,0,null,null,0,0,null,null,0,52,0]
[null,null,null,null,0,null,null,0,null,null,0,0,null,null,0,53,0]
[null,null,null,null,0,null,null,0,null,null,0,0,null,null,0,54,0]
[null,null,null,null,0,null,null,0,null,null,0,0,null,null,0,55,0]
[null,null,null,null,0,null,null,0,null,null,0,0,null,null,0,56,0]
[null,null,null,null,0,null,null,0,null,null,0,0,null,null,0,57,0]
[null,null,null,null,0,null,null,0,null,null,0,0,null,null,0,58,0]
[null,null,null,null,0,null,null,0,null,null,0,0,null,null,0,59,0]
[null,null,null,null,0,null,null,0,null,null,0,0,null,null,0,60,0]
[null,null,null,null,0,null,null,0,null,null,0,0,null,null,0,61,0]
[null,null,null,null,0,null,null,0,null,null,0,0,null,null,0,62,0]
[null,null,null,null,0,null,null,0,null,null,0,0,null,null,0,63,0]
[null,null,null,null,0,null,null,0,null,null,0,0,null,null,0,64,0]
[null,null,null,null,{"$f":"IF((C68>D68),1,0)","v":0},null,null,{"$f":"IF((F68>G68),1,0)","v":0},null,null,{"$f":"IF((I68>J68),1,0)","v":0},{"$f":"SUM(E68+H68+K68)","v":0},null,null,{"$f":"SUM((M68-N68))","v":0},65,{"$f":"B68","v":0}]
[null,null,null,null,0,null,null,0,null,null,0,0,null,null,0,66,0]
[null,null,null,null,0,null,null,0,null,null,0,0,null,null,0,67,0]
[null,null,null,null,0,null,null,0,null,null,0,0,null,null,0,68,0]
[null,null,null,null,0,null,null,0,null,null,0,0,null,null,0,69,0]
[null,null,null,null,0,null,null,0,null,null,0,0,null,null,0,70,0]

{"sheet":"GLOBAAL KLASSEMENT","index":14,"n_rows":73,"n_cols":14,"rows_kept":73,"cut":false,"hidden":true,"merged":[]}
[null,null,"MERKSEM",null,"WOMMELGEM",null,"KIEL",null,"WIJNEGEM",null,"EINDUITSLAG"]
[null,null,"Totaal","saldo","Totaal","saldo","Totaal","saldo","Totaal","saldo","Totaal","saldo"]
[null,null,"Gew","Totaal","Gew","Totaal","Gew","Totaal","Gew","Totaal","Gew","Totaal","EINDKLASSEMENT 2019"]
[1,"JAN VAN BERCKELAER",null,null,null,null,null,null,null,null,null,null,1,{"$f":"B4","v":"JAN VAN BERCKELAER"}]
[null,null,null,null,null,null,null,null,null,null,null,null,2,{"$f":"B5","v":0}]
[null,null,null,null,null,null,null,null,null,null,null,null,3,{"$f":"B6","v":0}]
[null,null,null,null,null,null,null,null,null,null,null,null,4,0]
[null,null,null,null,null,null,null,null,null,null,null,null,5,0]
[null,null,null,null,null,null,null,null,null,null,null,null,6,0]
[null,null,null,null,null,null,null,null,null,null,null,null,7,0]
[null,null,null,null,null,null,null,null,null,null,null,null,8,0]
[null,null,null,null,null,null,null,null,null,null,null,null,9,0]
[null,null,null,null,null,null,null,null,null,null,null,null,10,0]
[null,null,null,null,null,null,null,null,null,null,null,null,11,0]
[null,null,null,null,null,null,null,null,null,null,null,null,12,0]
[null,null,null,null,null,null,null,null,null,null,null,null,13,0]
[null,null,null,null,null,null,null,null,null,null,null,null,14,0]
[null,null,null,null,null,null,null,null,null,null,null,null,15,0]
[null,null,null,null,null,null,null,null,null,null,null,null,16,0]
[null,null,null,null,null,null,null,null,null,null,null,null,17,0]
[null,null,null,null,null,null,null,null,null,null,null,null,18,0]
[null,null,null,null,null,null,null,null,null,null,null,null,19,0]
[null,null,null,null,null,null,null,null,null,null,null,null,20,0]
[null,null,null,null,null,null,null,null,null,null,null,null,21,0]
[null,null,null,null,null,null,null,null,null,null,null,null,22,0]
[null,null,null,null,null,null,null,null,null,null,null,null,23,0]
[null,null,null,null,null,null,null,null,null,null,null,null,24,0]
[null,null,null,null,null,null,null,null,null,null,null,null,25,0]
[null,null,null,null,null,null,null,null,null,null,null,null,26,0]
[null,null,null,null,null,null,null,null,null,null,null,null,27,0]
[null,null,null,null,null,null,null,null,null,null,null,null,28,0]
[null,null,null,null,null,null,null,null,null,null,null,null,29,0]
[null,null,null,null,null,null,null,null,null,null,null,null,30,0]
[null,null,null,null,null,null,null,null,null,null,null,null,31,0]
[null,null,null,null,null,null,null,null,null,null,null,null,32,0]
[null,null,null,null,null,null,null,null,null,null,null,null,33,0]
[null,null,null,null,null,null,null,null,null,null,null,null,34,0]
[null,null,null,null,null,null,null,null,null,null,null,null,35,0]
[null,null,null,null,null,null,null,null,null,null,null,null,36,0]
[null,null,null,null,null,null,null,null,null,null,null,null,37,0]
[null,null,null,null,null,null,null,null,null,null,null,null,38,0]
[null,null,null,null,null,null,null,null,null,null,null,null,39,0]
[null,null,null,null,null,null,null,null,null,null,null,null,40,0]
[null,null,null,null,null,null,null,null,null,null,null,null,41,0]
[null,null,null,null,null,null,null,null,null,null,null,null,42,0]
[null,null,null,null,null,null,null,null,null,null,null,null,43,0]
[null,null,null,null,null,null,null,null,null,null,null,null,44,0]
[null,null,null,null,null,null,null,null,null,null,null,null,45,0]
[null,null,null,null,null,null,null,null,null,null,null,null,46,0]
[null,null,null,null,null,null,null,null,null,null,null,null,47,0]
[null,null,null,null,null,null,null,null,null,null,null,null,48,0]
[null,null,null,null,null,null,null,null,null,null,null,null,49,0]
[null,null,null,null,null,null,null,null,null,null,null,null,50,0]
[null,null,null,null,null,null,null,null,null,null,null,null,51,0]
[null,null,null,null,null,null,null,null,null,null,null,null,52,0]
[null,null,null,null,null,null,null,null,null,null,null,null,53,0]
[null,null,null,null,null,null,null,null,null,null,null,null,54,0]
[null,null,null,null,null,null,null,null,null,null,null,null,55,0]
[null,null,null,null,null,null,null,null,null,null,null,null,56,0]
[null,null,null,null,null,null,null,null,null,null,null,null,57,0]
[null,null,null,null,null,null,null,null,null,null,null,null,58,0]
[null,null,null,null,null,null,null,null,null,null,null,null,59,0]
[null,null,null,null,null,null,null,null,null,null,null,null,60,0]
[null,null,null,null,null,null,null,null,null,null,null,null,61,0]
[null,null,null,null,null,null,null,null,null,null,null,null,62,0]
[null,null,null,null,null,null,null,null,null,null,null,null,63,0]
[null,null,null,null,null,null,null,null,null,null,null,null,64,0]
[null,null,null,null,null,null,null,null,null,null,null,null,65,0]
[null,null,null,null,null,null,null,null,null,null,null,null,66,0]
[null,null,null,null,null,null,null,null,null,null,null,null,67,{"$f":"B70","v":0}]
[null,null,null,null,null,null,null,null,null,null,null,null,68,{"$f":"B71","v":0}]
[null,null,null,null,null,null,null,null,null,null,null,null,69,{"$f":"B72","v":0}]
[null,null,null,null,null,null,null,null,null,null,null,null,70,{"$f":"B73","v":0}]